Workbook

Sheet Interface
D2: SCC Gas Valve Sizing Program | E2: Price List
D3: Revision 1.5 | E3: PL-S
D5: Customer: | E5: 1
D6: Attn: | E6: 1
D7: Quote Date: | E7: 1900-01-01
D8: Quote Maker Initials: | E8: 1
D9: Quote Number Today: | E9: 1
D10: Total Number of Systems: | E10: 1
D11: Directions: Select an answer to each question from the drop down choices. Quote will not be available unless all sections have been noted as "Complete" and there are no errors. Once all sections are complete, review the diagram that will appear below. If a different VKG valve is desired select it from the "Alternate VKG Sizes" drop down menu (if this input box is left blank the "Recommended VKG Size" will be used for the quote). Once the diagram has been reviewed click the "Generate Quote" button at the bottom.
B15: Q# | C15: Hide Show | D15: Question | E15: Selection | F15: Answer | G15: Converted info
C16: =IF(E62="Incomplete","Show","Hide") -> Hide | D16: Please fill in customer information above.
A17: Gas Train Layout | B17: 1 | C17: =IF(E62="Complete","Show","Hide") -> Show | D17: Will the gas train use a combination safety shutoff valve and pressure regulator (SKP25), or a traditional upstream regulator with separate safety shutoff valves? | F17: =IF(Interface[[#This Row],[Selection]]<>"",LEFT(Interface[[#This Row],[Selection]],4),0) -> 0
B18: 2 | C18: =IF(AND(C17="Show", F17<>0),"Show","Hide") -> Hide | D18: Choose the number of safety shutoff valves. | F18: =IF(AND(C18="Show",E18<>""),E18,0) -> 0 | G18: =F17&Interface[[#This Row],[Answer]]&IF(G31>3.5,"High","Low") -> 00Low
B19: 3 | C19: =IF(AND(C18="Show", F18=2),"Show","Hide") -> Hide | D19: Is a vent required between the safety shutoff valves? | F19: =IF(AND(Interface[[#This Row],[Hide Show]]="Show",Interface[[#This Row],[Selection]]<>""),Interface[[#This Row],[Selection]],0) -> 0
B20: 4 | C20: =IF(OR(AND(C18="Show",F18=1),AND(C19="Show", F19<>0)),"Show","Hide") -> Hide | D20: Is a firing rate control valve (FRCV) required downstream of the safety shutoff valve(s)? | F20: =IF(AND(Interface[[#This Row],[Hide Show]]="Show",Interface[[#This Row],[Selection]]<>""),Interface[[#This Row],[Selection]],0) -> 0
B21: 5 | C21: =IF(AND(C20="Show", F20="yes"),"Show","Hide") -> Hide | D21: Is an actuator required for the firing rate control valve? | F21: =IF(AND(Interface[[#This Row],[Hide Show]]="Show",Interface[[#This Row],[Selection]]<>""),Interface[[#This Row],[Selection]],0) -> 0
B22: 6 | C22: =IF(AND(C21="Show", F21="yes"),"Show","Hide") -> Hide | D22: Which actuator is required for this application? note: All SQM40… are NEMA 4 | F22: =IF(AND(Interface[[#This Row],[Hide Show]]="Show",Interface[[#This Row],[Selection]]<>0),Interface[[#This Row],[Selection]],0) -> 0 | G22: =INDEX(GasActList[#Data],MATCH(Interface[[#This Row],[Answer]],GasActList[Selection],0),MATCH("Part #",GasActList[#Headers],0)) -> 
A23: Gas Info | B23: 7 | C23: =IF(OR( AND(C22="Show", F22<>0), AND(C21="Show",F21="No"), AND(C20="Show",F20="No")),"Show","Hide") -> Hide | D23: Specify the gas for this application. See "Notes" tab for specific gravities and heating values for standard gasses. | E23: Natural Gas | F23: =IF(AND(Interface[[#This Row],[Hide Show]]="Show",Interface[[#This Row],[Selection]]<>""),Interface[[#This Row],[Selection]],0) -> 0 | G23: =IF(Interface[[#This Row],[Answer]]="Digester","Yes",IF(Interface[[#This Row],[Answer]]="0","","No")) -> No
B24: 8 | C24: =IF(AND(C23="Show", F23="Custom"),"Show","Hide") -> Hide | D24: Is the custom gas a bio gas? | F24: =IF(AND(Interface[[#This Row],[Hide Show]]="Show",Interface[[#This Row],[Selection]]<>""),Interface[[#This Row],[Selection]],IF(F23="Digester","Yes","No")) -> No
B25: 9 | C25: =IF(AND(C24="Show", E24<>""),"Show","Hide") -> Hide | D25: Enter a custom specific gravity. | F25: =IF(AND(Interface[[#This Row],[Hide Show]]="Show",Interface[[#This Row],[Selection]]<>""),Interface[[#This Row],[Selection]],0) -> 0
B26: 10 | C26: =IF(AND(C25="Show", F23="Custom",F25<>0),"Show","Hide") -> Hide | D26: Enter a custom heating value. (BTU/SCF) | F26: =IF(AND(Interface[[#This Row],[Hide Show]]="Show",Interface[[#This Row],[Selection]]<>""),Interface[[#This Row],[Selection]],0) -> 0
A27: Pressure Information | B27: 11 | C27: =IF(OR( AND(F17="comb",F23="Custom",C26="Show",F26<>0), AND(F17="comb",F23<>"Custom",F23<>0,C23="show")), "Show","Hide") -> Hide | D27: Choose units for the gas train supply pressure. | F27: =IF(AND(Interface[[#This Row],[Hide Show]]="Show",Interface[[#This Row],[Selection]]<>""),Interface[[#This Row],[Selection]],0) -> 0 | G27: =INDEX(MaxUnitPress[#Data],MATCH(Interface[[#This Row],[Answer]],MaxUnitPress[Unit],0),MATCH("Supply Max",MaxUnitPress[#Headers],0)) -> 
B28: 12 | C28: =IF(AND(C27="Show", F27<>0),"Show","Hide") -> Hide | D28: Enter minimum gas train supply pressure. | F28: =IF(AND(Interface[[#This Row],[Hide Show]]="Show",Interface[[#This Row],[Selection]]<>"",F17="Trad"),0.1*Interface[[#This Row],[Selection]],IF(AND(Interface[[#This Row],[Hide Show]]="Show",Interface[[#This Row],[Selection]]<>"",F17="Comb"),Interface[[#This Row],[Selection]],0)) -> 0 | G28: =IF(F27="PSIG",Interface[[#This Row],[Answer]],Interface[[#This Row],[Answer]]/27.72) -> 0
B29: 13 | C29: =IF(AND(C28="Show",F28<>"",G28>20),"Show","Hide") -> Hide | D29: Gas train supply pressure must be less than 20 PSIG (554.4 inWC)
B30: 14 | C30: =IF(OR( AND(C29="Hide",F17="Trad",F23="Custom",C26="Show",F26<>0), AND(C29="Hide",F17="Trad",F23<>"Custom",F23<>0,C23="show"), AND(C29="Hide",C28="Show",F28<>0)), "Show","Hide") -> Hide | D30: Choose units for the burner manifold pressure. | F30: =IF(AND(Interface[[#This Row],[Hide Show]]="Show",Interface[[#This Row],[Selection]]<>""),Interface[[#This Row],[Selection]],0) -> 0 | G30: =INDEX(MaxUnitPress[#Data],MATCH(Interface[[#This Row],[Answer]],MaxUnitPress[Unit],0),MATCH("Supply Max",MaxUnitPress[#Headers],0)) -> 
B31: 15 | C31: =IF(AND(C30="Show", F30<>0),"Show","Hide") -> Hide | D31: Enter maximum (high fire) burner manifold pressure. | F31: =IF(AND(Interface[[#This Row],[Hide Show]]="Show",Interface[[#This Row],[Selection]]<>""),Interface[[#This Row],[Selection]],"") ->  | G31: =IF(AND(Interface[[#This Row],[Answer]]<>"",F30="PSIG"),Interface[[#This Row],[Answer]], IF(AND(Interface[[#This Row],[Answer]]<>"",F30="inWC"),Interface[[#This Row],[Answer]]/27.72,0)) -> 0
B32: 16 | C32: =IF(AND(F17="comb",C31="Show",E31<>"",G28<=G31),"Show","Hide") -> Hide | D32: The gas train supply pressure, must exceed burner manifold pressure
B33: 17 | C33: =IF(AND(F17="Comb",C31="Show",F31<>"",(G28-G31)>10),"Show","Hide") -> Hide | D33: Using an SKP25 at differential pressures of more than 10 PSIG is not recommended. Please reduce inlet pressure.
C34: =IF(AND(F17="Trad",C31="Show",F31<>"",C32="Hide",C33="Hide"),"Show","Hide") -> Hide | D34: How much pressure drop shall be taken across the safety shut off valve(s)? Please enter as a percent of the manifold pressure. Note: Industry standard is 10%-15%. The default is 15%. Please enter as a whole number i.e. 15 = 15% | E34: 15 | F34: =IF(AND(Interface[[#This Row],[Hide Show]]="Show",Interface[[#This Row],[Selection]]<>""),Interface[[#This Row],[Selection]],"") ->  | G34: =1+Interface[[#This Row],[Answer]]/100 -> 
B35: 18 | C35: =IF(OR( AND(F17="Comb",C31="Show", F31<>"",F20="Yes",C33="Hide",C32="Hide"), AND(F17="Trad",C34="Show", F34<>"",F20="Yes")),"Show","Hide") -> Hide | D35: Enter the minimum desired pressure drop across the full open firing rate control valve. (inWC) Note: SCC default is 2 inWC | E35: 2 | F35: =IF(AND(Interface[[#This Row],[Hide Show]]="Show",Interface[[#This Row],[Selection]]<>""),Interface[[#This Row],[Selection]],0) -> 0 | G35: =Interface[[#This Row],[Answer]]/27.72 -> 0
B36: 19 | C36: =IF(OR( AND(C35="Show", F35<>0), AND(F20="No",C31="Show",F31<>"",C33="Hide",C32="Hide")),"Show","Hide") -> Hide | D36: Enter additional pressure drop due to gas train piping. (inWC) Note: SCC default is 0 inWC | E36: 0 | F36: =IF(AND(Interface[[#This Row],[Hide Show]]="Show",Interface[[#This Row],[Selection]]<>""),Interface[[#This Row],[Selection]],"") ->  | G36: =IF(Interface[[#This Row],[Answer]]="",0,Interface[[#This Row],[Answer]]/27.72) -> 0
B37: 20 | C37: =IF(AND(F17="Comb",C36="Show",F36<>""),"Show","Hide") -> Hide | D37: Select the desired turndown range for this application. | F37: =IF(AND(Interface[[#This Row],[Hide Show]]="Show",Interface[[#This Row],[Selection]]<>""),Interface[[#This Row],[Selection]],"") ->  | G37: =IFERROR(INDEX(TDCheck[#Data],MATCH(Interface[[#This Row],[Answer]],TDCheck[[Turn down ]],0),MATCH("is selected TD in range?",TDCheck[#Headers],0)),"") -> 
B38: 21 | C38: =IF(AND(C37="Show",F37<>"",G37="No"),"Show","Hide") -> Hide | D38: ="Check application, inlet pressure may be too high for specified turndown ratio. Please reduce inlet pressure to less than "&ROUND((G31+Interface[[#This Row],[Converted info]]),2)&" PSI or decrease turndown ratio. " ->  | G38: =INDEX(TDCheck[#Data],MATCH(F37,TDCheck[[Turn down ]],0),MATCH("Top Range (PSIG)",TDCheck[#Headers],0)) -> 
A39: Capacity Information | B39: 22 | C39: =IF(OR( AND(F17="Trad",C36="Show",F36<>""), AND(C37="Show", F37<>"",C38="Hide")),"Show","Hide") -> Hide | D39: Choose a method to specify gas train capacity. | F39: =IF(AND(Interface[[#This Row],[Hide Show]]="Show",Interface[[#This Row],[Selection]]<>""),Interface[[#This Row],[Selection]],0) -> 0
B40: 23 | C40: =IF(AND(C39="Show", F39="Boiler Horsepower"),"Show","Hide") -> Hide | D40: Enter boiler horsepower at high fire (BHP). | F40: =IF(AND(Interface[[#This Row],[Hide Show]]="Show",Interface[[#This Row],[Selection]]<>""),Interface[[#This Row],[Selection]],0) -> 0
B41: 24 | C41: =IF(AND(C40="Show", F40<>0),"Show","Hide") -> Hide | D41: Specify boiler efficiency. (Enter percentage as a whole number, i.e.. 75% = 75) Note: SCC Default is 82% | E41: 82 | F41: =IF(AND(Interface[[#This Row],[Hide Show]]="Show",Interface[[#This Row],[Selection]]<>""),Interface[[#This Row],[Selection]]/100,0) -> 0
B42: 25 | C42: =IF(AND(C39="Show", F39="Gas Flow (SCFH)"),"Show","Hide") -> Hide | D42: Enter gas flow at high fire. (SCFH) | F42: =IF(AND(Interface[[#This Row],[Hide Show]]="Show",Interface[[#This Row],[Selection]]<>""),Interface[[#This Row],[Selection]],0) -> 0
B43: 26 | C43: =IF(AND(C39="Show", F39="Heat Output (BTU/hr)"),"Show","Hide") -> Hide | D43: Enter burner heat output at high fire. (BTU/ HR) | F43: =IF(AND(Interface[[#This Row],[Hide Show]]="Show",Interface[[#This Row],[Selection]]<>""),Interface[[#This Row],[Selection]],0) -> 0
B44: 27 | C44: =IFERROR(IF(OR( AND(VKGSelection[P2 Optimize]=0,F20="Yes",C43="Show",F43<>0), AND(VKGSelection[P2 Optimize]=0,F20="Yes",C42="Show",F42<>0), AND(VKGSelection[P2 Optimize]=0,F20="Yes",C41="Show",F41<>0)),"Show","Hide"),"Hide") -> Hide | D44: No firing rate control valve available with the minimum desired pressure drop. Please increase the gas flow or decrease the desired pressure drop across the full open firing rate control valve.
B45: 28 | C45: =IF(AND('Data, Calcs, Selections'!B33>'Data, Calcs, Selections'!D5,F17="Comb",C32="Hide"),"Show","Hide") -> Hide | D45: Defined conditions result in a firing rate control valve that takes too large of a pressure drop at full open. Please decrease the minimum desired pressure drop across the firing rate control valve at full open or increase the minimum gas train supply pressure.
A46: Gas Valve Actuator Information | B46: 29 | C46: =IF(OR( AND(C45="Hide",C44="Hide",C43="Show",F43<>0), AND(C45="Hide",C44="Hide",C42="Show",F42<>0), AND(C45="Hide",C44="Hide",C41="Show",F41<>0)),"Show","Hide") -> Hide | D46: Shall the safety shutoff valve actuator(s) be NEMA 4? | E46: No | F46: =IF(AND(Interface[[#This Row],[Hide Show]]="Show",Interface[[#This Row],[Selection]]<>""),Interface[[#This Row],[Selection]],0) -> 0
B47: 30 | C47: =IF(SSOVSelection[Input Press too high]="Too High!","Show","Hide") -> Hide | D47: =IF(F17="Comb", "Gas train supply pressure exceeds SSOV max operating pressure. Please enter a supply pressure below "&SSOVSelection[Max inlet Press (PSIG)]&" PSIG, "&"or decrease manifold pressure.", "Reccomended regulator setting upstream of SSOV exceeds SSOV max operating pressure ("&SSOVSelection[Max inlet Press (PSIG)]&" PSIG). "&"Please decrease burner manifold pressure or increase pressure drop % across SSOV.") -> 
B48: 31 | C48: =IFERROR(IF(AND(F17="Comb",'Data, Calcs, Selections'!B35>'Data, Calcs, Selections'!D3),"Show","Hide"),"Hide") -> Hide | D48: ="Check application, inlet pressure may be too low for specified burner output. Min required supply pressure is "&INDEX(DataSumMatrix[#Data],MATCH("R"&"Comb"&F27,DataSumMatrix[Item]&DataSumMatrix[Trad or Comb]&DataSumMatrix[PSI or inWC],0),MATCH("Value",DataSumMatrix[#Headers],0))&"." -> 
B49: 32 | C49: =IF(AND(C46="Show", F46<>0,C47="Hide",C48="Hide",F18=2),"Show","Hide") -> Hide | D49: What switches are desired on the upstream SSOV actuator? Note: When using an SKP25 and only 1 POC it is recommended that the POC be located on the upstream SSOV actuator. | F49: =IF(AND(Interface[[#This Row],[Hide Show]]="Show",Interface[[#This Row],[Selection]]<>""),Interface[[#This Row],[Selection]],"") -> 
B50: 33 | C50: =IF(AND(C46="Show", F46<>0,C47="Hide",F18=1),"Show","Hide") -> Hide | D50: What switches are desired on the SSOV actuator? Note: If the fuel train design requires an SKP25 and the burner manifold pressure exceeds 3.5PSI the high pressure SKP25.411U1 is required. This actuator comes standard with a POC switch but has no option for an auxiliary switch. | F50: =IF(AND(Interface[[#This Row],[Hide Show]]="Show",Interface[[#This Row],[Selection]]<>""),Interface[[#This Row],[Selection]],"") -> 
B51: 34 | C51: =IF(OR(AND(C50="Show", F50<>"",F18=2),AND(C49="Show", F49<>"",F18=2)),"Show","Hide") -> Hide | D51: What switches are desired on the downstream SSOV actuator? Note: If the fuel train design requires an SKP25 and the burner manifold pressure exceeds 3.5 PSI a high pressure SKP25.411U1 is required. This actuator comes standard with a POC switch but has no option for an auxiliary switch. | F51: =IF(AND(Interface[[#This Row],[Hide Show]]="Show",Interface[[#This Row],[Selection]]<>0),Interface[[#This Row],[Selection]],0) -> 0
B52: 35 | C52: =IF(OR( AND(C50="Show",F50<> ""), AND(C51="Show",F51<>0)),"Show","Hide") -> Hide | D52: Specify actuator voltage. | E52: 120 VAC | F52: =IF(AND(Interface[[#This Row],[Hide Show]]="Show",Interface[[#This Row],[Selection]]<>""),Interface[[#This Row],[Selection]],0) -> 0
B53: 36 | C53: =IF(AND(C52="Show", F52<>0),"Show","Hide") -> Hide | D53: Will the actuator(s) be exposed to temperatures less than 14 degrees F? (If yes, heaters will be supplied) | E53: No | F53: =IF(AND(Interface[[#This Row],[Hide Show]]="Show",Interface[[#This Row],[Selection]]<>""),Interface[[#This Row],[Selection]],0) -> 0
B54: 37 | C54: =IF(AND(LEFT(SSOVSelection[Part '#],5)="VGD20",C53="show",F53<>0),"Show","Hide") -> Hide | D54: Please select desired inlet pipe size for the safety shut off valve(s) (in). | F54: =IF(AND(Interface[[#This Row],[Hide Show]]="Show",Interface[[#This Row],[Selection]]<>""),Interface[[#This Row],[Selection]],0) -> 0
A55: Press Switch Info | B55: 38 | C55: =IF(OR(AND(C54="Show", F54<>0),AND(C53="Show",F53<>0,C54="Hide")),"Show","Hide") -> Hide | D55: Is a low gas pressure switch required? | E55: Yes | F55: =IF(AND(Interface[[#This Row],[Hide Show]]="Show",Interface[[#This Row],[Selection]]<>""),Interface[[#This Row],[Selection]],0) -> 0
B56: 39 | C56: =IF(AND($F$17="Comb",C55="Show",LEFT($F$55,3)="Yes"),"Show","Hide") -> Hide | D56: Will the low gas pressure switch be placed upstream or downstream of the SKP25? Note: SCC default is upstream | E56: Upstream (U.S. Standard) | F56: =IF(AND(Interface[[#This Row],[Hide Show]]="Show",Interface[[#This Row],[Selection]]<>""),Interface[[#This Row],[Selection]],0) -> 0
B57: 40 | C57: =IF(OR( AND($F$17="Comb",C56="Show",LEFT(F56,1)="U"), AND($F$17="Trad",C55="Show",F55="yes")),"Show","Hide") -> Hide | D57: Please select low pressure switch reset option. | F57: =IF(AND(Interface[[#This Row],[Hide Show]]="Show",Interface[[#This Row],[Selection]]<>""),Interface[[#This Row],[Selection]],0) -> 0 | G57: =IF(LEFT(F56,1)="D","Yes - Auto Reset",E55&" - "&Interface[[#This Row],[Answer]]) -> Yes - 0
B58: 41 | C58: =IF(OR(AND(C55="Show", F55="Not Required"),AND(C56="Show",LEFT(F56,1)="D"),AND(C57="Show",F57<>0),AND(F17="Trad",C57="Show",F57<>0)),"Show","Hide") -> Hide | D58: =IF(G31<1.335,"Is a high gas pressure switch required? ",IF(AND(G31>=1.335,G31<10),"Is a high gas pressure switch required? (only auto reset switches are available for manifold pressures between 37 inWC and 10 PSIG)","High gas pressure switches are not available for manifold pressures above 10 PSIG.")) -> Is a high gas pressure switch required? | F58: =IF(AND(Interface[[#This Row],[Hide Show]]="Show",Interface[[#This Row],[Selection]]<>""),Interface[[#This Row],[Selection]],"") ->  | G58: =IF(G31<1.335,"PressSwitchList1",IF(AND(G31>1.335,G31<10),"PressSwitchList2","PressSwitchList3")) -> PressSwitchList1
B59: 42 | C59: =IF(OR( AND(F18=2,C58="Show", F58<>""), AND(F18=2,C56="Show",LEFT(F56,1)="D",G58="PressSwitchList3"), AND(F18=2,C57="Show",F57<>0,G58="PressSwitchList3"), AND(F18=2,C55="Show",F55="Not Required",G58="PressSwitchList3")),"Show","Hide") -> Hide | D59: Is a valve proving pressure switch required? (This switch is always auto reset) | F59: =IF(AND(Interface[[#This Row],[Hide Show]]="Show",Interface[[#This Row],[Selection]]<>""),Interface[[#This Row],[Selection]],0) -> 0
B60: 43 | C60: =IF(Interface[[#This Row],[Question]]="hide","Hide",IF(OR(AND(C58="Show",F58<>"",F18=1),AND(C59="Show", F59<>0)),"Show","Hide")) -> Hide | D60: =PSN3RQuesSelect[Question] -> Hide | E60: No | F60: =IF(AND(Interface[[#This Row],[Hide Show]]="Show",Interface[[#This Row],[Selection]]<>""),Interface[[#This Row],[Selection]],0) -> 0
D62: Customer/Quote Information | E62: =IF(AND(CustDesg[Price List]<>0,E5:E10<>0),"Complete","Incomplete") -> Complete
D63: Section 1: Gas Train Layout | E63: =IF(C23="Show","Complete","Incomplete") -> Incomplete
D64: Section 2: Gas Information | E64: =IF(OR(C27="Show",C30="Show"),"Complete","Incomplete") -> Incomplete
D65: Section 3: Pressure Information | E65: =IF(C39="Show","Complete","Incomplete") -> Incomplete
D66: Section 4: Capacity Information | E66: =IF(OR(C49="Show",C50="Show"),"Complete","Incomplete") -> Incomplete
D67: Section 5: Gas Valve Actuator Information | E67: =IF(C55="Show","Complete","Incomplete") -> Incomplete
D68: Section 6: Pressure Switch Information | E68: =IF(OR( AND(F18=1,F58="Not Required",F55="Not Required"), AND(C59="Show",C60="hide",F59<>0), AND(C60="Show",F60<>0)),"Complete","Incomplete") -> Incomplete
C69: =IF(AND(E62:E68="Complete",C47="Hide",C45="Hide",C44="Hide",C38="Hide",C33="Hide",C32="Hide"),"Show","Hide") -> Hide | D69: Parts list includes SCC components only! Piping and assembly of gas train not included. If a fully assembled gas train is desired please call your SCC sales manager.
C70: =IF($C$69="Show","Show","Hide") -> Hide | D70: Note: The below image is a simplified representation of an assembled fuel train using the configured parts. This image shows critical flow characteristics and dimensions. This image is not to scale. Additional accessories are not shown (actuators, pressure switches…etc.). | E70: Safety Shutoff Valve: | H70: =IFERROR(SSOVSelection[Part '#]&" - "&INDEX(SSOVSizer[#Data],MATCH(SSOVSelection[Part '#],SSOVSizer[Part '#],0),MATCH("Description",SSOVSizer[#Headers],0)),"") -> 
C71: =IF(AND($C$69="Show",$F$20="Yes"),"Show","Hide") -> Hide | E71: Recommended Firing Rate Control Valve: | H71: =IFERROR(VKGSelection[Part '#]&" - "&INDEX(FRCVSizer[#Data],MATCH(VKGSelection[Part '#],FRCVSizer[Part '#],0),MATCH("Description",FRCVSizer[#Headers],0)),"") -> 
C72: =IF(AND($C$69="Show",$F$20="Yes"),"Show","Hide") -> Hide | E72: Alternate Firing Rate Control Valve Sizes:
C73: =IF($C$69="Show","Show","Hide") -> Hide
C74: =IFERROR(IF(AND($C$69="Show",L74=$F$17,M74=$F$20),"Show","Hide"),"Hide") -> Hide | E74: Q Gas Flow at High Fire | H74: =ROUND('Data, Calcs, Selections'!$D$15,0)&" "&"SCFH" ->  | L74: Trad | M74: No
C75: Hide | E75: Ps Min. Required Supply Pressure | H75: =INDEX(DataSumMatrix[#Data],MATCH("Ps"&"Trad"&IF($F$27=0,$F$30,$F$27),DataSumMatrix[Item]&DataSumMatrix[Trad or Comb]&DataSumMatrix[PSI or inWC],0),MATCH("Value",DataSumMatrix[#Headers],0)) ->  | L75: Trad | M75: No
C76: Hide | E76: Recommended Regulator Setting | H76: =INDEX(DataSumMatrix[#Data],MATCH("R"&"Trad"&IF($F$27=0,$F$30,$F$27),DataSumMatrix[Item]&DataSumMatrix[Trad or Comb]&DataSumMatrix[PSI or inWC],0),MATCH("Value",DataSumMatrix[#Headers],0)) ->  | L76: Trad | M76: No
C77: Hide | E77: Pb Pressure at Burner Manifold | H77: =INDEX(DataSumMatrix[#Data],MATCH("Pb"&$F$30,DataSumMatrix[Item]&DataSumMatrix[PSI or inWC],0),MATCH("Value",DataSumMatrix[#Headers],0)) ->  | L77: Trad | M77: No
C78: Hide | L78: Trad | M78: No
C79: Hide | E79: Q Gas Flow at High Fire | H79: =ROUND('Data, Calcs, Selections'!$D$15,0)&" "&"SCFH" ->  | L79: Trad | M79: Yes
C80: Hide | E80: Ps Min. Required Supply Pressure | H80: =INDEX(DataSumMatrix[#Data],MATCH("Ps"&"Trad"&IF($F$27=0,$F$30,$F$27),DataSumMatrix[Item]&DataSumMatrix[Trad or Comb]&DataSumMatrix[PSI or inWC],0),MATCH("Value",DataSumMatrix[#Headers],0)) ->  | L80: Trad | M80: Yes
C81: Hide | E81: Recommended Regulator Setting | H81: =INDEX(DataSumMatrix[#Data],MATCH("R"&"Trad"&IF($F$27=0,$F$30,$F$27),DataSumMatrix[Item]&DataSumMatrix[Trad or Comb]&DataSumMatrix[PSI or inWC],0),MATCH("Value",DataSumMatrix[#Headers],0)) ->  | L81: Trad | M81: Yes
C82: Hide | E82: P1 Pressure between SSOV and FRCV Recommended SKP25 setting | H82: =INDEX(DataSumMatrix[#Data],MATCH("P1"&$F$30,DataSumMatrix[Item]&DataSumMatrix[PSI or inWC],0),MATCH("Value",DataSumMatrix[#Headers],0)) ->  | L82: Trad | M82: Yes
C83: Hide | E83: Pb Pressure at Burner Manifold | H83: =INDEX(DataSumMatrix[#Data],MATCH("Pb"&$F$30,DataSumMatrix[Item]&DataSumMatrix[PSI or inWC],0),MATCH("Value",DataSumMatrix[#Headers],0)) ->  | L83: Trad | M83: Yes
C84: Hide | E84: Q Gas Flow at High Fire | H84: =ROUND('Data, Calcs, Selections'!$D$15,0)&" "&"SCFH" ->  | J84: V1 Gas Velocity after SSOV w/ Min. Rec. Sensing Pipe Size | K84: =IF($F$17="Comb",ROUND(SPOptimize[Optimize Vel],0)&" (ft/s)","") ->  | L84: Comb | M84: No
C85: Hide | E85: Ps Gas Supply Pressure | H85: =INDEX(DataSumMatrix[#Data],MATCH("Ps"&"Comb"&IF($F$27=0,$F$30,$F$27),DataSumMatrix[Item]&DataSumMatrix[Trad or Comb]&DataSumMatrix[PSI or inWC],0),MATCH("Value",DataSumMatrix[#Headers],0)) ->  | J85: Min. Recommended Sensing Pipe Size | K85: =IF($F$17="Comb",SPOptimize[Pipe Size]&"""","") ->  | L85: Comb | M85: No
C86: Hide | E86: Min. Required Supply Pressure | H86: =INDEX(DataSumMatrix[#Data],MATCH("R"&"Comb"&IF($F$27=0,$F$30,$F$27),DataSumMatrix[Item]&DataSumMatrix[Trad or Comb]&DataSumMatrix[PSI or inWC],0),MATCH("Value",DataSumMatrix[#Headers],0)) ->  | J86: D1 Min. Dist. from SKP25 to Sensing Tap (5*Pipe Dia) | K86: 5x Pipe Dia | L86: Comb | M86: No
C87: Hide | E87: Pb Pressure at Burner Manifold | H87: =INDEX(DataSumMatrix[#Data],MATCH("Pb"&$F$30,DataSumMatrix[Item]&DataSumMatrix[PSI or inWC],0),MATCH("Value",DataSumMatrix[#Headers],0)) ->  | J87: D2 Min Dist. from Sensing Tap to Next Obstruction (2* Pipe Dia) | K87: 2x Pipe Dia | L87: Comb | M87: No
C88: Hide | L88: Comb | M88: No
C89: Hide | E89: Q Gas Flow at High Fire | H89: =ROUND('Data, Calcs, Selections'!$D$15,0)&" "&"SCFH" ->  | J89: V1 Gas Velocity after SSOV w/ Min. Rec. Sensing Pipe Size | K89: =IF($F$17="Comb",ROUND(SPOptimize[Optimize Vel],0)&" (ft/s)","") ->  | L89: Comb | M89: Yes
C90: Hide | E90: Ps Gas Supply Pressure | H90: =INDEX(DataSumMatrix[#Data],MATCH("Ps"&"Comb"&IF($F$27=0,$F$30,$F$27),DataSumMatrix[Item]&DataSumMatrix[Trad or Comb]&DataSumMatrix[PSI or inWC],0),MATCH("Value",DataSumMatrix[#Headers],0)) ->  | J90: Min. Recommended Sensing Pipe Size | K90: =IF($F$17="Comb",SPOptimize[Pipe Size]&"""","") ->  | L90: Comb | M90: Yes
C91: Hide | E91: Min. Required Supply Pressure | H91: =INDEX(DataSumMatrix[#Data],MATCH("R"&"Comb"&IF($F$27=0,$F$30,$F$27),DataSumMatrix[Item]&DataSumMatrix[Trad or Comb]&DataSumMatrix[PSI or inWC],0),MATCH("Value",DataSumMatrix[#Headers],0)) ->  | J91: D1 Min. Dist. from SKP25 to Sensing Tap | K91: 5x Pipe Dia | L91: Comb | M91: Yes
C92: Hide | E92: P1 Pressure between SSOV and FRCV Recommended SKP25 setting | H92: =INDEX(DataSumMatrix[#Data],MATCH("P1"&$F$30,DataSumMatrix[Item]&DataSumMatrix[PSI or inWC],0),MATCH("Value",DataSumMatrix[#Headers],0)) ->  | J92: D2 Min Dist. from Sensing Tap to Next Obstruction | K92: 2x Pipe Dia | L92: Comb | M92: Yes
C93: Hide | E93: Pb Pressure at Burner Manifold | H93: =INDEX(DataSumMatrix[#Data],MATCH("Pb"&$F$30,DataSumMatrix[Item]&DataSumMatrix[PSI or inWC],0),MATCH("Value",DataSumMatrix[#Headers],0)) ->  | L93: Comb | M93: Yes
C94: Pic for Interface -> | D94: =IF(OR($C$69="Hide",Interface!$F$17="",SSOVSelection[1.2.2-1''s]="",Interface!$F$20=""),"None",Interface!$F$17&SSOVSelection[1.2.2-1''s]&Interface!$F$20) -> None
C95: Pic for Quote -> | D95: =IF(OR($C$69="Hide",Interface!$F$17="",SSOVSelection[1.2.2-1''s]="",Interface!$F$20=""),"NoneQ",Interface!$F$17&SSOVSelection[1.2.2-1''s]&Interface!$F$20&"Q") -> NoneQ
E96: Cells to be Copy and Pasted to Quote
E97: Item | F97: Value | G97: Rank
E98: Q Gas Flow at High Fire | F98: =ROUND('Data, Calcs, Selections'!$D$15,0)&" "&"SCFH" ->  | G98: 1
E99: Ps Gas Supply Pressure | F99: =INDEX(DataSumMatrix[#Data],MATCH("Ps"&$F$17&IF($F$27=0,$F$30,$F$27),DataSumMatrix[Item]&DataSumMatrix[Trad or Comb]&DataSumMatrix[PSI or inWC],0),MATCH("Value",DataSumMatrix[#Headers],0)) ->  | G99: 2
E100: =IF($F$17="Comb","Min Required Supply Press (inWC)",IF($F$17="Trad","Recommended Regulator Setting (inWC)","")) ->  | F100: =INDEX(DataSumMatrix[#Data],MATCH("R"&$F$17&IF($F$27=0,$F$30,$F$27),DataSumMatrix[Item]&DataSumMatrix[Trad or Comb]&DataSumMatrix[PSI or inWC],0),MATCH("Value",DataSumMatrix[#Headers],0)) ->  | G100: 3
E101: =IF($F$20="No","",IF($F$17="Comb","P1"&CHAR(10)&"Press btw SSOV and FRCV"&CHAR(10)&"Rec'd SKP25 setting",IF($F$17="Trad","P1"&CHAR(10)&"Press between SSOV and FRCV",""))) ->  | F101: =IF($F$20="No","",INDEX(DataSumMatrix[#Data],MATCH("P1"&$F$30,DataSumMatrix[Item]&DataSumMatrix[PSI or inWC],0),MATCH("Value",DataSumMatrix[#Headers],0))) ->  | G101: =IF(TobecopiedtoQ[[#This Row],[Value]]<>"",4,"") -> 
E102: Pb Pressure at Burner Manifold | F102: =INDEX(DataSumMatrix[#Data],MATCH("Pb"&$F$30,DataSumMatrix[Item]&DataSumMatrix[PSI or inWC],0),MATCH("Value",DataSumMatrix[#Headers],0)) ->  | G102: 5
E103: V1 Gas Velocity after SSOV | F103: =IF($F$17="Comb",ROUND(SPOptimize[Optimize Vel],0)&" (ft/s)","") ->  | G103: =IF(TobecopiedtoQ[[#This Row],[Value]]<>"",6,"") -> 
E104: Recommended min sensing pipe size | F104: =IF($F$17="Comb",SPOptimize[Pipe Size]&"""","") ->  | G104: =IF(TobecopiedtoQ[[#This Row],[Value]]<>"",7,"") -> 
E105: D1 Min dist from SKP25 to sensing tap | F105: 5x Pipe Dia | G105: =IF(TobecopiedtoQ[[#This Row],[Value]]<>"",8,"") -> 8
E106: D2 Min dist from sensing tap to next obstruction | F106: 2x Pipe Dia | G106: =IF(TobecopiedtoQ[[#This Row],[Value]]<>"",9,"") -> 9

Sheet Customer List (hidden)
A1: Price List | C1: SCC Sales Person
A2: Sizing Only | C2: Aaron Zeoller
A3: PL-1 | C3: Alan Silver
A4: PL-2 | C4: Bertram Leng
A5: PL-3 | C5: Dan Collado
A6: PL-4 | C6: John Dauer
A7: PL-5 | C7: Ken Laurin
A8: PL-A | C8: Mark Waszczak
A9: PL-B | C9: Scott Fogle
A10: PL-C | C10: Tom Kitsos
A11: PL-D
A12: PL-E
A13: PL-F
A14: PL-G
A15: PL-H
A16: PL-I
A17: PL-J
A18: PL-K
A19: PL-L
A20: PL-M
A21: PL-N
A22: PL-O
A23: PL-P
A24: PL-Q
A25: PL-R
A26: PL-S
A27: PL-T
A28: PL-U
A29: PL-V
A30: PL-W
A31: PL-X
A32: PL-Y

Sheet Data, Calcs, Selections (hidden)
A1: Input Data for Calcs | H1: Firing Rate Control Valve Sizer | T1: SSOV Sizer | AO1: Sensing Pipe Size | AU1: Valve Flange size | BB1: Actuator Selections | BM1: SKP Spring Select | BR1: SKP Accessories | BV1: Low Gas Press Switch Sizer | CE1: High Gas Press Switch Sizer | CL1: Valve Proving Press Switch | CQ1: NEMA 3R Question | CW1: Front End Pipe Size | DB1: Y Strainer | DG1: PIP or 1st Nipple | DM1: Inlet Ball Valve | DN1: not done here
A2: Description | B2: Initial Value | C2: Initial Unit | D2: Useable Value | E2: Useable Unit | H2: Part # | I2: Pipe Size | J2: Port Size | K2: Cv Rank | L2: Cv | M2: Theo P2 (PSIA) | N2: Theo P2 (PSIG) | O2: Theo P2 - Desired P2 (PSIG) | P2: Pipe size code for VA | Q2: Description | R2: Bio Gas? | T2: Part # | U2: QTY | V2: Description | W2: Pipe Size | X2: Max inlet Press (PSIG) | Y2: Max E-Close Press (PSIG) | Z2: Cv | AA2: NEMA 4? | AB2: 2 valves or 1 | AC2: Bio Gas? | AD2: P1 if Comb | AE2: P1 if Trad | AF2: P2 | AG2: Combo train Calc Q (SCFH) | AH2: Trad train Calc Q (SCFH) | AI2: Calc Q - Desired Q | AJ2: Max valve sizes | AK2: Criteria Met: Calc Q - Desired Q | AL2: P2 Result (PSIA) | AM2: Vent Plate PN | AO2: Pipe Size | AP2: internal Diam (in) | AQ2: internal Diam (ft) | AR2: Internal Area (ft^2) | AS2: Velocity (ft/s) | AU2: Part # | AV2: Pipe Size | BB2: Part # | BC2: Act Type | BD2: Voltage | BE2: POC | BF2: Aux | BG2: High Outlet Press | BM2: Part # | BN2: SKP25 type | BO2: P2 Max | BP2: P2 Max - P2 Theo | BR2: Part # | BS2: Qty | BT2: Desc | BV2: Part # | BW2: Man/Auto | BX2: LGP Min Press (PSIG) | BY2: LPG Max Press (PSIG) | BZ2: Max - Inlet Press | CA2: Criteria Met Max - In | CB2: Max - P2 | CC2: Criteria Met Max - P2 | CE2: Part # | CF2: Man/Auto | CG2: Min Manifold Press (PSIG) | CH2: Max Manifold Press (PSIG) | CI2: Max - Manifold Press | CJ2: Criteria Met - Max - IN | CL2: Part # | CM2: Min Inlet Press (PSIG) | CN2: Max Inlet Press (PSIG) | CO2: Max - Inlet Press | CQ2: Does the application require the following pressure switches to be NEMA 3R: "" | CW2: Resulting Front End Pipe Size | CX2: SSOV Size | CY2: Inlet Flange Size | CZ2: Thread Engagment | DB2: Part Number | DC2: Pipe Size | DD2: Length | DE2: Cv | DG2: Part Number | DH2: PIP or NP | DI2: Pipe Size | DJ2: Length | DK2: Cv | DM2: Part Number | DN2: Pipe Size | DO2: Length | DP2: Cv
A3: Supply Pressure to Gas Train (Ps) | B3: =Interface!G28 -> 0 | C3: PSIG | D3: =Table8[[#This Row],[Initial Value]]+14.7 -> 14.7 | H3: VRG10.015U | I3: 0.5 | J3: Full | K3: 1 | L3: 5.19 | M3: =IF($B$7<>0,SQRT(($D$6^2)+(2*$D$9*$D$10*$D$15^2)/(1360^2*FRCVSizer[[#This Row],[Cv]]^2)),"NO VKG") -> NO VKG | N3: =FRCVSizer[[#This Row],[Theo P2 (PSIA)]]-14.7 ->  | O3: =IF(Interface!$G$23=FRCVSizer[[#This Row],[Bio Gas?]],FRCVSizer[[#This Row],[Theo P2 (PSIG)]]-$B$8,"") ->  | P3: 050 | Q3: =FRCVSizer[[#This Row],[Pipe Size]]&""" "&FRCVSizer[[#This Row],[Port Size]]&" port" -> 0.5" Full port | R3: Yes | T3: VGD20.253U | U3: 1 | V3: 1" Double Valve Body, Sq. Flange | W3: 1 | X3: 20 | Y3: 30 | Z3: 11.13 | AA3: No | AB3: 2 | AC3: No | AD3: =SQRT((SSOVSizer[[#This Row],[P2]]^2)+((2*$D$9*$D$10*SSOVSizer[[#This Row],[Combo train Calc Q (SCFH)]]^2)/(1360^2*SSOVSizer[[#This Row],[Cv]]^2))) ->  | AE3: =(SSOVSizer[[#This Row],[P2]]-14.7)*$B$16+14.7 ->  | AF3: =VKGSelection[P2 for SSOV] -> 14.7 | AG3: =IF(SSOVSizer[[#This Row],[P2]]>$D$5,"err P2>P1",1360*SSOVSizer[[#This Row],[Cv]]*SQRT(($D$5+SSOVSizer[[#This Row],[P2]])/($D$9*$D$10))*SQRT(($D$5-SSOVSizer[[#This Row],[P2]])/2)) ->  | AH3: =1360*SSOVSizer[[#This Row],[Cv]]*SQRT((SSOVSizer[[#This Row],[P1 if Trad]]+SSOVSizer[[#This Row],[P2]])/($D$9*$D$10))*SQRT((SSOVSizer[[#This Row],[P1 if Trad]]-SSOVSizer[[#This Row],[P2]])/2) ->  | AI3: =IF(Interface!$F$17="Comb",SSOVSizer[[#This Row],[Combo train Calc Q (SCFH)]]-$D$15,IF(Interface!$F$17="Trad",SSOVSizer[[#This Row],[Trad train Calc Q (SCFH)]]-$D$15,"Train type not selected")) -> Train type not selected | AK3: =IF(AND(SSOVSelection[1 or 2]=SSOVSizer[[#This Row],[2 valves or 1]],SSOVSelection[Bio Gas]=SSOVSizer[[#This Row],[Bio Gas?]],SSOVSelection[NEMA 4]=SSOVSizer[[#This Row],[NEMA 4?]],SSOVSizer[[#This Row],[Calc Q - Desired Q]]<0, SSOVSizer[[#This Row],[Max valve sizes]]="Max"),"Max",IF(AND(SSOVSelection[1 or 2]=SSOVSizer[[#This Row],[2 valves or 1]],SSOVSelection[Bio Gas]=SSOVSizer[[#This Row],[Bio Gas?]],SSOVSelection[NEMA 4]=SSOVSizer[[#This Row],[NEMA 4?]]),SSOVSizer[[#This Row],[Calc Q - Desired Q]],"")) ->  | AL3: =SQRT(($D$5^2)-((2*$D$9*$D$10*$D$15^2)/(1360^2*SSOVSizer[[#This Row],[Cv]]^2))) ->  | AO3: 0.5 | AP3: 0.622 | AQ3: =SPSizer[[#This Row],[internal Diam (in)]]/12 -> 0.05183333333 | AR3: =PI()*(SPSizer[[#This Row],[internal Diam (ft)]]/2)^2 -> 0.002110124882 | AS3: =$D$15/(SPSizer[[#This Row],[Internal Area (ft^2)]]*60*60) ->  | AU3: AGF10.25U | AV3: 1 | BB3: High Press SKP25 not avail in 220VAC | BC3: 25 | BD3: 220 VAC | BE3: Yes | BF3: Yes | BG3: Yes | BM3: ="" ->  | BN3: SKP25.0 | BO3: =8.5/27.72 -> 0.3066378066 | BP3: =SKPSpringSizer[[#This Row],[P2 Max]]-(VKGSelection[P2 for SSOV]-14.7) -> 0.3066378066 | BR3: =IF(Interface!F46="yes","AGA66","") ->  | BS3: =IF(Interface!F46="yes",Interface!F18,0) -> 0 | BT3: NEMA 4 Gaskets | BV3: QPL31.050M00 | BW3: Yes - Manual Reset | BX3: 0 | BY3: 1.19047619 | BZ3: =LGPSSizer[[#This Row],[LPG Max Press (PSIG)]]-$B$5 -> 1.19047619 | CA3: =IF(LGPSSelection[Man/Auto]=LGPSSizer[[#This Row],[Man/Auto]],LGPSSizer[[#This Row],[Max - Inlet Press]],"") ->  | CB3: =LGPSSizer[[#This Row],[LPG Max Press (PSIG)]]-(VKGSelection[P2 for SSOV]-14.7) -> 1.19047619 | CC3: =IF(LGPSSelection[Man/Auto]=LGPSSizer[[#This Row],[Man/Auto]],LGPSSizer[[#This Row],[Max - P2]],"") ->  | CE3: QPH31.050M00 | CF3: Yes - Manual Reset | CG3: 0 | CH3: 0.4329004329 | CI3: =HGPSSizer[[#This Row],[Max Manifold Press (PSIG)]]-$B$6 -> 0.4329004329 | CJ3: =IF(HGPSSelection[Man/Auto]=HGPSSizer[[#This Row],[Man/Auto]],HGPSSizer[[#This Row],[Max - Manifold Press]],"") ->  | CL3: QPH31.050A00 | CM3: 0 | CN3: 1.046176046 | CO3: =VPPSSizer[[#This Row],[Max Inlet Press (PSIG)]]-$B$5 -> 1.046176046 | CQ3: Question | CR3: Low | CS3: High | CT3: VP | CW3: =IF(FrtEndPipeSize[Inlet Flange Size]="NA",FrtEndPipeSize[SSOV Size],FrtEndPipeSize[Inlet Flange Size]) ->  | CX3: =SSOVSelection[Pipe size] ->  | CY3: =InFlange[Pipe Size] -> NA | DB3: ="Y-"&YstrainerIndex[[#This Row],[Pipe Size]] -> Y-0.5 | DC3: 0.5 | DD3: 1 | DE3: 0.1 | DG3: =PIPor1NPIndex[[#This Row],[PIP or NP]]&"-"&PIPor1NPIndex[[#This Row],[Pipe Size]] -> NP-0.5 | DH3: NP | DI3: 0.5 | DJ3: 4 | DK3: 0.1 | DM3: ="Y-"&InBallIndex[[#This Row],[Pipe Size]] -> Y-0.5 | DN3: 0.5 | DO3: 1 | DP3: 0.1
A4: Additional Piping Pressure Drop | B4: =Interface!G36 -> 0 | C4: PSIG | H4: VRG20.025U | I4: 1 | J4: Medium | K4: 2 | L4: 19.41 | M4: =IF($B$7<>0,SQRT(($D$6^2)+(2*$D$9*$D$10*$D$15^2)/(1360^2*FRCVSizer[[#This Row],[Cv]]^2)),"NO VKG") -> NO VKG | N4: =FRCVSizer[[#This Row],[Theo P2 (PSIA)]]-14.7 ->  | O4: =IF(Interface!$G$23=FRCVSizer[[#This Row],[Bio Gas?]],FRCVSizer[[#This Row],[Theo P2 (PSIG)]]-$B$8,"") ->  | P4: 100 | Q4: =FRCVSizer[[#This Row],[Pipe Size]]&""" "&FRCVSizer[[#This Row],[Port Size]]&" port" -> 1" Medium port | R4: Yes | T4: VGD20.253U | U4: 1 | V4: 1" Double Valve Body, Sq. Flange | W4: 1 | X4: 20 | Y4: 30 | Z4: 11.13 | AA4: Yes | AB4: 2 | AC4: No | AD4: =SQRT((SSOVSizer[[#This Row],[P2]]^2)+((2*$D$9*$D$10*SSOVSizer[[#This Row],[Combo train Calc Q (SCFH)]]^2)/(1360^2*SSOVSizer[[#This Row],[Cv]]^2))) ->  | AE4: =(SSOVSizer[[#This Row],[P2]]-14.7)*$B$16+14.7 ->  | AF4: =VKGSelection[P2 for SSOV] -> 14.7 | AG4: =IF(SSOVSizer[[#This Row],[P2]]>$D$5,"err P2>P1",1360*SSOVSizer[[#This Row],[Cv]]*SQRT(($D$5+SSOVSizer[[#This Row],[P2]])/($D$9*$D$10))*SQRT(($D$5-SSOVSizer[[#This Row],[P2]])/2)) ->  | AH4: =1360*SSOVSizer[[#This Row],[Cv]]*SQRT((SSOVSizer[[#This Row],[P1 if Trad]]+SSOVSizer[[#This Row],[P2]])/($D$9*$D$10))*SQRT((SSOVSizer[[#This Row],[P1 if Trad]]-SSOVSizer[[#This Row],[P2]])/2) ->  | AI4: =IF(Interface!$F$17="Comb",SSOVSizer[[#This Row],[Combo train Calc Q (SCFH)]]-$D$15,IF(Interface!$F$17="Trad",SSOVSizer[[#This Row],[Trad train Calc Q (SCFH)]]-$D$15,"Train type not selected")) -> Train type not selected | AK4: =IF(AND(SSOVSelection[1 or 2]=SSOVSizer[[#This Row],[2 valves or 1]],SSOVSelection[Bio Gas]=SSOVSizer[[#This Row],[Bio Gas?]],SSOVSelection[NEMA 4]=SSOVSizer[[#This Row],[NEMA 4?]],SSOVSizer[[#This Row],[Calc Q - Desired Q]]<0, SSOVSizer[[#This Row],[Max valve sizes]]="Max"),"Max",IF(AND(SSOVSelection[1 or 2]=SSOVSizer[[#This Row],[2 valves or 1]],SSOVSelection[Bio Gas]=SSOVSizer[[#This Row],[Bio Gas?]],SSOVSelection[NEMA 4]=SSOVSizer[[#This Row],[NEMA 4?]]),SSOVSizer[[#This Row],[Calc Q - Desired Q]],"")) ->  | AL4: =SQRT(($D$5^2)-((2*$D$9*$D$10*$D$15^2)/(1360^2*SSOVSizer[[#This Row],[Cv]]^2))) ->  | AO4: 0.75 | AP4: 0.824 | AQ4: =SPSizer[[#This Row],[internal Diam (in)]]/12 -> 0.06866666667 | AR4: =PI()*(SPSizer[[#This Row],[internal Diam (ft)]]/2)^2 -> 0.003703239607 | AS4: =$D$15/(SPSizer[[#This Row],[Internal Area (ft^2)]]*60*60) ->  | AU4: AGF10.32U | AV4: 1.25 | BB4: High Press SKP25 not avail in 220VAC | BC4: 25 | BD4: 220 VAC | BE4: Yes | BF4: No | BG4: Yes | BM4: AGA22 | BN4: SKP25.0 | BO4: =48/27.72 -> 1.731601732 | BP4: =SKPSpringSizer[[#This Row],[P2 Max]]-(VKGSelection[P2 for SSOV]-14.7) -> 1.731601732 | BR4: =IF(Table30[[#This Row],[Qty]]>0,"AGA25.2","") ->  | BS4: =IFERROR(IF(AND(Act2Select[2nd Act type]=25,VKGSelection[P2 for SSOV]<((15/27.72)+14.7)),1,0),0) -> 0 | BT4: Damping Orifice | BV4: QPL31.140M00 | BW4: Yes - Manual Reset | BX4: 1.19047619 | BY4: 3.535353535 | BZ4: =LGPSSizer[[#This Row],[LPG Max Press (PSIG)]]-$B$5 -> 3.535353535 | CA4: =IF(LGPSSelection[Man/Auto]=LGPSSizer[[#This Row],[Man/Auto]],LGPSSizer[[#This Row],[Max - Inlet Press]],"") ->  | CB4: =LGPSSizer[[#This Row],[LPG Max Press (PSIG)]]-(VKGSelection[P2 for SSOV]-14.7) -> 3.535353535 | CC4: =IF(LGPSSelection[Man/Auto]=LGPSSizer[[#This Row],[Man/Auto]],LGPSSizer[[#This Row],[Max - P2]],"") ->  | CE4: QPH31.150M00 | CF4: Yes - Manual Reset | CG4: 0.4329004329 | CH4: 1.334776335 | CI4: =HGPSSizer[[#This Row],[Max Manifold Press (PSIG)]]-$B$6 -> 1.334776335 | CJ4: =IF(HGPSSelection[Man/Auto]=HGPSSizer[[#This Row],[Man/Auto]],HGPSSizer[[#This Row],[Max - Manifold Press]],"") ->  | CL4: QPH31.090A00 | CM4: 1.046176046 | CN4: 2.380952381 | CO4: =VPPSSizer[[#This Row],[Max Inlet Press (PSIG)]]-$B$5 -> 2.380952381 | CQ4: Does the application require the pressure switches to be NEMA 3R? Note: SCC Defualt is No | CR4: QP | CS4: QP | CT4: QP | DB4: ="Y-"&YstrainerIndex[[#This Row],[Pipe Size]] -> Y-0.75 | DC4: 0.75 | DD4: 2 | DE4: 0.3 | DG4: =PIPor1NPIndex[[#This Row],[PIP or NP]]&"-"&PIPor1NPIndex[[#This Row],[Pipe Size]] -> NP-0.75 | DH4: NP | DI4: 0.75 | DJ4: 4 | DK4: 0.3 | DM4: ="Y-"&InBallIndex[[#This Row],[Pipe Size]] -> Y-0.75 | DN4: 0.75 | DO4: 2 | DP4: 0.3
A5: Pressure at Gas Valve Inlet (Ps) | B5: =B3-B4 -> 0 | C5: PSIG | D5: =Table8[[#This Row],[Initial Value]]+14.7 -> 14.7 | E5: PSIA | H5: VRG10.020U | I5: 0.75 | J5: Full | K5: 3 | L5: 19.52 | M5: =IF($B$7<>0,SQRT(($D$6^2)+(2*$D$9*$D$10*$D$15^2)/(1360^2*FRCVSizer[[#This Row],[Cv]]^2)),"NO VKG") -> NO VKG | N5: =FRCVSizer[[#This Row],[Theo P2 (PSIA)]]-14.7 ->  | O5: =IF(Interface!$G$23=FRCVSizer[[#This Row],[Bio Gas?]],FRCVSizer[[#This Row],[Theo P2 (PSIG)]]-$B$8,"") ->  | P5: 075 | Q5: =FRCVSizer[[#This Row],[Pipe Size]]&""" "&FRCVSizer[[#This Row],[Port Size]]&" port" -> 0.75" Full port | R5: Yes | T5: VGD20.323U | U5: 1 | V5: 1.25" Double Valve Body, Sq. Flange | W5: 1.25 | X5: 20 | Y5: 30 | Z5: 22.27 | AA5: No | AB5: 2 | AC5: No | AD5: =SQRT((SSOVSizer[[#This Row],[P2]]^2)+((2*$D$9*$D$10*SSOVSizer[[#This Row],[Combo train Calc Q (SCFH)]]^2)/(1360^2*SSOVSizer[[#This Row],[Cv]]^2))) ->  | AE5: =(SSOVSizer[[#This Row],[P2]]-14.7)*$B$16+14.7 ->  | AF5: =VKGSelection[P2 for SSOV] -> 14.7 | AG5: =IF(SSOVSizer[[#This Row],[P2]]>$D$5,"err P2>P1",1360*SSOVSizer[[#This Row],[Cv]]*SQRT(($D$5+SSOVSizer[[#This Row],[P2]])/($D$9*$D$10))*SQRT(($D$5-SSOVSizer[[#This Row],[P2]])/2)) ->  | AH5: =1360*SSOVSizer[[#This Row],[Cv]]*SQRT((SSOVSizer[[#This Row],[P1 if Trad]]+SSOVSizer[[#This Row],[P2]])/($D$9*$D$10))*SQRT((SSOVSizer[[#This Row],[P1 if Trad]]-SSOVSizer[[#This Row],[P2]])/2) ->  | AI5: =IF(Interface!$F$17="Comb",SSOVSizer[[#This Row],[Combo train Calc Q (SCFH)]]-$D$15,IF(Interface!$F$17="Trad",SSOVSizer[[#This Row],[Trad train Calc Q (SCFH)]]-$D$15,"Train type not selected")) -> Train type not selected | AK5: =IF(AND(SSOVSelection[1 or 2]=SSOVSizer[[#This Row],[2 valves or 1]],SSOVSelection[Bio Gas]=SSOVSizer[[#This Row],[Bio Gas?]],SSOVSelection[NEMA 4]=SSOVSizer[[#This Row],[NEMA 4?]],SSOVSizer[[#This Row],[Calc Q - Desired Q]]<0, SSOVSizer[[#This Row],[Max valve sizes]]="Max"),"Max",IF(AND(SSOVSelection[1 or 2]=SSOVSizer[[#This Row],[2 valves or 1]],SSOVSelection[Bio Gas]=SSOVSizer[[#This Row],[Bio Gas?]],SSOVSelection[NEMA 4]=SSOVSizer[[#This Row],[NEMA 4?]]),SSOVSizer[[#This Row],[Calc Q - Desired Q]],"")) ->  | AL5: =SQRT(($D$5^2)-((2*$D$9*$D$10*$D$15^2)/(1360^2*SSOVSizer[[#This Row],[Cv]]^2))) ->  | AO5: 1 | AP5: 1.049 | AQ5: =SPSizer[[#This Row],[internal Diam (in)]]/12 -> 0.08741666667 | AR5: =PI()*(SPSizer[[#This Row],[internal Diam (ft)]]/2)^2 -> 0.006001756419 | AS5: =$D$15/(SPSizer[[#This Row],[Internal Area (ft^2)]]*60*60) ->  | AU5: AGF10.40U | AV5: 1.5 | BB5: High Press SKP25 not avail in 220VAC | BC5: 25 | BD5: 220 VAC | BE5: No | BF5: Yes | BG5: Yes | BM5: AGA23 | BN5: SKP25.0 | BO5: =100/27.72 -> 3.607503608 | BP5: =SKPSpringSizer[[#This Row],[P2 Max]]-(VKGSelection[P2 for SSOV]-14.7) -> 3.607503608 | BR5: =IF(Interface!F53="Yes","AGA63-MRHT","") ->  | BS5: =IF(Interface!F53="Yes",Interface!F18,0) -> 0 | BT5: Heaters | BV5: 803113101 | BW5: Yes - Manual Reset | BX5: 3.535353535 | BY5: 13.2034632 | BZ5: =LGPSSizer[[#This Row],[LPG Max Press (PSIG)]]-$B$5 -> 13.2034632 | CA5: =IF(LGPSSelection[Man/Auto]=LGPSSizer[[#This Row],[Man/Auto]],LGPSSizer[[#This Row],[Max - Inlet Press]],"") ->  | CB5: =LGPSSizer[[#This Row],[LPG Max Press (PSIG)]]-(VKGSelection[P2 for SSOV]-14.7) -> 13.2034632 | CC5: =IF(LGPSSelection[Man/Auto]=LGPSSizer[[#This Row],[Man/Auto]],LGPSSizer[[#This Row],[Max - P2]],"") ->  | CE5: QPH31.050A00 | CF5: Yes - Auto Reset | CG5: 0 | CH5: 0.3607503608 | CI5: =HGPSSizer[[#This Row],[Max Manifold Press (PSIG)]]-$B$6 -> 0.3607503608 | CJ5: =IF(HGPSSelection[Man/Auto]=HGPSSizer[[#This Row],[Man/Auto]],HGPSSizer[[#This Row],[Max - Manifold Press]],"") ->  | CL5: QPH31.280A00 | CM5: 2.380952381 | CN5: 6.024531025 | CO5: =VPPSSizer[[#This Row],[Max Inlet Press (PSIG)]]-$B$5 -> 6.024531025 | CQ5: Does the application require the low and high gas pressure switches to be NEMA 3R? Note: SCC Defualt is No | CR5: QP | CS5: QP | CT5: X | DB5: ="Y-"&YstrainerIndex[[#This Row],[Pipe Size]] -> Y-1 | DC5: 1 | DD5: 3 | DE5: 0.5 | DG5: =PIPor1NPIndex[[#This Row],[PIP or NP]]&"-"&PIPor1NPIndex[[#This Row],[Pipe Size]] -> NP-1 | DH5: NP | DI5: 1 | DJ5: 4 | DK5: 0.5 | DM5: ="Y-"&InBallIndex[[#This Row],[Pipe Size]] -> Y-1 | DN5: 1 | DO5: 3 | DP5: 0.5
A6: HF Burner Manifold Pressure (Pb) | B6: =Interface!G31 -> 0 | C6: PSIG | D6: =Table8[[#This Row],[Initial Value]]+14.7 -> 14.7 | E6: PSIA | H6: VRG30.040U | I6: 1.5 | J6: Reduced | K6: 4 | L6: 30.08 | M6: =IF($B$7<>0,SQRT(($D$6^2)+(2*$D$9*$D$10*$D$15^2)/(1360^2*FRCVSizer[[#This Row],[Cv]]^2)),"NO VKG") -> NO VKG | N6: =FRCVSizer[[#This Row],[Theo P2 (PSIA)]]-14.7 ->  | O6: =IF(Interface!$G$23=FRCVSizer[[#This Row],[Bio Gas?]],FRCVSizer[[#This Row],[Theo P2 (PSIG)]]-$B$8,"") ->  | P6: 150 | Q6: =FRCVSizer[[#This Row],[Pipe Size]]&""" "&FRCVSizer[[#This Row],[Port Size]]&" port" -> 1.5" Reduced port | R6: Yes | T6: VGD20.323U | U6: 1 | V6: 1.25" Double Valve Body, Sq. Flange | W6: 1.25 | X6: 20 | Y6: 30 | Z6: 22.27 | AA6: Yes | AB6: 2 | AC6: No | AD6: =SQRT((SSOVSizer[[#This Row],[P2]]^2)+((2*$D$9*$D$10*SSOVSizer[[#This Row],[Combo train Calc Q (SCFH)]]^2)/(1360^2*SSOVSizer[[#This Row],[Cv]]^2))) ->  | AE6: =(SSOVSizer[[#This Row],[P2]]-14.7)*$B$16+14.7 ->  | AF6: =VKGSelection[P2 for SSOV] -> 14.7 | AG6: =IF(SSOVSizer[[#This Row],[P2]]>$D$5,"err P2>P1",1360*SSOVSizer[[#This Row],[Cv]]*SQRT(($D$5+SSOVSizer[[#This Row],[P2]])/($D$9*$D$10))*SQRT(($D$5-SSOVSizer[[#This Row],[P2]])/2)) ->  | AH6: =1360*SSOVSizer[[#This Row],[Cv]]*SQRT((SSOVSizer[[#This Row],[P1 if Trad]]+SSOVSizer[[#This Row],[P2]])/($D$9*$D$10))*SQRT((SSOVSizer[[#This Row],[P1 if Trad]]-SSOVSizer[[#This Row],[P2]])/2) ->  | AI6: =IF(Interface!$F$17="Comb",SSOVSizer[[#This Row],[Combo train Calc Q (SCFH)]]-$D$15,IF(Interface!$F$17="Trad",SSOVSizer[[#This Row],[Trad train Calc Q (SCFH)]]-$D$15,"Train type not selected")) -> Train type not selected | AK6: =IF(AND(SSOVSelection[1 or 2]=SSOVSizer[[#This Row],[2 valves or 1]],SSOVSelection[Bio Gas]=SSOVSizer[[#This Row],[Bio Gas?]],SSOVSelection[NEMA 4]=SSOVSizer[[#This Row],[NEMA 4?]],SSOVSizer[[#This Row],[Calc Q - Desired Q]]<0, SSOVSizer[[#This Row],[Max valve sizes]]="Max"),"Max",IF(AND(SSOVSelection[1 or 2]=SSOVSizer[[#This Row],[2 valves or 1]],SSOVSelection[Bio Gas]=SSOVSizer[[#This Row],[Bio Gas?]],SSOVSelection[NEMA 4]=SSOVSizer[[#This Row],[NEMA 4?]]),SSOVSizer[[#This Row],[Calc Q - Desired Q]],"")) ->  | AL6: =SQRT(($D$5^2)-((2*$D$9*$D$10*$D$15^2)/(1360^2*SSOVSizer[[#This Row],[Cv]]^2))) ->  | AO6: 1.25 | AP6: 1.38 | AQ6: =SPSizer[[#This Row],[internal Diam (in)]]/12 -> 0.115 | AR6: =PI()*(SPSizer[[#This Row],[internal Diam (ft)]]/2)^2 -> 0.01038689071 | AS6: =$D$15/(SPSizer[[#This Row],[Internal Area (ft^2)]]*60*60) ->  | AU6: AGF10.50U | AV6: 2 | BB6: High Press SKP25 not avail in 220VAC | BC6: 25 | BD6: 220 VAC | BE6: No | BF6: No | BG6: Yes | BM6: ="" ->  | BN6: SKP25.4 | BO6: 10 | BP6: =SKPSpringSizer[[#This Row],[P2 Max]]-(VKGSelection[P2 for SSOV]-14.7) -> 10 | BV6: 803113102 | BW6: Yes - Manual Reset | BX6: 13.2034632 | BY6: 28.86002886 | BZ6: =LGPSSizer[[#This Row],[LPG Max Press (PSIG)]]-$B$5 -> 28.86002886 | CA6: =IF(LGPSSelection[Man/Auto]=LGPSSizer[[#This Row],[Man/Auto]],LGPSSizer[[#This Row],[Max - Inlet Press]],"") ->  | CB6: =LGPSSizer[[#This Row],[LPG Max Press (PSIG)]]-(VKGSelection[P2 for SSOV]-14.7) -> 28.86002886 | CC6: =IF(LGPSSelection[Man/Auto]=LGPSSizer[[#This Row],[Man/Auto]],LGPSSizer[[#This Row],[Max - P2]],"") ->  | CE6: QPH31.090A00 | CF6: Yes - Auto Reset | CG6: 0.3607503608 | CH6: 0.7936507937 | CI6: =HGPSSizer[[#This Row],[Max Manifold Press (PSIG)]]-$B$6 -> 0.7936507937 | CJ6: =IF(HGPSSelection[Man/Auto]=HGPSSizer[[#This Row],[Man/Auto]],HGPSSizer[[#This Row],[Max - Manifold Press]],"") ->  | CL6: 803113401 | CM6: 6.024531025 | CN6: 13.2034632 | CO6: =VPPSSizer[[#This Row],[Max Inlet Press (PSIG)]]-$B$5 -> 13.2034632 | CQ6: Does the application require the low gas pressure switch to be NEMA 3R? Note: SCC Defualt is No | CR6: QP | CS6: X | CT6: X | CW6: Thread engagment Table | CX6: these are not right numbers | DB6: ="Y-"&YstrainerIndex[[#This Row],[Pipe Size]] -> Y-1.25 | DC6: 1.25 | DD6: 4 | DE6: 0.7 | DG6: =PIPor1NPIndex[[#This Row],[PIP or NP]]&"-"&PIPor1NPIndex[[#This Row],[Pipe Size]] -> NP-1.25 | DH6: NP | DI6: 1.25 | DJ6: 4 | DK6: 0.7 | DM6: ="Y-"&InBallIndex[[#This Row],[Pipe Size]] -> Y-1.25 | DN6: 1.25 | DO6: 4 | DP6: 0.7
A7: Desired FRCV Pressure Drop | B7: =Interface!G35 -> 0 | C7: PSIG | D7: =Table8[[#This Row],[Initial Value]]+14.7 -> 14.7 | E7: PSIA | H7: VRG10.025U | I7: 1 | J7: Full | K7: 5 | L7: 31.44 | M7: =IF($B$7<>0,SQRT(($D$6^2)+(2*$D$9*$D$10*$D$15^2)/(1360^2*FRCVSizer[[#This Row],[Cv]]^2)),"NO VKG") -> NO VKG | N7: =FRCVSizer[[#This Row],[Theo P2 (PSIA)]]-14.7 ->  | O7: =IF(Interface!$G$23=FRCVSizer[[#This Row],[Bio Gas?]],FRCVSizer[[#This Row],[Theo P2 (PSIG)]]-$B$8,"") ->  | P7: 100 | Q7: =FRCVSizer[[#This Row],[Pipe Size]]&""" "&FRCVSizer[[#This Row],[Port Size]]&" port" -> 1" Full port | R7: Yes | T7: VGD20.403U | U7: 1 | V7: 1.5" Double Valve Body, Sq. Flange | W7: 1.5 | X7: 20 | Y7: 30 | Z7: 33.75 | AA7: No | AB7: 2 | AC7: No | AD7: =SQRT((SSOVSizer[[#This Row],[P2]]^2)+((2*$D$9*$D$10*SSOVSizer[[#This Row],[Combo train Calc Q (SCFH)]]^2)/(1360^2*SSOVSizer[[#This Row],[Cv]]^2))) ->  | AE7: =(SSOVSizer[[#This Row],[P2]]-14.7)*$B$16+14.7 ->  | AF7: =VKGSelection[P2 for SSOV] -> 14.7 | AG7: =IF(SSOVSizer[[#This Row],[P2]]>$D$5,"err P2>P1",1360*SSOVSizer[[#This Row],[Cv]]*SQRT(($D$5+SSOVSizer[[#This Row],[P2]])/($D$9*$D$10))*SQRT(($D$5-SSOVSizer[[#This Row],[P2]])/2)) ->  | AH7: =1360*SSOVSizer[[#This Row],[Cv]]*SQRT((SSOVSizer[[#This Row],[P1 if Trad]]+SSOVSizer[[#This Row],[P2]])/($D$9*$D$10))*SQRT((SSOVSizer[[#This Row],[P1 if Trad]]-SSOVSizer[[#This Row],[P2]])/2) ->  | AI7: =IF(Interface!$F$17="Comb",SSOVSizer[[#This Row],[Combo train Calc Q (SCFH)]]-$D$15,IF(Interface!$F$17="Trad",SSOVSizer[[#This Row],[Trad train Calc Q (SCFH)]]-$D$15,"Train type not selected")) -> Train type not selected | AK7: =IF(AND(SSOVSelection[1 or 2]=SSOVSizer[[#This Row],[2 valves or 1]],SSOVSelection[Bio Gas]=SSOVSizer[[#This Row],[Bio Gas?]],SSOVSelection[NEMA 4]=SSOVSizer[[#This Row],[NEMA 4?]],SSOVSizer[[#This Row],[Calc Q - Desired Q]]<0, SSOVSizer[[#This Row],[Max valve sizes]]="Max"),"Max",IF(AND(SSOVSelection[1 or 2]=SSOVSizer[[#This Row],[2 valves or 1]],SSOVSelection[Bio Gas]=SSOVSizer[[#This Row],[Bio Gas?]],SSOVSelection[NEMA 4]=SSOVSizer[[#This Row],[NEMA 4?]]),SSOVSizer[[#This Row],[Calc Q - Desired Q]],"")) ->  | AL7: =SQRT(($D$5^2)-((2*$D$9*$D$10*$D$15^2)/(1360^2*SSOVSizer[[#This Row],[Cv]]^2))) ->  | AO7: 1.5 | AP7: 1.61 | AQ7: =SPSizer[[#This Row],[internal Diam (in)]]/12 -> 0.1341666667 | AR7: =PI()*(SPSizer[[#This Row],[internal Diam (ft)]]/2)^2 -> 0.01413771236 | AS7: =$D$15/(SPSizer[[#This Row],[Internal Area (ft^2)]]*60*60) ->  | BB7: SKP15.011U1 | BC7: 15 | BD7: 120 VAC | BE7: Yes | BF7: No | BG7: No | BM7: AGA23 | BN7: SKP25.4 | BO7: 20 | BP7: =SKPSpringSizer[[#This Row],[P2 Max]]-(VKGSelection[P2 for SSOV]-14.7) -> 20 | BV7: QPL31.050A00 | BW7: Yes - Auto Reset | BX7: 0 | BY7: 0.974025974 | BZ7: =LGPSSizer[[#This Row],[LPG Max Press (PSIG)]]-$B$5 -> 0.974025974 | CA7: =IF(LGPSSelection[Man/Auto]=LGPSSizer[[#This Row],[Man/Auto]],LGPSSizer[[#This Row],[Max - Inlet Press]],"") ->  | CB7: =LGPSSizer[[#This Row],[LPG Max Press (PSIG)]]-(VKGSelection[P2 for SSOV]-14.7) -> 0.974025974 | CC7: =IF(LGPSSelection[Man/Auto]=LGPSSizer[[#This Row],[Man/Auto]],LGPSSizer[[#This Row],[Max - P2]],"") ->  | CE7: QPH31.280A00 | CF7: Yes - Auto Reset | CG7: 0.7936507937 | CH7: 2.02020202 | CI7: =HGPSSizer[[#This Row],[Max Manifold Press (PSIG)]]-$B$6 -> 2.02020202 | CJ7: =IF(HGPSSelection[Man/Auto]=HGPSSizer[[#This Row],[Man/Auto]],HGPSSizer[[#This Row],[Max - Manifold Press]],"") ->  | CL7: 803113402 | CM7: 13.2034632 | CN7: 28.86002886 | CO7: =VPPSSizer[[#This Row],[Max Inlet Press (PSIG)]]-$B$5 -> 28.86002886 | CQ7: Does the application require the high gas and valve proving pressure switches to be NEMA 3R? Note: SCC Defualt is No | CR7: X | CS7: QP | CT7: QP | CW7: Pipe size | CX7: Thread Engagment | DB7: ="Y-"&YstrainerIndex[[#This Row],[Pipe Size]] -> Y-1.5 | DC7: 1.5 | DD7: 5 | DE7: 0.9 | DG7: =PIPor1NPIndex[[#This Row],[PIP or NP]]&"-"&PIPor1NPIndex[[#This Row],[Pipe Size]] -> NP-1.5 | DH7: NP | DI7: 1.5 | DJ7: 4 | DK7: 0.9 | DM7: ="Y-"&InBallIndex[[#This Row],[Pipe Size]] -> Y-1.5 | DN7: 1.5 | DO7: 5 | DP7: 0.9
A8: Desired press at SSOV outlet | B8: =SUM(B6:B7) -> 0 | C8: PSIG | D8: =Table8[[#This Row],[Initial Value]]+14.7 -> 14.7 | E8: PSIA | H8: VRG20.032U | I8: 1.25 | J8: Medium | K8: 6 | L8: 41.16 | M8: =IF($B$7<>0,SQRT(($D$6^2)+(2*$D$9*$D$10*$D$15^2)/(1360^2*FRCVSizer[[#This Row],[Cv]]^2)),"NO VKG") -> NO VKG | N8: =FRCVSizer[[#This Row],[Theo P2 (PSIA)]]-14.7 ->  | O8: =IF(Interface!$G$23=FRCVSizer[[#This Row],[Bio Gas?]],FRCVSizer[[#This Row],[Theo P2 (PSIG)]]-$B$8,"") ->  | P8: 125 | Q8: =FRCVSizer[[#This Row],[Pipe Size]]&""" "&FRCVSizer[[#This Row],[Port Size]]&" port" -> 1.25" Medium port | R8: Yes | T8: VGD20.403U | U8: 1 | V8: 1.5" Double Valve Body, Sq. Flange | W8: 1.5 | X8: 20 | Y8: 30 | Z8: 33.75 | AA8: Yes | AB8: 2 | AC8: No | AD8: =SQRT((SSOVSizer[[#This Row],[P2]]^2)+((2*$D$9*$D$10*SSOVSizer[[#This Row],[Combo train Calc Q (SCFH)]]^2)/(1360^2*SSOVSizer[[#This Row],[Cv]]^2))) ->  | AE8: =(SSOVSizer[[#This Row],[P2]]-14.7)*$B$16+14.7 ->  | AF8: =VKGSelection[P2 for SSOV] -> 14.7 | AG8: =IF(SSOVSizer[[#This Row],[P2]]>$D$5,"err P2>P1",1360*SSOVSizer[[#This Row],[Cv]]*SQRT(($D$5+SSOVSizer[[#This Row],[P2]])/($D$9*$D$10))*SQRT(($D$5-SSOVSizer[[#This Row],[P2]])/2)) ->  | AH8: =1360*SSOVSizer[[#This Row],[Cv]]*SQRT((SSOVSizer[[#This Row],[P1 if Trad]]+SSOVSizer[[#This Row],[P2]])/($D$9*$D$10))*SQRT((SSOVSizer[[#This Row],[P1 if Trad]]-SSOVSizer[[#This Row],[P2]])/2) ->  | AI8: =IF(Interface!$F$17="Comb",SSOVSizer[[#This Row],[Combo train Calc Q (SCFH)]]-$D$15,IF(Interface!$F$17="Trad",SSOVSizer[[#This Row],[Trad train Calc Q (SCFH)]]-$D$15,"Train type not selected")) -> Train type not selected | AK8: =IF(AND(SSOVSelection[1 or 2]=SSOVSizer[[#This Row],[2 valves or 1]],SSOVSelection[Bio Gas]=SSOVSizer[[#This Row],[Bio Gas?]],SSOVSelection[NEMA 4]=SSOVSizer[[#This Row],[NEMA 4?]],SSOVSizer[[#This Row],[Calc Q - Desired Q]]<0, SSOVSizer[[#This Row],[Max valve sizes]]="Max"),"Max",IF(AND(SSOVSelection[1 or 2]=SSOVSizer[[#This Row],[2 valves or 1]],SSOVSelection[Bio Gas]=SSOVSizer[[#This Row],[Bio Gas?]],SSOVSelection[NEMA 4]=SSOVSizer[[#This Row],[NEMA 4?]]),SSOVSizer[[#This Row],[Calc Q - Desired Q]],"")) ->  | AL8: =SQRT(($D$5^2)-((2*$D$9*$D$10*$D$15^2)/(1360^2*SSOVSizer[[#This Row],[Cv]]^2))) ->  | AO8: 2 | AP8: 2.067 | AQ8: =SPSizer[[#This Row],[internal Diam (in)]]/12 -> 0.17225 | AR8: =PI()*(SPSizer[[#This Row],[internal Diam (ft)]]/2)^2 -> 0.0233028126 | AS8: =$D$15/(SPSizer[[#This Row],[Internal Area (ft^2)]]*60*60) ->  | AU8: Inlet Flange | BB8: SKP15.012U1 | BC8: 15 | BD8: 120 VAC | BE8: Yes | BF8: Yes | BG8: No | BV8: QPL31.075A00 | BW8: Yes - Auto Reset | BX8: 0.974025974 | BY8: 2.128427128 | BZ8: =LGPSSizer[[#This Row],[LPG Max Press (PSIG)]]-$B$5 -> 2.128427128 | CA8: =IF(LGPSSelection[Man/Auto]=LGPSSizer[[#This Row],[Man/Auto]],LGPSSizer[[#This Row],[Max - Inlet Press]],"") ->  | CB8: =LGPSSizer[[#This Row],[LPG Max Press (PSIG)]]-(VKGSelection[P2 for SSOV]-14.7) -> 2.128427128 | CC8: =IF(LGPSSelection[Man/Auto]=LGPSSizer[[#This Row],[Man/Auto]],LGPSSizer[[#This Row],[Max - P2]],"") ->  | CE8: 803113401 | CF8: Yes - Auto Reset | CG8: 2.02020202 | CH8: 4.401154401 | CI8: =HGPSSizer[[#This Row],[Max Manifold Press (PSIG)]]-$B$6 -> 4.401154401 | CJ8: =IF(HGPSSelection[Man/Auto]=HGPSSizer[[#This Row],[Man/Auto]],HGPSSizer[[#This Row],[Max - Manifold Press]],"") ->  | CQ8: Does the application require the valve proving pressure switch to be NEMA 3R? Note: SCC Defualt is No | CR8: X | CS8: X | CT8: QP | CW8: 0.25 | CX8: 0.072875 | DB8: ="Y-"&YstrainerIndex[[#This Row],[Pipe Size]] -> Y-2 | DC8: 2 | DD8: 6 | DE8: 1.1 | DG8: =PIPor1NPIndex[[#This Row],[PIP or NP]]&"-"&PIPor1NPIndex[[#This Row],[Pipe Size]] -> NP-2 | DH8: NP | DI8: 2 | DJ8: 4 | DK8: 1.1 | DM8: ="Y-"&InBallIndex[[#This Row],[Pipe Size]] -> Y-2 | DN8: 2 | DO8: 6 | DP8: 1.1
A9: Gas Specific Gravity | D9: =INDEX(FuelList[#Data],MATCH(Interface!$F$23,FuelList[Fuel],0),MATCH("SG",FuelList[#Headers],0)) ->  | H9: VRG30.050U | I9: 2 | J9: Reduced | K9: 7 | L9: 62.05 | M9: =IF($B$7<>0,SQRT(($D$6^2)+(2*$D$9*$D$10*$D$15^2)/(1360^2*FRCVSizer[[#This Row],[Cv]]^2)),"NO VKG") -> NO VKG | N9: =FRCVSizer[[#This Row],[Theo P2 (PSIA)]]-14.7 ->  | O9: =IF(Interface!$G$23=FRCVSizer[[#This Row],[Bio Gas?]],FRCVSizer[[#This Row],[Theo P2 (PSIG)]]-$B$8,"") ->  | P9: 200 | Q9: =FRCVSizer[[#This Row],[Pipe Size]]&""" "&FRCVSizer[[#This Row],[Port Size]]&" port" -> 2" Reduced port | R9: Yes | T9: VGD20.503U | U9: 1 | V9: 2" Double Valve Body, Sq. Flange | W9: 2 | X9: 20 | Y9: 30 | Z9: 41.57 | AA9: No | AB9: 2 | AC9: No | AD9: =SQRT((SSOVSizer[[#This Row],[P2]]^2)+((2*$D$9*$D$10*SSOVSizer[[#This Row],[Combo train Calc Q (SCFH)]]^2)/(1360^2*SSOVSizer[[#This Row],[Cv]]^2))) ->  | AE9: =(SSOVSizer[[#This Row],[P2]]-14.7)*$B$16+14.7 ->  | AF9: =VKGSelection[P2 for SSOV] -> 14.7 | AG9: =IF(SSOVSizer[[#This Row],[P2]]>$D$5,"err P2>P1",1360*SSOVSizer[[#This Row],[Cv]]*SQRT(($D$5+SSOVSizer[[#This Row],[P2]])/($D$9*$D$10))*SQRT(($D$5-SSOVSizer[[#This Row],[P2]])/2)) ->  | AH9: =1360*SSOVSizer[[#This Row],[Cv]]*SQRT((SSOVSizer[[#This Row],[P1 if Trad]]+SSOVSizer[[#This Row],[P2]])/($D$9*$D$10))*SQRT((SSOVSizer[[#This Row],[P1 if Trad]]-SSOVSizer[[#This Row],[P2]])/2) ->  | AI9: =IF(Interface!$F$17="Comb",SSOVSizer[[#This Row],[Combo train Calc Q (SCFH)]]-$D$15,IF(Interface!$F$17="Trad",SSOVSizer[[#This Row],[Trad train Calc Q (SCFH)]]-$D$15,"Train type not selected")) -> Train type not selected | AK9: =IF(AND(SSOVSelection[1 or 2]=SSOVSizer[[#This Row],[2 valves or 1]],SSOVSelection[Bio Gas]=SSOVSizer[[#This Row],[Bio Gas?]],SSOVSelection[NEMA 4]=SSOVSizer[[#This Row],[NEMA 4?]],SSOVSizer[[#This Row],[Calc Q - Desired Q]]<0, SSOVSizer[[#This Row],[Max valve sizes]]="Max"),"Max",IF(AND(SSOVSelection[1 or 2]=SSOVSizer[[#This Row],[2 valves or 1]],SSOVSelection[Bio Gas]=SSOVSizer[[#This Row],[Bio Gas?]],SSOVSelection[NEMA 4]=SSOVSizer[[#This Row],[NEMA 4?]]),SSOVSizer[[#This Row],[Calc Q - Desired Q]],"")) ->  | AL9: =SQRT(($D$5^2)-((2*$D$9*$D$10*$D$15^2)/(1360^2*SSOVSizer[[#This Row],[Cv]]^2))) ->  | AO9: 2.5 | AP9: 2.469 | AQ9: =SPSizer[[#This Row],[internal Diam (in)]]/12 -> 0.20575 | AR9: =PI()*(SPSizer[[#This Row],[internal Diam (ft)]]/2)^2 -> 0.03324830954 | AS9: =$D$15/(SPSizer[[#This Row],[Internal Area (ft^2)]]*60*60) ->  | AU9: Part # | AV9: Pipe Size | BB9: SKP15.012U1 | BC9: 15 | BD9: 120 VAC | BE9: No | BF9: Yes | BG9: No | BM9: SKP25 Spring Select | BV9: QPL31.280A00 | BW9: Yes - Auto Reset | BX9: 2.128427128 | BY9: 6.024531025 | BZ9: =LGPSSizer[[#This Row],[LPG Max Press (PSIG)]]-$B$5 -> 6.024531025 | CA9: =IF(LGPSSelection[Man/Auto]=LGPSSizer[[#This Row],[Man/Auto]],LGPSSizer[[#This Row],[Max - Inlet Press]],"") ->  | CB9: =LGPSSizer[[#This Row],[LPG Max Press (PSIG)]]-(VKGSelection[P2 for SSOV]-14.7) -> 6.024531025 | CC9: =IF(LGPSSelection[Man/Auto]=LGPSSizer[[#This Row],[Man/Auto]],LGPSSizer[[#This Row],[Max - P2]],"") ->  | CE9: 803113402 | CF9: Yes - Auto Reset | CG9: 4.401154401 | CH9: 10 | CI9: =HGPSSizer[[#This Row],[Max Manifold Press (PSIG)]]-$B$6 -> 10 | CJ9: =IF(HGPSSelection[Man/Auto]=HGPSSizer[[#This Row],[Man/Auto]],HGPSSizer[[#This Row],[Max - Manifold Press]],"") ->  | CL9: Valve Proving Press Switch Selection | CQ9: Hide | CR9: X | CS9: X | CT9: X | CW9: 0.375 | CX9: 0.1093125 | DB9: ="Y-"&YstrainerIndex[[#This Row],[Pipe Size]] -> Y-2.5 | DC9: 2.5 | DD9: 7 | DE9: 1.3 | DG9: =PIPor1NPIndex[[#This Row],[PIP or NP]]&"-"&PIPor1NPIndex[[#This Row],[Pipe Size]] -> NP-2.5 | DH9: NP | DI9: 2.5 | DJ9: 4 | DK9: 1.3 | DM9: ="Y-"&InBallIndex[[#This Row],[Pipe Size]] -> Y-2.5 | DN9: 2.5 | DO9: 7 | DP9: 1.3
A10: Gas Flow Temperature (assumed) (Tf) | B10: 60 | C10: Deg F | D10: =Table8[[#This Row],[Initial Value]]+460 -> 520 | E10: Deg R | H10: VRG10.032U | I10: 1.25 | J10: Full | K10: 8 | L10: 74.81 | M10: =IF($B$7<>0,SQRT(($D$6^2)+(2*$D$9*$D$10*$D$15^2)/(1360^2*FRCVSizer[[#This Row],[Cv]]^2)),"NO VKG") -> NO VKG | N10: =FRCVSizer[[#This Row],[Theo P2 (PSIA)]]-14.7 ->  | O10: =IF(Interface!$G$23=FRCVSizer[[#This Row],[Bio Gas?]],FRCVSizer[[#This Row],[Theo P2 (PSIG)]]-$B$8,"") ->  | P10: 125 | Q10: =FRCVSizer[[#This Row],[Pipe Size]]&""" "&FRCVSizer[[#This Row],[Port Size]]&" port" -> 1.25" Full port | R10: Yes | T10: VGD20.503U | U10: 1 | V10: 2" Double Valve Body, Sq. Flange | W10: 2 | X10: 20 | Y10: 30 | Z10: 41.57 | AA10: Yes | AB10: 2 | AC10: No | AD10: =SQRT((SSOVSizer[[#This Row],[P2]]^2)+((2*$D$9*$D$10*SSOVSizer[[#This Row],[Combo train Calc Q (SCFH)]]^2)/(1360^2*SSOVSizer[[#This Row],[Cv]]^2))) ->  | AE10: =(SSOVSizer[[#This Row],[P2]]-14.7)*$B$16+14.7 ->  | AF10: =VKGSelection[P2 for SSOV] -> 14.7 | AG10: =IF(SSOVSizer[[#This Row],[P2]]>$D$5,"err P2>P1",1360*SSOVSizer[[#This Row],[Cv]]*SQRT(($D$5+SSOVSizer[[#This Row],[P2]])/($D$9*$D$10))*SQRT(($D$5-SSOVSizer[[#This Row],[P2]])/2)) ->  | AH10: =1360*SSOVSizer[[#This Row],[Cv]]*SQRT((SSOVSizer[[#This Row],[P1 if Trad]]+SSOVSizer[[#This Row],[P2]])/($D$9*$D$10))*SQRT((SSOVSizer[[#This Row],[P1 if Trad]]-SSOVSizer[[#This Row],[P2]])/2) ->  | AI10: =IF(Interface!$F$17="Comb",SSOVSizer[[#This Row],[Combo train Calc Q (SCFH)]]-$D$15,IF(Interface!$F$17="Trad",SSOVSizer[[#This Row],[Trad train Calc Q (SCFH)]]-$D$15,"Train type not selected")) -> Train type not selected | AK10: =IF(AND(SSOVSelection[1 or 2]=SSOVSizer[[#This Row],[2 valves or 1]],SSOVSelection[Bio Gas]=SSOVSizer[[#This Row],[Bio Gas?]],SSOVSelection[NEMA 4]=SSOVSizer[[#This Row],[NEMA 4?]],SSOVSizer[[#This Row],[Calc Q - Desired Q]]<0, SSOVSizer[[#This Row],[Max valve sizes]]="Max"),"Max",IF(AND(SSOVSelection[1 or 2]=SSOVSizer[[#This Row],[2 valves or 1]],SSOVSelection[Bio Gas]=SSOVSizer[[#This Row],[Bio Gas?]],SSOVSelection[NEMA 4]=SSOVSizer[[#This Row],[NEMA 4?]]),SSOVSizer[[#This Row],[Calc Q - Desired Q]],"")) ->  | AL10: =SQRT(($D$5^2)-((2*$D$9*$D$10*$D$15^2)/(1360^2*SSOVSizer[[#This Row],[Cv]]^2))) ->  | AO10: 3 | AP10: 3.068 | AQ10: =SPSizer[[#This Row],[internal Diam (in)]]/12 -> 0.2556666667 | AR10: =PI()*(SPSizer[[#This Row],[internal Diam (ft)]]/2)^2 -> 0.05133790002 | AS10: =$D$15/(SPSizer[[#This Row],[Internal Area (ft^2)]]*60*60) ->  | AU10: =IFERROR(INDEX(FlangeSize[#Data],MATCH(InFlange[Pipe Size],FlangeSize[Pipe Size],0),MATCH(InFlange[[#Headers],[Part '#]],FlangeSize[#Headers],0)),"") ->  | AV10: =IF(LEFT(SSOVSelection[Part '#],5)="VGD20",Interface!$F$54,"NA") -> NA | BB10: SKP15.012U2 | BC10: 15 | BD10: 220 VAC | BE10: Yes | BF10: Yes | BG10: No | BM10: Part # | BN10: 2nd Act SKP Type | BO10: Pb Max - Pb Theo Opt | BV10: 803113301 | BW10: Yes - Auto Reset | BX10: 6.024531025 | BY10: 13.2034632 | BZ10: =LGPSSizer[[#This Row],[LPG Max Press (PSIG)]]-$B$5 -> 13.2034632 | CA10: =IF(LGPSSelection[Man/Auto]=LGPSSizer[[#This Row],[Man/Auto]],LGPSSizer[[#This Row],[Max - Inlet Press]],"") ->  | CB10: =LGPSSizer[[#This Row],[LPG Max Press (PSIG)]]-(VKGSelection[P2 for SSOV]-14.7) -> 13.2034632 | CC10: =IF(LGPSSelection[Man/Auto]=LGPSSizer[[#This Row],[Man/Auto]],LGPSSizer[[#This Row],[Max - P2]],"") ->  | CL10: Part # | CM10: Opt Max - In | CN10: Yes or No | CQ10: Does the application require the low gas and valve proving pressure switches to be NEMA 3R? Note: SCC Defualt is No | CR10: QP | CS10: X | CT10: QP | CW10: 0.5 | CX10: 0.14575 | DB10: ="Y-"&YstrainerIndex[[#This Row],[Pipe Size]] -> Y-3 | DC10: 3 | DD10: 8 | DE10: 1.5 | DG10: =PIPor1NPIndex[[#This Row],[PIP or NP]]&"-"&PIPor1NPIndex[[#This Row],[Pipe Size]] -> NP-3 | DH10: NP | DI10: 3 | DJ10: 4 | DK10: 1.5 | DM10: ="Y-"&InBallIndex[[#This Row],[Pipe Size]] -> Y-3 | DN10: 3 | DO10: 8 | DP10: 1.5
A11: Gas Heating Value | D11: =INDEX(FuelList[#Data],MATCH(Interface!$F$23,FuelList[Fuel],0),MATCH("HV (BTU/SCF)",FuelList[#Headers],0)) ->  | E11: BTU/SCFH | H11: VRG30.065U | I11: 2.5 | J11: Reduced | K11: 9 | L11: 76.09 | M11: =IF($B$7<>0,SQRT(($D$6^2)+(2*$D$9*$D$10*$D$15^2)/(1360^2*FRCVSizer[[#This Row],[Cv]]^2)),"NO VKG") -> NO VKG | N11: =FRCVSizer[[#This Row],[Theo P2 (PSIA)]]-14.7 ->  | O11: =IF(Interface!$G$23=FRCVSizer[[#This Row],[Bio Gas?]],FRCVSizer[[#This Row],[Theo P2 (PSIG)]]-$B$8,"") ->  | P11: 250 | Q11: =FRCVSizer[[#This Row],[Pipe Size]]&""" "&FRCVSizer[[#This Row],[Port Size]]&" port" -> 2.5" Reduced port | R11: Yes | T11: VGD40.065U | U11: 1 | V11: 2.5" Double Valve Body, NPT - Gas | W11: 2.5 | X11: 10 | Y11: 75 | Z11: 72.62 | AA11: No | AB11: 2 | AC11: No | AD11: =SQRT((SSOVSizer[[#This Row],[P2]]^2)+((2*$D$9*$D$10*SSOVSizer[[#This Row],[Combo train Calc Q (SCFH)]]^2)/(1360^2*SSOVSizer[[#This Row],[Cv]]^2))) ->  | AE11: =(SSOVSizer[[#This Row],[P2]]-14.7)*$B$16+14.7 ->  | AF11: =VKGSelection[P2 for SSOV] -> 14.7 | AG11: =IF(SSOVSizer[[#This Row],[P2]]>$D$5,"err P2>P1",1360*SSOVSizer[[#This Row],[Cv]]*SQRT(($D$5+SSOVSizer[[#This Row],[P2]])/($D$9*$D$10))*SQRT(($D$5-SSOVSizer[[#This Row],[P2]])/2)) ->  | AH11: =1360*SSOVSizer[[#This Row],[Cv]]*SQRT((SSOVSizer[[#This Row],[P1 if Trad]]+SSOVSizer[[#This Row],[P2]])/($D$9*$D$10))*SQRT((SSOVSizer[[#This Row],[P1 if Trad]]-SSOVSizer[[#This Row],[P2]])/2) ->  | AI11: =IF(Interface!$F$17="Comb",SSOVSizer[[#This Row],[Combo train Calc Q (SCFH)]]-$D$15,IF(Interface!$F$17="Trad",SSOVSizer[[#This Row],[Trad train Calc Q (SCFH)]]-$D$15,"Train type not selected")) -> Train type not selected | AK11: =IF(AND(SSOVSelection[1 or 2]=SSOVSizer[[#This Row],[2 valves or 1]],SSOVSelection[Bio Gas]=SSOVSizer[[#This Row],[Bio Gas?]],SSOVSelection[NEMA 4]=SSOVSizer[[#This Row],[NEMA 4?]],SSOVSizer[[#This Row],[Calc Q - Desired Q]]<0, SSOVSizer[[#This Row],[Max valve sizes]]="Max"),"Max",IF(AND(SSOVSelection[1 or 2]=SSOVSizer[[#This Row],[2 valves or 1]],SSOVSelection[Bio Gas]=SSOVSizer[[#This Row],[Bio Gas?]],SSOVSelection[NEMA 4]=SSOVSizer[[#This Row],[NEMA 4?]]),SSOVSizer[[#This Row],[Calc Q - Desired Q]],"")) ->  | AL11: =SQRT(($D$5^2)-((2*$D$9*$D$10*$D$15^2)/(1360^2*SSOVSizer[[#This Row],[Cv]]^2))) ->  | AM11: AGA40.6580U | AO11: 4 | AP11: 4.026 | AQ11: =SPSizer[[#This Row],[internal Diam (in)]]/12 -> 0.3355 | AR11: =PI()*(SPSizer[[#This Row],[internal Diam (ft)]]/2)^2 -> 0.08840461362 | AS11: =$D$15/(SPSizer[[#This Row],[Internal Area (ft^2)]]*60*60) ->  | BB11: SKP15.012U2 | BC11: 15 | BD11: 220 VAC | BE11: Yes | BF11: No | BG11: No | BM11: =IFERROR(INDEX(SKPSpringSizer[#Data],MATCH(SKPSpringSelect[2nd Act SKP Type]&SKPSpringSelect[Pb Max - Pb Theo Opt],SKPSpringSizer[SKP25 type]&SKPSpringSizer[P2 Max - P2 Theo],0),MATCH(SKPSpringSizer[[#Headers],[Part '#]],SKPSpringSizer[#Headers],0)),"") ->  | BN11: =LEFT(Act2Select[Part '#],7) ->  | BO11: =MIN(IF(SKPSpringSizer[P2 Max - P2 Theo]>0,SKPSpringSizer[P2 Max - P2 Theo])) -> 0.3066378066 | BV11: 803113302 | BW11: Yes - Auto Reset | BX11: 13.2034632 | BY11: 28.86002886 | BZ11: =LGPSSizer[[#This Row],[LPG Max Press (PSIG)]]-$B$5 -> 28.86002886 | CA11: =IF(LGPSSelection[Man/Auto]=LGPSSizer[[#This Row],[Man/Auto]],LGPSSizer[[#This Row],[Max - Inlet Press]],"") ->  | CB11: =LGPSSizer[[#This Row],[LPG Max Press (PSIG)]]-(VKGSelection[P2 for SSOV]-14.7) -> 28.86002886 | CC11: =IF(LGPSSelection[Man/Auto]=LGPSSizer[[#This Row],[Man/Auto]],LGPSSizer[[#This Row],[Max - P2]],"") ->  | CE11: High Gas Press Switch Selection | CL11: =IF(VPPSSelection[Yes or No]="Yes",INDEX(VPPSSizer[#Data],MATCH(VPPSSelection[Opt Max - In],VPPSSizer[Max - Inlet Press],0),MATCH(VPPSSizer[[#Headers],[Part '#]],VPPSSizer[#Headers],0)),"") ->  | CM11: =MIN(IF(VPPSSizer[Max - Inlet Press]>0.037,VPPSSizer[Max - Inlet Press])) -> 1.046176046 | CN11: =Interface!F59 -> 0 | CQ11: Does the application require the high gas pressure switch to be NEMA 3R? Note: SCC Defualt is No | CR11: X | CS11: QP | CT11: X | CW11: 0.75 | CX11: 0.218625 | DB11: ="Y-"&YstrainerIndex[[#This Row],[Pipe Size]] -> Y-4 | DC11: 4 | DD11: 9 | DE11: 1.7 | DG11: =PIPor1NPIndex[[#This Row],[PIP or NP]]&"-"&PIPor1NPIndex[[#This Row],[Pipe Size]] -> NP-4 | DH11: NP | DI11: 4 | DJ11: 4 | DK11: 1.7 | DM11: ="Y-"&InBallIndex[[#This Row],[Pipe Size]] -> Y-4 | DN11: 4 | DO11: 9 | DP11: 1.7
A12: Capacity, Boiler HP based | B12: =IFERROR(Interface!F40*33475*(1/Interface!F41)/D11,0) -> 0 | C12: SCFH | H12: VRG20.040U | I12: 1.5 | J12: Medium | K12: 10 | L12: 81.35 | M12: =IF($B$7<>0,SQRT(($D$6^2)+(2*$D$9*$D$10*$D$15^2)/(1360^2*FRCVSizer[[#This Row],[Cv]]^2)),"NO VKG") -> NO VKG | N12: =FRCVSizer[[#This Row],[Theo P2 (PSIA)]]-14.7 ->  | O12: =IF(Interface!$G$23=FRCVSizer[[#This Row],[Bio Gas?]],FRCVSizer[[#This Row],[Theo P2 (PSIG)]]-$B$8,"") ->  | P12: 150 | Q12: =FRCVSizer[[#This Row],[Pipe Size]]&""" "&FRCVSizer[[#This Row],[Port Size]]&" port" -> 1.5" Medium port | R12: Yes | T12: VGD40.065U | U12: 1 | V12: 2.5" Double Valve Body, NPT - Gas | W12: 2.5 | X12: 10 | Y12: 75 | Z12: 72.62 | AA12: Yes | AB12: 2 | AC12: No | AD12: =SQRT((SSOVSizer[[#This Row],[P2]]^2)+((2*$D$9*$D$10*SSOVSizer[[#This Row],[Combo train Calc Q (SCFH)]]^2)/(1360^2*SSOVSizer[[#This Row],[Cv]]^2))) ->  | AE12: =(SSOVSizer[[#This Row],[P2]]-14.7)*$B$16+14.7 ->  | AF12: =VKGSelection[P2 for SSOV] -> 14.7 | AG12: =IF(SSOVSizer[[#This Row],[P2]]>$D$5,"err P2>P1",1360*SSOVSizer[[#This Row],[Cv]]*SQRT(($D$5+SSOVSizer[[#This Row],[P2]])/($D$9*$D$10))*SQRT(($D$5-SSOVSizer[[#This Row],[P2]])/2)) ->  | AH12: =1360*SSOVSizer[[#This Row],[Cv]]*SQRT((SSOVSizer[[#This Row],[P1 if Trad]]+SSOVSizer[[#This Row],[P2]])/($D$9*$D$10))*SQRT((SSOVSizer[[#This Row],[P1 if Trad]]-SSOVSizer[[#This Row],[P2]])/2) ->  | AI12: =IF(Interface!$F$17="Comb",SSOVSizer[[#This Row],[Combo train Calc Q (SCFH)]]-$D$15,IF(Interface!$F$17="Trad",SSOVSizer[[#This Row],[Trad train Calc Q (SCFH)]]-$D$15,"Train type not selected")) -> Train type not selected | AK12: =IF(AND(SSOVSelection[1 or 2]=SSOVSizer[[#This Row],[2 valves or 1]],SSOVSelection[Bio Gas]=SSOVSizer[[#This Row],[Bio Gas?]],SSOVSelection[NEMA 4]=SSOVSizer[[#This Row],[NEMA 4?]],SSOVSizer[[#This Row],[Calc Q - Desired Q]]<0, SSOVSizer[[#This Row],[Max valve sizes]]="Max"),"Max",IF(AND(SSOVSelection[1 or 2]=SSOVSizer[[#This Row],[2 valves or 1]],SSOVSelection[Bio Gas]=SSOVSizer[[#This Row],[Bio Gas?]],SSOVSelection[NEMA 4]=SSOVSizer[[#This Row],[NEMA 4?]]),SSOVSizer[[#This Row],[Calc Q - Desired Q]],"")) ->  | AL12: =SQRT(($D$5^2)-((2*$D$9*$D$10*$D$15^2)/(1360^2*SSOVSizer[[#This Row],[Cv]]^2))) ->  | AM12: AGA40.6580U | AO12: 6 | AP12: 6.065 | AQ12: =SPSizer[[#This Row],[internal Diam (in)]]/12 -> 0.5054166667 | AR12: =PI()*(SPSizer[[#This Row],[internal Diam (ft)]]/2)^2 -> 0.2006268247 | AS12: =$D$15/(SPSizer[[#This Row],[Internal Area (ft^2)]]*60*60) ->  | AU12: outlet flange logic matrix | BB12: SKP15.012U2 | BC12: 15 | BD12: 220 VAC | BE12: No | BF12: Yes | BG12: No | CE12: Part # | CF12: Man/Auto | CG12: Opt Max - In | CW12: 1 | CX12: 0.2915 | DB12: ="Y-"&YstrainerIndex[[#This Row],[Pipe Size]] -> Y-6 | DC12: 6 | DD12: 10 | DE12: 1.9 | DG12: =PIPor1NPIndex[[#This Row],[PIP or NP]]&"-"&PIPor1NPIndex[[#This Row],[Pipe Size]] -> NP-6 | DH12: NP | DI12: 6 | DJ12: 4 | DK12: 1.9 | DM12: ="Y-"&InBallIndex[[#This Row],[Pipe Size]] -> Y-6 | DN12: 6 | DO12: 10 | DP12: 1.9
A13: Capacity, Gas Flow based | B13: =Interface!F42 -> 0 | C13: SCFH | H13: VRG20.050U | I13: 2 | J13: Medium | K13: 11 | L13: 97.12 | M13: =IF($B$7<>0,SQRT(($D$6^2)+(2*$D$9*$D$10*$D$15^2)/(1360^2*FRCVSizer[[#This Row],[Cv]]^2)),"NO VKG") -> NO VKG | N13: =FRCVSizer[[#This Row],[Theo P2 (PSIA)]]-14.7 ->  | O13: =IF(Interface!$G$23=FRCVSizer[[#This Row],[Bio Gas?]],FRCVSizer[[#This Row],[Theo P2 (PSIG)]]-$B$8,"") ->  | P13: 200 | Q13: =FRCVSizer[[#This Row],[Pipe Size]]&""" "&FRCVSizer[[#This Row],[Port Size]]&" port" -> 2" Medium port | R13: Yes | T13: VGD40.080U | U13: 1 | V13: 3" Double Valve Body, NPT - Gas | W13: 3 | X13: 10 | Y13: 75 | Z13: 105.06 | AA13: No | AB13: 2 | AC13: No | AD13: =SQRT((SSOVSizer[[#This Row],[P2]]^2)+((2*$D$9*$D$10*SSOVSizer[[#This Row],[Combo train Calc Q (SCFH)]]^2)/(1360^2*SSOVSizer[[#This Row],[Cv]]^2))) ->  | AE13: =(SSOVSizer[[#This Row],[P2]]-14.7)*$B$16+14.7 ->  | AF13: =VKGSelection[P2 for SSOV] -> 14.7 | AG13: =IF(SSOVSizer[[#This Row],[P2]]>$D$5,"err P2>P1",1360*SSOVSizer[[#This Row],[Cv]]*SQRT(($D$5+SSOVSizer[[#This Row],[P2]])/($D$9*$D$10))*SQRT(($D$5-SSOVSizer[[#This Row],[P2]])/2)) ->  | AH13: =1360*SSOVSizer[[#This Row],[Cv]]*SQRT((SSOVSizer[[#This Row],[P1 if Trad]]+SSOVSizer[[#This Row],[P2]])/($D$9*$D$10))*SQRT((SSOVSizer[[#This Row],[P1 if Trad]]-SSOVSizer[[#This Row],[P2]])/2) ->  | AI13: =IF(Interface!$F$17="Comb",SSOVSizer[[#This Row],[Combo train Calc Q (SCFH)]]-$D$15,IF(Interface!$F$17="Trad",SSOVSizer[[#This Row],[Trad train Calc Q (SCFH)]]-$D$15,"Train type not selected")) -> Train type not selected | AK13: =IF(AND(SSOVSelection[1 or 2]=SSOVSizer[[#This Row],[2 valves or 1]],SSOVSelection[Bio Gas]=SSOVSizer[[#This Row],[Bio Gas?]],SSOVSelection[NEMA 4]=SSOVSizer[[#This Row],[NEMA 4?]],SSOVSizer[[#This Row],[Calc Q - Desired Q]]<0, SSOVSizer[[#This Row],[Max valve sizes]]="Max"),"Max",IF(AND(SSOVSelection[1 or 2]=SSOVSizer[[#This Row],[2 valves or 1]],SSOVSelection[Bio Gas]=SSOVSizer[[#This Row],[Bio Gas?]],SSOVSelection[NEMA 4]=SSOVSizer[[#This Row],[NEMA 4?]]),SSOVSizer[[#This Row],[Calc Q - Desired Q]],"")) ->  | AL13: =SQRT(($D$5^2)-((2*$D$9*$D$10*$D$15^2)/(1360^2*SSOVSizer[[#This Row],[Cv]]^2))) ->  | AM13: AGA40.6580U | AO13: 8 | AP13: 7.981 | AQ13: =SPSizer[[#This Row],[internal Diam (in)]]/12 -> 0.6650833333 | AR13: =PI()*(SPSizer[[#This Row],[internal Diam (ft)]]/2)^2 -> 0.3474097566 | AS13: =$D$15/(SPSizer[[#This Row],[Internal Area (ft^2)]]*60*60) ->  | AU13: Trad or comb | AV13: VKG | AW13: Outlet Flange to match | AX13: Outlet Flange Size | BB13: SKP15.013U1 | BC13: 15 | BD13: 120 VAC | BE13: No | BF13: No | BG13: No | BV13: Low Gas Press Switch Selection | CE13: =IF(HGPSSelection[Opt Max - In]=0,"",IF(LEFT(HGPSSelection[Man/Auto],1)="Y",INDEX(HGPSSizer[#Data],MATCH(HGPSSelection[Opt Max - In],HGPSSizer[Criteria Met - Max - IN],0),MATCH(HGPSSizer[[#Headers],[Part '#]],HGPSSizer[#Headers],0)),CI23)) ->  | CF13: =Interface!E58 -> 0 | CG13: =MIN(IF(HGPSSizer[Criteria Met - Max - IN]>0.037,HGPSSizer[Criteria Met - Max - IN])) -> 0 | CQ13: Question Selection | CW13: 1.25 | CX13: 0.364375 | DG13: =PIPor1NPIndex[[#This Row],[PIP or NP]]&"-"&PIPor1NPIndex[[#This Row],[Pipe Size]] -> PIP-0.5 | DH13: PIP | DI13: 0.5 | DJ13: 4 | DK13: 0.1
A14: Capacity, Heat Input Based | B14: =Interface!F43/D11 ->  | C14: SCFH | H14: VRG10.040U | I14: 1.5 | J14: Full | K14: 12 | L14: 100.08 | M14: =IF($B$7<>0,SQRT(($D$6^2)+(2*$D$9*$D$10*$D$15^2)/(1360^2*FRCVSizer[[#This Row],[Cv]]^2)),"NO VKG") -> NO VKG | N14: =FRCVSizer[[#This Row],[Theo P2 (PSIA)]]-14.7 ->  | O14: =IF(Interface!$G$23=FRCVSizer[[#This Row],[Bio Gas?]],FRCVSizer[[#This Row],[Theo P2 (PSIG)]]-$B$8,"") ->  | P14: 150 | Q14: =FRCVSizer[[#This Row],[Pipe Size]]&""" "&FRCVSizer[[#This Row],[Port Size]]&" port" -> 1.5" Full port | R14: Yes | T14: VGD40.080U | U14: 1 | V14: 3" Double Valve Body, NPT - Gas | W14: 3 | X14: 10 | Y14: 75 | Z14: 105.06 | AA14: Yes | AB14: 2 | AC14: No | AD14: =SQRT((SSOVSizer[[#This Row],[P2]]^2)+((2*$D$9*$D$10*SSOVSizer[[#This Row],[Combo train Calc Q (SCFH)]]^2)/(1360^2*SSOVSizer[[#This Row],[Cv]]^2))) ->  | AE14: =(SSOVSizer[[#This Row],[P2]]-14.7)*$B$16+14.7 ->  | AF14: =VKGSelection[P2 for SSOV] -> 14.7 | AG14: =IF(SSOVSizer[[#This Row],[P2]]>$D$5,"err P2>P1",1360*SSOVSizer[[#This Row],[Cv]]*SQRT(($D$5+SSOVSizer[[#This Row],[P2]])/($D$9*$D$10))*SQRT(($D$5-SSOVSizer[[#This Row],[P2]])/2)) ->  | AH14: =1360*SSOVSizer[[#This Row],[Cv]]*SQRT((SSOVSizer[[#This Row],[P1 if Trad]]+SSOVSizer[[#This Row],[P2]])/($D$9*$D$10))*SQRT((SSOVSizer[[#This Row],[P1 if Trad]]-SSOVSizer[[#This Row],[P2]])/2) ->  | AI14: =IF(Interface!$F$17="Comb",SSOVSizer[[#This Row],[Combo train Calc Q (SCFH)]]-$D$15,IF(Interface!$F$17="Trad",SSOVSizer[[#This Row],[Trad train Calc Q (SCFH)]]-$D$15,"Train type not selected")) -> Train type not selected | AK14: =IF(AND(SSOVSelection[1 or 2]=SSOVSizer[[#This Row],[2 valves or 1]],SSOVSelection[Bio Gas]=SSOVSizer[[#This Row],[Bio Gas?]],SSOVSelection[NEMA 4]=SSOVSizer[[#This Row],[NEMA 4?]],SSOVSizer[[#This Row],[Calc Q - Desired Q]]<0, SSOVSizer[[#This Row],[Max valve sizes]]="Max"),"Max",IF(AND(SSOVSelection[1 or 2]=SSOVSizer[[#This Row],[2 valves or 1]],SSOVSelection[Bio Gas]=SSOVSizer[[#This Row],[Bio Gas?]],SSOVSelection[NEMA 4]=SSOVSizer[[#This Row],[NEMA 4?]]),SSOVSizer[[#This Row],[Calc Q - Desired Q]],"")) ->  | AL14: =SQRT(($D$5^2)-((2*$D$9*$D$10*$D$15^2)/(1360^2*SSOVSizer[[#This Row],[Cv]]^2))) ->  | AM14: AGA40.6580U | AU14: Trad | AV14: Yes | AW14: VKG Size | AX14: =IFERROR(INDEX(FRCVSizer[#Data],MATCH(VKGcustSelect[Part '#],FRCVSizer[Part '#],0),MATCH("Pipe Size",FRCVSizer[#Headers],9)),"NA") -> NA | BB14: SKP15.013U2 | BC14: 15 | BD14: 220 VAC | BE14: No | BF14: No | BG14: No | BV14: Part # | BW14: Man/Auto | BX14: Part # (Opt Max - In) | BY14: Opt Max - In | BZ14: Part # (Opt Max - P2) | CA14: Opt Max - P2 | CB14: Up or downstream | CQ14: Question | CR14: Low | CS14: High | CT14: VP | CW14: 1.5 | CX14: 0.43725 | DB14: Y strainer Selection | DG14: =PIPor1NPIndex[[#This Row],[PIP or NP]]&"-"&PIPor1NPIndex[[#This Row],[Pipe Size]] -> PIP-0.75 | DH14: PIP | DI14: 0.75 | DJ14: 4 | DK14: 0.3 | DM14: Y strainer Selection
A15: Capacity (Resultant) | D15: =SUM(B12:B14) ->  | E15: SCFH | H15: VRG30.080U | I15: 3 | J15: Reduced | K15: 13 | L15: 147.28 | M15: =IF($B$7<>0,SQRT(($D$6^2)+(2*$D$9*$D$10*$D$15^2)/(1360^2*FRCVSizer[[#This Row],[Cv]]^2)),"NO VKG") -> NO VKG | N15: =FRCVSizer[[#This Row],[Theo P2 (PSIA)]]-14.7 ->  | O15: =IF(Interface!$G$23=FRCVSizer[[#This Row],[Bio Gas?]],FRCVSizer[[#This Row],[Theo P2 (PSIG)]]-$B$8,"") ->  | P15: 300 | Q15: =FRCVSizer[[#This Row],[Pipe Size]]&""" "&FRCVSizer[[#This Row],[Port Size]]&" port" -> 3" Reduced port | R15: Yes | T15: VGD40.100U | U15: 1 | V15: 4" Double Valve Body, Flanged - Gas | W15: 4 | X15: 10 | Y15: 30 | Z15: 175.59 | AA15: No | AB15: 2 | AC15: No | AD15: =SQRT((SSOVSizer[[#This Row],[P2]]^2)+((2*$D$9*$D$10*SSOVSizer[[#This Row],[Combo train Calc Q (SCFH)]]^2)/(1360^2*SSOVSizer[[#This Row],[Cv]]^2))) ->  | AE15: =(SSOVSizer[[#This Row],[P2]]-14.7)*$B$16+14.7 ->  | AF15: =VKGSelection[P2 for SSOV] -> 14.7 | AG15: =IF(SSOVSizer[[#This Row],[P2]]>$D$5,"err P2>P1",1360*SSOVSizer[[#This Row],[Cv]]*SQRT(($D$5+SSOVSizer[[#This Row],[P2]])/($D$9*$D$10))*SQRT(($D$5-SSOVSizer[[#This Row],[P2]])/2)) ->  | AH15: =1360*SSOVSizer[[#This Row],[Cv]]*SQRT((SSOVSizer[[#This Row],[P1 if Trad]]+SSOVSizer[[#This Row],[P2]])/($D$9*$D$10))*SQRT((SSOVSizer[[#This Row],[P1 if Trad]]-SSOVSizer[[#This Row],[P2]])/2) ->  | AI15: =IF(Interface!$F$17="Comb",SSOVSizer[[#This Row],[Combo train Calc Q (SCFH)]]-$D$15,IF(Interface!$F$17="Trad",SSOVSizer[[#This Row],[Trad train Calc Q (SCFH)]]-$D$15,"Train type not selected")) -> Train type not selected | AK15: =IF(AND(SSOVSelection[1 or 2]=SSOVSizer[[#This Row],[2 valves or 1]],SSOVSelection[Bio Gas]=SSOVSizer[[#This Row],[Bio Gas?]],SSOVSelection[NEMA 4]=SSOVSizer[[#This Row],[NEMA 4?]],SSOVSizer[[#This Row],[Calc Q - Desired Q]]<0, SSOVSizer[[#This Row],[Max valve sizes]]="Max"),"Max",IF(AND(SSOVSelection[1 or 2]=SSOVSizer[[#This Row],[2 valves or 1]],SSOVSelection[Bio Gas]=SSOVSizer[[#This Row],[Bio Gas?]],SSOVSelection[NEMA 4]=SSOVSizer[[#This Row],[NEMA 4?]]),SSOVSizer[[#This Row],[Calc Q - Desired Q]],"")) ->  | AL15: =SQRT(($D$5^2)-((2*$D$9*$D$10*$D$15^2)/(1360^2*SSOVSizer[[#This Row],[Cv]]^2))) ->  | AM15: AGA40.0100U | AO15: Optimized Sensing Pipe Selection | AU15: Trad | AV15: No | AW15: SSOV Size | AX15: =SSOVSelection[Pipe size] ->  | BB15: SKP25.011U1 | BC15: 25 | BD15: 120 VAC | BE15: Yes | BF15: No | BG15: No | BV15: =IF(LEFT(LGPSSelection[Man/Auto],1)="Y",IF(LGPSSelection[Up or downstream]="U",LGPSSelection[Part '# (Opt Max - In)],LGPSSelection[Part '# (Opt Max - P2)]),"") -> Not Required | BW15: =Interface!G57 -> Yes - 0 | BX15: =IFERROR(INDEX(LGPSSizer[#Data],MATCH(LGPSSelection[Opt Max - In],LGPSSizer[Criteria Met Max - In],0),MATCH(LGPSSizer[[#Headers],[Part '#]],LGPSSizer[#Headers],0)),"Not Required") -> Not Required | BY15: =MIN(IF(LGPSSizer[Criteria Met Max - In]>0.037,LGPSSizer[Criteria Met Max - In])) -> 0 | BZ15: =IFERROR(INDEX(LGPSSizer[#Data],MATCH(LGPSSelection[Opt Max - P2],LGPSSizer[Criteria Met Max - P2],0),MATCH(LGPSSizer[[#Headers],[Part '#]],LGPSSizer[#Headers],0)),"Not Required") -> Not Required | CA15: =MIN(IF(LGPSSizer[Criteria Met Max - P2]>0.037,LGPSSizer[Criteria Met Max - P2])) -> 0 | CB15: =LEFT(Interface!F56,1) -> 0 | CQ15: =INDEX(PSN3RQues[#Data],MATCH(PSN3RQuesSelect[Low]&PSN3RQuesSelect[High]&PSN3RQuesSelect[VP],PSN3RQues[Low]&PSN3RQues[High]&PSN3RQues[VP],0),MATCH(PSN3RQues[[#Headers],[Question]],PSN3RQues[#Headers],0)) -> Hide | CR15: =IF(LEFT(LGPSSelection[Part '#],2)="QP","QP","X") -> X | CS15: =IF(LEFT(HGPSSelection[Part '#],2)="QP","QP","X") -> X | CT15: =IF(LEFT(VPPSSelection[Part '#],2)="QP","QP","X") -> X | CW15: 2 | CX15: 0.583 | DB15: Part Number | DC15: Pipe Size | DD15: Lenth | DE15: Cv | DG15: =PIPor1NPIndex[[#This Row],[PIP or NP]]&"-"&PIPor1NPIndex[[#This Row],[Pipe Size]] -> PIP-1 | DH15: PIP | DI15: 1 | DJ15: 4 | DK15: 0.5 | DM15: Part Number | DN15: Pipe Size | DO15: Lenth | DP15: Cv
A16: % Drop across SSOV for Trad Train | B16: =Interface!G34 ->  | H16: VRG20.065U | I16: 2.5 | J16: Medium | K16: 14 | L16: 170.12 | M16: =IF($B$7<>0,SQRT(($D$6^2)+(2*$D$9*$D$10*$D$15^2)/(1360^2*FRCVSizer[[#This Row],[Cv]]^2)),"NO VKG") -> NO VKG | N16: =FRCVSizer[[#This Row],[Theo P2 (PSIA)]]-14.7 ->  | O16: =IF(Interface!$G$23=FRCVSizer[[#This Row],[Bio Gas?]],FRCVSizer[[#This Row],[Theo P2 (PSIG)]]-$B$8,"") ->  | P16: 250 | Q16: =FRCVSizer[[#This Row],[Pipe Size]]&""" "&FRCVSizer[[#This Row],[Port Size]]&" port" -> 2.5" Medium port | R16: Yes | T16: VGD40.100U | U16: 1 | V16: 4" Double Valve Body, Flanged - Gas | W16: 4 | X16: 10 | Y16: 30 | Z16: 175.59 | AA16: Yes | AB16: 2 | AC16: No | AD16: =SQRT((SSOVSizer[[#This Row],[P2]]^2)+((2*$D$9*$D$10*SSOVSizer[[#This Row],[Combo train Calc Q (SCFH)]]^2)/(1360^2*SSOVSizer[[#This Row],[Cv]]^2))) ->  | AE16: =(SSOVSizer[[#This Row],[P2]]-14.7)*$B$16+14.7 ->  | AF16: =VKGSelection[P2 for SSOV] -> 14.7 | AG16: =IF(SSOVSizer[[#This Row],[P2]]>$D$5,"err P2>P1",1360*SSOVSizer[[#This Row],[Cv]]*SQRT(($D$5+SSOVSizer[[#This Row],[P2]])/($D$9*$D$10))*SQRT(($D$5-SSOVSizer[[#This Row],[P2]])/2)) ->  | AH16: =1360*SSOVSizer[[#This Row],[Cv]]*SQRT((SSOVSizer[[#This Row],[P1 if Trad]]+SSOVSizer[[#This Row],[P2]])/($D$9*$D$10))*SQRT((SSOVSizer[[#This Row],[P1 if Trad]]-SSOVSizer[[#This Row],[P2]])/2) ->  | AI16: =IF(Interface!$F$17="Comb",SSOVSizer[[#This Row],[Combo train Calc Q (SCFH)]]-$D$15,IF(Interface!$F$17="Trad",SSOVSizer[[#This Row],[Trad train Calc Q (SCFH)]]-$D$15,"Train type not selected")) -> Train type not selected | AK16: =IF(AND(SSOVSelection[1 or 2]=SSOVSizer[[#This Row],[2 valves or 1]],SSOVSelection[Bio Gas]=SSOVSizer[[#This Row],[Bio Gas?]],SSOVSelection[NEMA 4]=SSOVSizer[[#This Row],[NEMA 4?]],SSOVSizer[[#This Row],[Calc Q - Desired Q]]<0, SSOVSizer[[#This Row],[Max valve sizes]]="Max"),"Max",IF(AND(SSOVSelection[1 or 2]=SSOVSizer[[#This Row],[2 valves or 1]],SSOVSelection[Bio Gas]=SSOVSizer[[#This Row],[Bio Gas?]],SSOVSelection[NEMA 4]=SSOVSizer[[#This Row],[NEMA 4?]]),SSOVSizer[[#This Row],[Calc Q - Desired Q]],"")) ->  | AL16: =SQRT(($D$5^2)-((2*$D$9*$D$10*$D$15^2)/(1360^2*SSOVSizer[[#This Row],[Cv]]^2))) ->  | AM16: AGA40.0100U | AO16: Pipe Size | AP16: Optimize Vel | AU16: Comb | AV16: Yes | AW16: Max of Min SP and VKG Size | AX16: =IFERROR(MAX(SPOptimize[Pipe Size],INDEX(FRCVSizer[#Data],MATCH(VKGcustSelect[Part '#],FRCVSizer[Part '#],0),MATCH("Pipe Size",FRCVSizer[#Headers],9))),"NA") -> NA | BB16: SKP25.012U1 | BC16: 25 | BD16: 120 VAC | BE16: Yes | BF16: Yes | BG16: No | CW16: 2.5 | CX16: 0.72875 | DB16: =INDEX(YstrainerIndex[#Data],MATCH(YstrainerSelect[Pipe Size],YstrainerIndex[Pipe Size],0),MATCH(YstrainerIndex[[#Headers],[Part Number]],YstrainerIndex[#Headers],0)) ->  | DC16: =FrtEndPipeSize[Resulting Front End Pipe Size] ->  | DD16: =INDEX(YstrainerIndex[#Data], MATCH(YstrainerSelect[Pipe Size],YstrainerIndex[Pipe Size],0), MATCH(YstrainerIndex[[#Headers],[Length]],YstrainerIndex[#Headers],0)) ->  | DE16: =INDEX(YstrainerIndex[#Data], MATCH(YstrainerSelect[Pipe Size],YstrainerIndex[Pipe Size],0), MATCH(YstrainerIndex[[#Headers],[Cv]],YstrainerIndex[#Headers],0)) ->  | DG16: =PIPor1NPIndex[[#This Row],[PIP or NP]]&"-"&PIPor1NPIndex[[#This Row],[Pipe Size]] -> PIP-1.25 | DH16: PIP | DI16: 1.25 | DJ16: 4 | DK16: 0.7 | DM16: =INDEX(YstrainerIndex[#Data],MATCH(YstrainerSelect75[Pipe Size],YstrainerIndex[Pipe Size],0),MATCH(YstrainerIndex[[#Headers],[Part Number]],YstrainerIndex[#Headers],0)) ->  | DN16: =FrtEndPipeSize[Resulting Front End Pipe Size] ->  | DO16: =INDEX(YstrainerIndex[#Data], MATCH(YstrainerSelect75[Pipe Size],YstrainerIndex[Pipe Size],0), MATCH(YstrainerIndex[[#Headers],[Length]],YstrainerIndex[#Headers],0)) ->  | DP16: =INDEX(YstrainerIndex[#Data], MATCH(YstrainerSelect75[Pipe Size],YstrainerIndex[Pipe Size],0), MATCH(YstrainerIndex[[#Headers],[Cv]],YstrainerIndex[#Headers],0)) -> 
H17: VRG10.050U | I17: 2 | J17: Full | K17: 15 | L17: 180.25 | M17: =IF($B$7<>0,SQRT(($D$6^2)+(2*$D$9*$D$10*$D$15^2)/(1360^2*FRCVSizer[[#This Row],[Cv]]^2)),"NO VKG") -> NO VKG | N17: =FRCVSizer[[#This Row],[Theo P2 (PSIA)]]-14.7 ->  | O17: =IF(Interface!$G$23=FRCVSizer[[#This Row],[Bio Gas?]],FRCVSizer[[#This Row],[Theo P2 (PSIG)]]-$B$8,"") ->  | P17: 200 | Q17: =FRCVSizer[[#This Row],[Pipe Size]]&""" "&FRCVSizer[[#This Row],[Port Size]]&" port" -> 2" Full port | R17: Yes | T17: VGD40.150U | U17: 1 | V17: 6" Double Valve Body, Flanged - Gas | W17: 6 | X17: 10 | Y17: 30 | Z17: 324.73 | AA17: No | AB17: 2 | AC17: No | AD17: =SQRT((SSOVSizer[[#This Row],[P2]]^2)+((2*$D$9*$D$10*SSOVSizer[[#This Row],[Combo train Calc Q (SCFH)]]^2)/(1360^2*SSOVSizer[[#This Row],[Cv]]^2))) ->  | AE17: =(SSOVSizer[[#This Row],[P2]]-14.7)*$B$16+14.7 ->  | AF17: =VKGSelection[P2 for SSOV] -> 14.7 | AG17: =IF(SSOVSizer[[#This Row],[P2]]>$D$5,"err P2>P1",1360*SSOVSizer[[#This Row],[Cv]]*SQRT(($D$5+SSOVSizer[[#This Row],[P2]])/($D$9*$D$10))*SQRT(($D$5-SSOVSizer[[#This Row],[P2]])/2)) ->  | AH17: =1360*SSOVSizer[[#This Row],[Cv]]*SQRT((SSOVSizer[[#This Row],[P1 if Trad]]+SSOVSizer[[#This Row],[P2]])/($D$9*$D$10))*SQRT((SSOVSizer[[#This Row],[P1 if Trad]]-SSOVSizer[[#This Row],[P2]])/2) ->  | AI17: =IF(Interface!$F$17="Comb",SSOVSizer[[#This Row],[Combo train Calc Q (SCFH)]]-$D$15,IF(Interface!$F$17="Trad",SSOVSizer[[#This Row],[Trad train Calc Q (SCFH)]]-$D$15,"Train type not selected")) -> Train type not selected | AK17: =IF(AND(SSOVSelection[1 or 2]=SSOVSizer[[#This Row],[2 valves or 1]],SSOVSelection[Bio Gas]=SSOVSizer[[#This Row],[Bio Gas?]],SSOVSelection[NEMA 4]=SSOVSizer[[#This Row],[NEMA 4?]],SSOVSizer[[#This Row],[Calc Q - Desired Q]]<0, SSOVSizer[[#This Row],[Max valve sizes]]="Max"),"Max",IF(AND(SSOVSelection[1 or 2]=SSOVSizer[[#This Row],[2 valves or 1]],SSOVSelection[Bio Gas]=SSOVSizer[[#This Row],[Bio Gas?]],SSOVSelection[NEMA 4]=SSOVSizer[[#This Row],[NEMA 4?]]),SSOVSizer[[#This Row],[Calc Q - Desired Q]],"")) ->  | AL17: =SQRT(($D$5^2)-((2*$D$9*$D$10*$D$15^2)/(1360^2*SSOVSizer[[#This Row],[Cv]]^2))) ->  | AM17: AGA40.0150U | AO17: =IF(Interface!F17="Comb",INDEX(SPSizer[#Data],MATCH(SPOptimize[Optimize Vel],SPSizer[Velocity (ft/s)],0),1),"Trad Train") -> Trad Train | AP17: =MAX(IF(SPSizer[Velocity (ft/s)]<120,SPSizer[Velocity (ft/s)])) ->  | AU17: Comb | AV17: No | AW17: Min SP | AX17: =SPOptimize[Pipe Size] -> Trad Train | BB17: SKP25.012U1 | BC17: 25 | BD17: 120 VAC | BE17: No | BF17: Yes | BG17: No | CQ17: NEMA 3R Kits Selection | CW17: 3 | CX17: 0.8745 | DB17: if no y strainer write if statement so part number is blank | DG17: =PIPor1NPIndex[[#This Row],[PIP or NP]]&"-"&PIPor1NPIndex[[#This Row],[Pipe Size]] -> PIP-1.5 | DH17: PIP | DI17: 1.5 | DJ17: 4 | DK17: 0.9 | DM17: if no y strainer write if statement so part number is blank
H18: VRG30.100U | I18: 4 | J18: Reduced | K18: 16 | L18: 204.19 | M18: =IF($B$7<>0,SQRT(($D$6^2)+(2*$D$9*$D$10*$D$15^2)/(1360^2*FRCVSizer[[#This Row],[Cv]]^2)),"NO VKG") -> NO VKG | N18: =FRCVSizer[[#This Row],[Theo P2 (PSIA)]]-14.7 ->  | O18: =IF(Interface!$G$23=FRCVSizer[[#This Row],[Bio Gas?]],FRCVSizer[[#This Row],[Theo P2 (PSIG)]]-$B$8,"") ->  | P18: 400 | Q18: =FRCVSizer[[#This Row],[Pipe Size]]&""" "&FRCVSizer[[#This Row],[Port Size]]&" port" -> 4" Reduced port | R18: Yes | T18: VGD40.150U | U18: 1 | V18: 6" Double Valve Body, Flanged - Gas | W18: 6 | X18: 10 | Y18: 30 | Z18: 324.73 | AA18: Yes | AB18: 2 | AC18: No | AD18: =SQRT((SSOVSizer[[#This Row],[P2]]^2)+((2*$D$9*$D$10*SSOVSizer[[#This Row],[Combo train Calc Q (SCFH)]]^2)/(1360^2*SSOVSizer[[#This Row],[Cv]]^2))) ->  | AE18: =(SSOVSizer[[#This Row],[P2]]-14.7)*$B$16+14.7 ->  | AF18: =VKGSelection[P2 for SSOV] -> 14.7 | AG18: =IF(SSOVSizer[[#This Row],[P2]]>$D$5,"err P2>P1",1360*SSOVSizer[[#This Row],[Cv]]*SQRT(($D$5+SSOVSizer[[#This Row],[P2]])/($D$9*$D$10))*SQRT(($D$5-SSOVSizer[[#This Row],[P2]])/2)) ->  | AH18: =1360*SSOVSizer[[#This Row],[Cv]]*SQRT((SSOVSizer[[#This Row],[P1 if Trad]]+SSOVSizer[[#This Row],[P2]])/($D$9*$D$10))*SQRT((SSOVSizer[[#This Row],[P1 if Trad]]-SSOVSizer[[#This Row],[P2]])/2) ->  | AI18: =IF(Interface!$F$17="Comb",SSOVSizer[[#This Row],[Combo train Calc Q (SCFH)]]-$D$15,IF(Interface!$F$17="Trad",SSOVSizer[[#This Row],[Trad train Calc Q (SCFH)]]-$D$15,"Train type not selected")) -> Train type not selected | AK18: =IF(AND(SSOVSelection[1 or 2]=SSOVSizer[[#This Row],[2 valves or 1]],SSOVSelection[Bio Gas]=SSOVSizer[[#This Row],[Bio Gas?]],SSOVSelection[NEMA 4]=SSOVSizer[[#This Row],[NEMA 4?]],SSOVSizer[[#This Row],[Calc Q - Desired Q]]<0, SSOVSizer[[#This Row],[Max valve sizes]]="Max"),"Max",IF(AND(SSOVSelection[1 or 2]=SSOVSizer[[#This Row],[2 valves or 1]],SSOVSelection[Bio Gas]=SSOVSizer[[#This Row],[Bio Gas?]],SSOVSelection[NEMA 4]=SSOVSizer[[#This Row],[NEMA 4?]]),SSOVSizer[[#This Row],[Calc Q - Desired Q]],"")) ->  | AL18: =SQRT(($D$5^2)-((2*$D$9*$D$10*$D$15^2)/(1360^2*SSOVSizer[[#This Row],[Cv]]^2))) ->  | AM18: AGA40.0150U | BB18: SKP25.012U2 | BC18: 25 | BD18: 220 VAC | BE18: Yes | BF18: Yes | BG18: No | CQ18: Part # | CR18: Qty | CS18: Yes or No | CW18: 4 | CX18: 1.166 | DG18: =PIPor1NPIndex[[#This Row],[PIP or NP]]&"-"&PIPor1NPIndex[[#This Row],[Pipe Size]] -> PIP-2 | DH18: PIP | DI18: 2 | DJ18: 4 | DK18: 1.1
H19: VRG10.065U | I19: 2.5 | J19: Full | K19: 17 | L19: 254.54 | M19: =IF($B$7<>0,SQRT(($D$6^2)+(2*$D$9*$D$10*$D$15^2)/(1360^2*FRCVSizer[[#This Row],[Cv]]^2)),"NO VKG") -> NO VKG | N19: =FRCVSizer[[#This Row],[Theo P2 (PSIA)]]-14.7 ->  | O19: =IF(Interface!$G$23=FRCVSizer[[#This Row],[Bio Gas?]],FRCVSizer[[#This Row],[Theo P2 (PSIG)]]-$B$8,"") ->  | P19: 250 | Q19: =FRCVSizer[[#This Row],[Pipe Size]]&""" "&FRCVSizer[[#This Row],[Port Size]]&" port" -> 2.5" Full port | R19: Yes | T19: VGD40.150U | U19: 1 | V19: 6" Double Valve Body, Flanged - Gas | W19: 6 | X19: 10 | Y19: 30 | Z19: 324.73 | AA19: No | AB19: 2 | AC19: No | AD19: =SQRT((SSOVSizer[[#This Row],[P2]]^2)+((2*$D$9*$D$10*SSOVSizer[[#This Row],[Combo train Calc Q (SCFH)]]^2)/(1360^2*SSOVSizer[[#This Row],[Cv]]^2))) ->  | AE19: =(SSOVSizer[[#This Row],[P2]]-14.7)*$B$16+14.7 ->  | AF19: =VKGSelection[P2 for SSOV] -> 14.7 | AG19: =IF(SSOVSizer[[#This Row],[P2]]>$D$5,"err P2>P1",1360*SSOVSizer[[#This Row],[Cv]]*SQRT(($D$5+SSOVSizer[[#This Row],[P2]])/($D$9*$D$10))*SQRT(($D$5-SSOVSizer[[#This Row],[P2]])/2)) ->  | AH19: =1360*SSOVSizer[[#This Row],[Cv]]*SQRT((SSOVSizer[[#This Row],[P1 if Trad]]+SSOVSizer[[#This Row],[P2]])/($D$9*$D$10))*SQRT((SSOVSizer[[#This Row],[P1 if Trad]]-SSOVSizer[[#This Row],[P2]])/2) ->  | AI19: =IF(Interface!$F$17="Comb",SSOVSizer[[#This Row],[Combo train Calc Q (SCFH)]]-$D$15,IF(Interface!$F$17="Trad",SSOVSizer[[#This Row],[Trad train Calc Q (SCFH)]]-$D$15,"Train type not selected")) -> Train type not selected | AJ19: max | AK19: =IF(AND(SSOVSelection[1 or 2]=SSOVSizer[[#This Row],[2 valves or 1]],SSOVSelection[Bio Gas]=SSOVSizer[[#This Row],[Bio Gas?]],SSOVSelection[NEMA 4]=SSOVSizer[[#This Row],[NEMA 4?]],SSOVSizer[[#This Row],[Calc Q - Desired Q]]<0, SSOVSizer[[#This Row],[Max valve sizes]]="Max"),"Max",IF(AND(SSOVSelection[1 or 2]=SSOVSizer[[#This Row],[2 valves or 1]],SSOVSelection[Bio Gas]=SSOVSizer[[#This Row],[Bio Gas?]],SSOVSelection[NEMA 4]=SSOVSizer[[#This Row],[NEMA 4?]]),SSOVSizer[[#This Row],[Calc Q - Desired Q]],"")) ->  | AL19: =SQRT(($D$5^2)-((2*$D$9*$D$10*$D$15^2)/(1360^2*SSOVSizer[[#This Row],[Cv]]^2))) ->  | AU19: Outlet Flange | BB19: SKP25.012U2 | BC19: 25 | BD19: 220 VAC | BE19: Yes | BF19: No | BG19: No | CQ19: =IF(PSN3RSelect[Qty]>0,808000404,"") ->  | CR19: =IF(PSN3RSelect[Yes or No]="Yes",COUNTIF(PSN3RQuesSelect[[Low]:[VP]],"QP"),0) -> 0 | CS19: =Interface!F60 -> 0 | CW19: 6 | CX19: 1.749 | DG19: =PIPor1NPIndex[[#This Row],[PIP or NP]]&"-"&PIPor1NPIndex[[#This Row],[Pipe Size]] -> PIP-2.5 | DH19: PIP | DI19: 2.5 | DJ19: 4 | DK19: 1.3
H20: VRG20.080U | I20: 3 | J20: Medium | K20: 18 | L20: 275.17 | M20: =IF($B$7<>0,SQRT(($D$6^2)+(2*$D$9*$D$10*$D$15^2)/(1360^2*FRCVSizer[[#This Row],[Cv]]^2)),"NO VKG") -> NO VKG | N20: =FRCVSizer[[#This Row],[Theo P2 (PSIA)]]-14.7 ->  | O20: =IF(Interface!$G$23=FRCVSizer[[#This Row],[Bio Gas?]],FRCVSizer[[#This Row],[Theo P2 (PSIG)]]-$B$8,"") ->  | P20: 300 | Q20: =FRCVSizer[[#This Row],[Pipe Size]]&""" "&FRCVSizer[[#This Row],[Port Size]]&" port" -> 3" Medium port | R20: Yes | T20: VGD40.150U | U20: 1 | V20: 6" Double Valve Body, Flanged - Gas | W20: 6 | X20: 10 | Y20: 30 | Z20: 324.73 | AA20: Yes | AB20: 2 | AC20: No | AD20: =SQRT((SSOVSizer[[#This Row],[P2]]^2)+((2*$D$9*$D$10*SSOVSizer[[#This Row],[Combo train Calc Q (SCFH)]]^2)/(1360^2*SSOVSizer[[#This Row],[Cv]]^2))) ->  | AE20: =(SSOVSizer[[#This Row],[P2]]-14.7)*$B$16+14.7 ->  | AF20: =VKGSelection[P2 for SSOV] -> 14.7 | AG20: =IF(SSOVSizer[[#This Row],[P2]]>$D$5,"err P2>P1",1360*SSOVSizer[[#This Row],[Cv]]*SQRT(($D$5+SSOVSizer[[#This Row],[P2]])/($D$9*$D$10))*SQRT(($D$5-SSOVSizer[[#This Row],[P2]])/2)) ->  | AH20: =1360*SSOVSizer[[#This Row],[Cv]]*SQRT((SSOVSizer[[#This Row],[P1 if Trad]]+SSOVSizer[[#This Row],[P2]])/($D$9*$D$10))*SQRT((SSOVSizer[[#This Row],[P1 if Trad]]-SSOVSizer[[#This Row],[P2]])/2) ->  | AI20: =IF(Interface!$F$17="Comb",SSOVSizer[[#This Row],[Combo train Calc Q (SCFH)]]-$D$15,IF(Interface!$F$17="Trad",SSOVSizer[[#This Row],[Trad train Calc Q (SCFH)]]-$D$15,"Train type not selected")) -> Train type not selected | AJ20: max | AK20: =IF(AND(SSOVSelection[1 or 2]=SSOVSizer[[#This Row],[2 valves or 1]],SSOVSelection[Bio Gas]=SSOVSizer[[#This Row],[Bio Gas?]],SSOVSelection[NEMA 4]=SSOVSizer[[#This Row],[NEMA 4?]],SSOVSizer[[#This Row],[Calc Q - Desired Q]]<0, SSOVSizer[[#This Row],[Max valve sizes]]="Max"),"Max",IF(AND(SSOVSelection[1 or 2]=SSOVSizer[[#This Row],[2 valves or 1]],SSOVSelection[Bio Gas]=SSOVSizer[[#This Row],[Bio Gas?]],SSOVSelection[NEMA 4]=SSOVSizer[[#This Row],[NEMA 4?]]),SSOVSizer[[#This Row],[Calc Q - Desired Q]],"")) ->  | AL20: =SQRT(($D$5^2)-((2*$D$9*$D$10*$D$15^2)/(1360^2*SSOVSizer[[#This Row],[Cv]]^2))) ->  | AU20: Part # | AV20: Final Outlet Flange Size | AW20: Ideal Outlet flange size | AX20: Trad or Comb | AY20: VKG? | BB20: SKP25.012U2 | BC20: 25 | BD20: 220 VAC | BE20: No | BF20: Yes | BG20: No | DG20: =PIPor1NPIndex[[#This Row],[PIP or NP]]&"-"&PIPor1NPIndex[[#This Row],[Pipe Size]] -> PIP-3 | DH20: PIP | DI20: 3 | DJ20: 4 | DK20: 1.5
H21: VRG20.100U | I21: 4 | J21: Medium | K21: 19 | L21: 430.73 | M21: =IF($B$7<>0,SQRT(($D$6^2)+(2*$D$9*$D$10*$D$15^2)/(1360^2*FRCVSizer[[#This Row],[Cv]]^2)),"NO VKG") -> NO VKG | N21: =FRCVSizer[[#This Row],[Theo P2 (PSIA)]]-14.7 ->  | O21: =IF(Interface!$G$23=FRCVSizer[[#This Row],[Bio Gas?]],FRCVSizer[[#This Row],[Theo P2 (PSIG)]]-$B$8,"") ->  | P21: 400 | Q21: =FRCVSizer[[#This Row],[Pipe Size]]&""" "&FRCVSizer[[#This Row],[Port Size]]&" port" -> 4" Medium port | R21: Yes | T21: VGG10.154U | U21: 1 | V21: 0.5" Single Valve Body, NPT | W21: 0.5 | X21: 20 | Y21: 75 | Z21: 4.49 | AA21: Yes | AB21: 1 | AC21: No | AD21: =SQRT((SSOVSizer[[#This Row],[P2]]^2)+((2*$D$9*$D$10*SSOVSizer[[#This Row],[Combo train Calc Q (SCFH)]]^2)/(1360^2*SSOVSizer[[#This Row],[Cv]]^2))) ->  | AE21: =(SSOVSizer[[#This Row],[P2]]-14.7)*$B$16+14.7 ->  | AF21: =VKGSelection[P2 for SSOV] -> 14.7 | AG21: =IF(SSOVSizer[[#This Row],[P2]]>$D$5,"err P2>P1",1360*SSOVSizer[[#This Row],[Cv]]*SQRT(($D$5+SSOVSizer[[#This Row],[P2]])/($D$9*$D$10))*SQRT(($D$5-SSOVSizer[[#This Row],[P2]])/2)) ->  | AH21: =1360*SSOVSizer[[#This Row],[Cv]]*SQRT((SSOVSizer[[#This Row],[P1 if Trad]]+SSOVSizer[[#This Row],[P2]])/($D$9*$D$10))*SQRT((SSOVSizer[[#This Row],[P1 if Trad]]-SSOVSizer[[#This Row],[P2]])/2) ->  | AI21: =IF(Interface!$F$17="Comb",SSOVSizer[[#This Row],[Combo train Calc Q (SCFH)]]-$D$15,IF(Interface!$F$17="Trad",SSOVSizer[[#This Row],[Trad train Calc Q (SCFH)]]-$D$15,"Train type not selected")) -> Train type not selected | AK21: =IF(AND(SSOVSelection[1 or 2]=SSOVSizer[[#This Row],[2 valves or 1]],SSOVSelection[Bio Gas]=SSOVSizer[[#This Row],[Bio Gas?]],SSOVSelection[NEMA 4]=SSOVSizer[[#This Row],[NEMA 4?]],SSOVSizer[[#This Row],[Calc Q - Desired Q]]<0, SSOVSizer[[#This Row],[Max valve sizes]]="Max"),"Max",IF(AND(SSOVSelection[1 or 2]=SSOVSizer[[#This Row],[2 valves or 1]],SSOVSelection[Bio Gas]=SSOVSizer[[#This Row],[Bio Gas?]],SSOVSelection[NEMA 4]=SSOVSizer[[#This Row],[NEMA 4?]]),SSOVSizer[[#This Row],[Calc Q - Desired Q]],"")) ->  | AL21: =SQRT(($D$5^2)-((2*$D$9*$D$10*$D$15^2)/(1360^2*SSOVSizer[[#This Row],[Cv]]^2))) ->  | AU21: =IF(LEFT(SSOVSelection[Part '#],5)="VGD20",INDEX(FlangeSize[#Data],MATCH(OutFlange[Final Outlet Flange Size],FlangeSize[Pipe Size],0),MATCH(OutFlange[[#Headers],[Part '#]],FlangeSize[#Headers],0)),"") ->  | AV21: =IF(OutFlange[Ideal Outlet flange size]="NA","NA", IF(OutFlange[Ideal Outlet flange size]>2,2, IF(OutFlange[Ideal Outlet flange size]<1,1,OutFlange[Ideal Outlet flange size]))) ->  | AW21: =INDEX(OutFlangeLogic[#Data],MATCH(OutFlange[Trad or Comb]&OutFlange[VKG?],OutFlangeLogic[Trad or comb]&OutFlangeLogic[VKG],0),MATCH(OutFlangeLogic[[#Headers],[Outlet Flange Size]],OutFlangeLogic[#Headers],0)) ->  | AX21: =Interface!F17 -> 0 | AY21: =Interface!F20 -> 0 | BB21: SKP25.012U2 | BC21: 25 | BD21: 220 VAC | BE21: No | BF21: No | BG21: No | DG21: =PIPor1NPIndex[[#This Row],[PIP or NP]]&"-"&PIPor1NPIndex[[#This Row],[Pipe Size]] -> PIP-4 | DH21: PIP | DI21: 4 | DJ21: 4 | DK21: 1.7
H22: VRG10.080U | I22: 3 | J22: Full | K22: 20 | L22: 438.13 | M22: =IF($B$7<>0,SQRT(($D$6^2)+(2*$D$9*$D$10*$D$15^2)/(1360^2*FRCVSizer[[#This Row],[Cv]]^2)),"NO VKG") -> NO VKG | N22: =FRCVSizer[[#This Row],[Theo P2 (PSIA)]]-14.7 ->  | O22: =IF(Interface!$G$23=FRCVSizer[[#This Row],[Bio Gas?]],FRCVSizer[[#This Row],[Theo P2 (PSIG)]]-$B$8,"") ->  | P22: 300 | Q22: =FRCVSizer[[#This Row],[Pipe Size]]&""" "&FRCVSizer[[#This Row],[Port Size]]&" port" -> 3" Full port | R22: Yes | T22: VGG10.154U | U22: 1 | V22: 0.5" Single Valve Body, NPT | W22: 0.5 | X22: 20 | Y22: 75 | Z22: 6.27 | AA22: No | AB22: 1 | AC22: No | AD22: =SQRT((SSOVSizer[[#This Row],[P2]]^2)+((2*$D$9*$D$10*SSOVSizer[[#This Row],[Combo train Calc Q (SCFH)]]^2)/(1360^2*SSOVSizer[[#This Row],[Cv]]^2))) ->  | AE22: =(SSOVSizer[[#This Row],[P2]]-14.7)*$B$16+14.7 ->  | AF22: =VKGSelection[P2 for SSOV] -> 14.7 | AG22: =IF(SSOVSizer[[#This Row],[P2]]>$D$5,"err P2>P1",1360*SSOVSizer[[#This Row],[Cv]]*SQRT(($D$5+SSOVSizer[[#This Row],[P2]])/($D$9*$D$10))*SQRT(($D$5-SSOVSizer[[#This Row],[P2]])/2)) ->  | AH22: =1360*SSOVSizer[[#This Row],[Cv]]*SQRT((SSOVSizer[[#This Row],[P1 if Trad]]+SSOVSizer[[#This Row],[P2]])/($D$9*$D$10))*SQRT((SSOVSizer[[#This Row],[P1 if Trad]]-SSOVSizer[[#This Row],[P2]])/2) ->  | AI22: =IF(Interface!$F$17="Comb",SSOVSizer[[#This Row],[Combo train Calc Q (SCFH)]]-$D$15,IF(Interface!$F$17="Trad",SSOVSizer[[#This Row],[Trad train Calc Q (SCFH)]]-$D$15,"Train type not selected")) -> Train type not selected | AK22: =IF(AND(SSOVSelection[1 or 2]=SSOVSizer[[#This Row],[2 valves or 1]],SSOVSelection[Bio Gas]=SSOVSizer[[#This Row],[Bio Gas?]],SSOVSelection[NEMA 4]=SSOVSizer[[#This Row],[NEMA 4?]],SSOVSizer[[#This Row],[Calc Q - Desired Q]]<0, SSOVSizer[[#This Row],[Max valve sizes]]="Max"),"Max",IF(AND(SSOVSelection[1 or 2]=SSOVSizer[[#This Row],[2 valves or 1]],SSOVSelection[Bio Gas]=SSOVSizer[[#This Row],[Bio Gas?]],SSOVSelection[NEMA 4]=SSOVSizer[[#This Row],[NEMA 4?]]),SSOVSizer[[#This Row],[Calc Q - Desired Q]],"")) ->  | AL22: =SQRT(($D$5^2)-((2*$D$9*$D$10*$D$15^2)/(1360^2*SSOVSizer[[#This Row],[Cv]]^2))) ->  | BB22: SKP25.013U1 | BC22: 25 | BD22: 120 VAC | BE22: No | BF22: No | BG22: No | DG22: =PIPor1NPIndex[[#This Row],[PIP or NP]]&"-"&PIPor1NPIndex[[#This Row],[Pipe Size]] -> PIP-6 | DH22: PIP | DI22: 6 | DJ22: 4 | DK22: 1.9
H23: VRG10.100U | I23: 4 | J23: Full | K23: 21 | L23: 828.21 | M23: =IF($B$7<>0,SQRT(($D$6^2)+(2*$D$9*$D$10*$D$15^2)/(1360^2*FRCVSizer[[#This Row],[Cv]]^2)),"NO VKG") -> NO VKG | N23: =FRCVSizer[[#This Row],[Theo P2 (PSIA)]]-14.7 ->  | O23: =IF(Interface!$G$23=FRCVSizer[[#This Row],[Bio Gas?]],FRCVSizer[[#This Row],[Theo P2 (PSIG)]]-$B$8,"") ->  | P23: 400 | Q23: =FRCVSizer[[#This Row],[Pipe Size]]&""" "&FRCVSizer[[#This Row],[Port Size]]&" port" -> 4" Full port | R23: Yes | T23: VGG10.154U | U23: 2 | V23: 0.5" Single Valve Body, NPT | W23: 0.5 | X23: 20 | Y23: 75 | Z23: =SQRT((6.27^2)/2) -> 4.433559518 | AA23: No | AB23: 2 | AC23: No | AD23: =SQRT((SSOVSizer[[#This Row],[P2]]^2)+((2*$D$9*$D$10*SSOVSizer[[#This Row],[Combo train Calc Q (SCFH)]]^2)/(1360^2*SSOVSizer[[#This Row],[Cv]]^2))) ->  | AE23: =(SSOVSizer[[#This Row],[P2]]-14.7)*$B$16+14.7 ->  | AF23: =VKGSelection[P2 for SSOV] -> 14.7 | AG23: =IF(SSOVSizer[[#This Row],[P2]]>$D$5,"err P2>P1",1360*SSOVSizer[[#This Row],[Cv]]*SQRT(($D$5+SSOVSizer[[#This Row],[P2]])/($D$9*$D$10))*SQRT(($D$5-SSOVSizer[[#This Row],[P2]])/2)) ->  | AH23: =1360*SSOVSizer[[#This Row],[Cv]]*SQRT((SSOVSizer[[#This Row],[P1 if Trad]]+SSOVSizer[[#This Row],[P2]])/($D$9*$D$10))*SQRT((SSOVSizer[[#This Row],[P1 if Trad]]-SSOVSizer[[#This Row],[P2]])/2) ->  | AI23: =IF(Interface!$F$17="Comb",SSOVSizer[[#This Row],[Combo train Calc Q (SCFH)]]-$D$15,IF(Interface!$F$17="Trad",SSOVSizer[[#This Row],[Trad train Calc Q (SCFH)]]-$D$15,"Train type not selected")) -> Train type not selected | AK23: =IF(AND(SSOVSelection[1 or 2]=SSOVSizer[[#This Row],[2 valves or 1]],SSOVSelection[Bio Gas]=SSOVSizer[[#This Row],[Bio Gas?]],SSOVSelection[NEMA 4]=SSOVSizer[[#This Row],[NEMA 4?]],SSOVSizer[[#This Row],[Calc Q - Desired Q]]<0, SSOVSizer[[#This Row],[Max valve sizes]]="Max"),"Max",IF(AND(SSOVSelection[1 or 2]=SSOVSizer[[#This Row],[2 valves or 1]],SSOVSelection[Bio Gas]=SSOVSizer[[#This Row],[Bio Gas?]],SSOVSelection[NEMA 4]=SSOVSizer[[#This Row],[NEMA 4?]]),SSOVSizer[[#This Row],[Calc Q - Desired Q]],"")) ->  | AL23: =SQRT(($D$5^2)-((2*$D$9*$D$10*$D$15^2)/(1360^2*SSOVSizer[[#This Row],[Cv]]^2))) ->  | BB23: SKP25.411U1 | BC23: 25 | BD23: 120 VAC | BE23: Yes | BF23: No | BG23: Yes
H24: VKG10.015U | I24: 0.5 | J24: Full | K24: 1 | L24: 5.19 | M24: =IF($B$7<>0,SQRT(($D$6^2)+(2*$D$9*$D$10*$D$15^2)/(1360^2*FRCVSizer[[#This Row],[Cv]]^2)),"NO VKG") -> NO VKG | N24: =FRCVSizer[[#This Row],[Theo P2 (PSIA)]]-14.7 ->  | O24: =IF(Interface!$G$23=FRCVSizer[[#This Row],[Bio Gas?]],FRCVSizer[[#This Row],[Theo P2 (PSIG)]]-$B$8,"") ->  | P24: 050 | Q24: =FRCVSizer[[#This Row],[Pipe Size]]&""" "&FRCVSizer[[#This Row],[Port Size]]&" port" -> 0.5" Full port | R24: No | T24: VGG10.154U | U24: 2 | V24: 0.5" Single Valve Body, NPT | W24: 0.5 | X24: 20 | Y24: 75 | Z24: =SQRT((4.49^2)/2) -> 3.174909448 | AA24: Yes | AB24: 2 | AC24: No | AD24: =SQRT((SSOVSizer[[#This Row],[P2]]^2)+((2*$D$9*$D$10*SSOVSizer[[#This Row],[Combo train Calc Q (SCFH)]]^2)/(1360^2*SSOVSizer[[#This Row],[Cv]]^2))) ->  | AE24: =(SSOVSizer[[#This Row],[P2]]-14.7)*$B$16+14.7 ->  | AF24: =VKGSelection[P2 for SSOV] -> 14.7 | AG24: =IF(SSOVSizer[[#This Row],[P2]]>$D$5,"err P2>P1",1360*SSOVSizer[[#This Row],[Cv]]*SQRT(($D$5+SSOVSizer[[#This Row],[P2]])/($D$9*$D$10))*SQRT(($D$5-SSOVSizer[[#This Row],[P2]])/2)) ->  | AH24: =1360*SSOVSizer[[#This Row],[Cv]]*SQRT((SSOVSizer[[#This Row],[P1 if Trad]]+SSOVSizer[[#This Row],[P2]])/($D$9*$D$10))*SQRT((SSOVSizer[[#This Row],[P1 if Trad]]-SSOVSizer[[#This Row],[P2]])/2) ->  | AI24: =IF(Interface!$F$17="Comb",SSOVSizer[[#This Row],[Combo train Calc Q (SCFH)]]-$D$15,IF(Interface!$F$17="Trad",SSOVSizer[[#This Row],[Trad train Calc Q (SCFH)]]-$D$15,"Train type not selected")) -> Train type not selected | AK24: =IF(AND(SSOVSelection[1 or 2]=SSOVSizer[[#This Row],[2 valves or 1]],SSOVSelection[Bio Gas]=SSOVSizer[[#This Row],[Bio Gas?]],SSOVSelection[NEMA 4]=SSOVSizer[[#This Row],[NEMA 4?]],SSOVSizer[[#This Row],[Calc Q - Desired Q]]<0, SSOVSizer[[#This Row],[Max valve sizes]]="Max"),"Max",IF(AND(SSOVSelection[1 or 2]=SSOVSizer[[#This Row],[2 valves or 1]],SSOVSelection[Bio Gas]=SSOVSizer[[#This Row],[Bio Gas?]],SSOVSelection[NEMA 4]=SSOVSizer[[#This Row],[NEMA 4?]]),SSOVSizer[[#This Row],[Calc Q - Desired Q]],"")) ->  | AL24: =SQRT(($D$5^2)-((2*$D$9*$D$10*$D$15^2)/(1360^2*SSOVSizer[[#This Row],[Cv]]^2))) ->  | BB24: SKP25.411U1 | BC24: 25 | BD24: 120 VAC | BE24: No | BF24: Yes | BG24: Yes | DG24: PIP or 1NP Selection
H25: VKG20.025U | I25: 1 | J25: Medium | K25: 2 | L25: 19.41 | M25: =IF($B$7<>0,SQRT(($D$6^2)+(2*$D$9*$D$10*$D$15^2)/(1360^2*FRCVSizer[[#This Row],[Cv]]^2)),"NO VKG") -> NO VKG | N25: =FRCVSizer[[#This Row],[Theo P2 (PSIA)]]-14.7 ->  | O25: =IF(Interface!$G$23=FRCVSizer[[#This Row],[Bio Gas?]],FRCVSizer[[#This Row],[Theo P2 (PSIG)]]-$B$8,"") ->  | P25: 100 | Q25: =FRCVSizer[[#This Row],[Pipe Size]]&""" "&FRCVSizer[[#This Row],[Port Size]]&" port" -> 1" Medium port | R25: No | T25: VGG10.204U | U25: 1 | V25: 0.75" Single Valve Body, NPT | W25: 0.75 | X25: 20 | Y25: 75 | Z25: 8.2 | AA25: Yes | AB25: 1 | AC25: No | AD25: =SQRT((SSOVSizer[[#This Row],[P2]]^2)+((2*$D$9*$D$10*SSOVSizer[[#This Row],[Combo train Calc Q (SCFH)]]^2)/(1360^2*SSOVSizer[[#This Row],[Cv]]^2))) ->  | AE25: =(SSOVSizer[[#This Row],[P2]]-14.7)*$B$16+14.7 ->  | AF25: =VKGSelection[P2 for SSOV] -> 14.7 | AG25: =IF(SSOVSizer[[#This Row],[P2]]>$D$5,"err P2>P1",1360*SSOVSizer[[#This Row],[Cv]]*SQRT(($D$5+SSOVSizer[[#This Row],[P2]])/($D$9*$D$10))*SQRT(($D$5-SSOVSizer[[#This Row],[P2]])/2)) ->  | AH25: =1360*SSOVSizer[[#This Row],[Cv]]*SQRT((SSOVSizer[[#This Row],[P1 if Trad]]+SSOVSizer[[#This Row],[P2]])/($D$9*$D$10))*SQRT((SSOVSizer[[#This Row],[P1 if Trad]]-SSOVSizer[[#This Row],[P2]])/2) ->  | AI25: =IF(Interface!$F$17="Comb",SSOVSizer[[#This Row],[Combo train Calc Q (SCFH)]]-$D$15,IF(Interface!$F$17="Trad",SSOVSizer[[#This Row],[Trad train Calc Q (SCFH)]]-$D$15,"Train type not selected")) -> Train type not selected | AK25: =IF(AND(SSOVSelection[1 or 2]=SSOVSizer[[#This Row],[2 valves or 1]],SSOVSelection[Bio Gas]=SSOVSizer[[#This Row],[Bio Gas?]],SSOVSelection[NEMA 4]=SSOVSizer[[#This Row],[NEMA 4?]],SSOVSizer[[#This Row],[Calc Q - Desired Q]]<0, SSOVSizer[[#This Row],[Max valve sizes]]="Max"),"Max",IF(AND(SSOVSelection[1 or 2]=SSOVSizer[[#This Row],[2 valves or 1]],SSOVSelection[Bio Gas]=SSOVSizer[[#This Row],[Bio Gas?]],SSOVSelection[NEMA 4]=SSOVSizer[[#This Row],[NEMA 4?]]),SSOVSizer[[#This Row],[Calc Q - Desired Q]],"")) ->  | AL25: =SQRT(($D$5^2)-((2*$D$9*$D$10*$D$15^2)/(1360^2*SSOVSizer[[#This Row],[Cv]]^2))) ->  | BB25: SKP25.411U1 | BC25: 25 | BD25: 120 VAC | BE25: No | BF25: No | BG25: Yes | DG25: Part Number | DH25: PIP or NP | DI25: Pipe Size2 | DJ25: Lenth | DK25: Cv
H26: VKG10.020U | I26: 0.75 | J26: Full | K26: 3 | L26: 19.52 | M26: =IF($B$7<>0,SQRT(($D$6^2)+(2*$D$9*$D$10*$D$15^2)/(1360^2*FRCVSizer[[#This Row],[Cv]]^2)),"NO VKG") -> NO VKG | N26: =FRCVSizer[[#This Row],[Theo P2 (PSIA)]]-14.7 ->  | O26: =IF(Interface!$G$23=FRCVSizer[[#This Row],[Bio Gas?]],FRCVSizer[[#This Row],[Theo P2 (PSIG)]]-$B$8,"") ->  | P26: 075 | Q26: =FRCVSizer[[#This Row],[Pipe Size]]&""" "&FRCVSizer[[#This Row],[Port Size]]&" port" -> 0.75" Full port | R26: No | T26: VGG10.204U | U26: 1 | V26: 0.75" Single Valve Body, NPT | W26: 0.75 | X26: 20 | Y26: 75 | Z26: 11.56 | AA26: No | AB26: 1 | AC26: No | AD26: =SQRT((SSOVSizer[[#This Row],[P2]]^2)+((2*$D$9*$D$10*SSOVSizer[[#This Row],[Combo train Calc Q (SCFH)]]^2)/(1360^2*SSOVSizer[[#This Row],[Cv]]^2))) ->  | AE26: =(SSOVSizer[[#This Row],[P2]]-14.7)*$B$16+14.7 ->  | AF26: =VKGSelection[P2 for SSOV] -> 14.7 | AG26: =IF(SSOVSizer[[#This Row],[P2]]>$D$5,"err P2>P1",1360*SSOVSizer[[#This Row],[Cv]]*SQRT(($D$5+SSOVSizer[[#This Row],[P2]])/($D$9*$D$10))*SQRT(($D$5-SSOVSizer[[#This Row],[P2]])/2)) ->  | AH26: =1360*SSOVSizer[[#This Row],[Cv]]*SQRT((SSOVSizer[[#This Row],[P1 if Trad]]+SSOVSizer[[#This Row],[P2]])/($D$9*$D$10))*SQRT((SSOVSizer[[#This Row],[P1 if Trad]]-SSOVSizer[[#This Row],[P2]])/2) ->  | AI26: =IF(Interface!$F$17="Comb",SSOVSizer[[#This Row],[Combo train Calc Q (SCFH)]]-$D$15,IF(Interface!$F$17="Trad",SSOVSizer[[#This Row],[Trad train Calc Q (SCFH)]]-$D$15,"Train type not selected")) -> Train type not selected | AK26: =IF(AND(SSOVSelection[1 or 2]=SSOVSizer[[#This Row],[2 valves or 1]],SSOVSelection[Bio Gas]=SSOVSizer[[#This Row],[Bio Gas?]],SSOVSelection[NEMA 4]=SSOVSizer[[#This Row],[NEMA 4?]],SSOVSizer[[#This Row],[Calc Q - Desired Q]]<0, SSOVSizer[[#This Row],[Max valve sizes]]="Max"),"Max",IF(AND(SSOVSelection[1 or 2]=SSOVSizer[[#This Row],[2 valves or 1]],SSOVSelection[Bio Gas]=SSOVSizer[[#This Row],[Bio Gas?]],SSOVSelection[NEMA 4]=SSOVSizer[[#This Row],[NEMA 4?]]),SSOVSizer[[#This Row],[Calc Q - Desired Q]],"")) ->  | AL26: =SQRT(($D$5^2)-((2*$D$9*$D$10*$D$15^2)/(1360^2*SSOVSizer[[#This Row],[Cv]]^2))) ->  | DG26: =INDEX(PIPor1NPIndex[#Data], MATCH(PIPor1NPSelect[PIP or NP]&PIPor1NPSelect[Pipe Size2],PIPor1NPIndex[PIP or NP]&PIPor1NPIndex[Pipe Size],0), MATCH(PIPor1NPIndex[[#Headers],[Part Number]],PIPor1NPIndex[#Headers],0)) ->  | DH26: NP | DI26: =FrtEndPipeSize[Resulting Front End Pipe Size] ->  | DJ26: =INDEX(PIPor1NPIndex[#Data], MATCH(PIPor1NPSelect[Part Number],PIPor1NPIndex[Part Number],0), MATCH(PIPor1NPIndex[[#Headers],[Length]],PIPor1NPIndex[#Headers],0)) ->  | DK26: =INDEX(PIPor1NPIndex[#Data], MATCH(PIPor1NPSelect[Part Number],PIPor1NPIndex[Part Number],0), MATCH(PIPor1NPIndex[[#Headers],[Cv]],PIPor1NPIndex[#Headers],0)) -> 
H27: VKG30.040U | I27: 1.5 | J27: Reduced | K27: 4 | L27: 30.08 | M27: =IF($B$7<>0,SQRT(($D$6^2)+(2*$D$9*$D$10*$D$15^2)/(1360^2*FRCVSizer[[#This Row],[Cv]]^2)),"NO VKG") -> NO VKG | N27: =FRCVSizer[[#This Row],[Theo P2 (PSIA)]]-14.7 ->  | O27: =IF(Interface!$G$23=FRCVSizer[[#This Row],[Bio Gas?]],FRCVSizer[[#This Row],[Theo P2 (PSIG)]]-$B$8,"") ->  | P27: 150 | Q27: =FRCVSizer[[#This Row],[Pipe Size]]&""" "&FRCVSizer[[#This Row],[Port Size]]&" port" -> 1.5" Reduced port | R27: No | T27: VGG10.204U | U27: 2 | V27: 0.75" Single Valve Body, NPT | W27: 0.75 | X27: 20 | Y27: 75 | Z27: =SQRT((11.56^2)/2) -> 8.174154391 | AA27: No | AB27: 2 | AC27: No | AD27: =SQRT((SSOVSizer[[#This Row],[P2]]^2)+((2*$D$9*$D$10*SSOVSizer[[#This Row],[Combo train Calc Q (SCFH)]]^2)/(1360^2*SSOVSizer[[#This Row],[Cv]]^2))) ->  | AE27: =(SSOVSizer[[#This Row],[P2]]-14.7)*$B$16+14.7 ->  | AF27: =VKGSelection[P2 for SSOV] -> 14.7 | AG27: =IF(SSOVSizer[[#This Row],[P2]]>$D$5,"err P2>P1",1360*SSOVSizer[[#This Row],[Cv]]*SQRT(($D$5+SSOVSizer[[#This Row],[P2]])/($D$9*$D$10))*SQRT(($D$5-SSOVSizer[[#This Row],[P2]])/2)) ->  | AH27: =1360*SSOVSizer[[#This Row],[Cv]]*SQRT((SSOVSizer[[#This Row],[P1 if Trad]]+SSOVSizer[[#This Row],[P2]])/($D$9*$D$10))*SQRT((SSOVSizer[[#This Row],[P1 if Trad]]-SSOVSizer[[#This Row],[P2]])/2) ->  | AI27: =IF(Interface!$F$17="Comb",SSOVSizer[[#This Row],[Combo train Calc Q (SCFH)]]-$D$15,IF(Interface!$F$17="Trad",SSOVSizer[[#This Row],[Trad train Calc Q (SCFH)]]-$D$15,"Train type not selected")) -> Train type not selected | AK27: =IF(AND(SSOVSelection[1 or 2]=SSOVSizer[[#This Row],[2 valves or 1]],SSOVSelection[Bio Gas]=SSOVSizer[[#This Row],[Bio Gas?]],SSOVSelection[NEMA 4]=SSOVSizer[[#This Row],[NEMA 4?]],SSOVSizer[[#This Row],[Calc Q - Desired Q]]<0, SSOVSizer[[#This Row],[Max valve sizes]]="Max"),"Max",IF(AND(SSOVSelection[1 or 2]=SSOVSizer[[#This Row],[2 valves or 1]],SSOVSelection[Bio Gas]=SSOVSizer[[#This Row],[Bio Gas?]],SSOVSelection[NEMA 4]=SSOVSizer[[#This Row],[NEMA 4?]]),SSOVSizer[[#This Row],[Calc Q - Desired Q]],"")) ->  | AL27: =SQRT(($D$5^2)-((2*$D$9*$D$10*$D$15^2)/(1360^2*SSOVSizer[[#This Row],[Cv]]^2))) ->  | DG27: if no y strainer write if statement so part number is blank
H28: VKG10.025U | I28: 1 | J28: Full | K28: 5 | L28: 31.44 | M28: =IF($B$7<>0,SQRT(($D$6^2)+(2*$D$9*$D$10*$D$15^2)/(1360^2*FRCVSizer[[#This Row],[Cv]]^2)),"NO VKG") -> NO VKG | N28: =FRCVSizer[[#This Row],[Theo P2 (PSIA)]]-14.7 ->  | O28: =IF(Interface!$G$23=FRCVSizer[[#This Row],[Bio Gas?]],FRCVSizer[[#This Row],[Theo P2 (PSIG)]]-$B$8,"") ->  | P28: 100 | Q28: =FRCVSizer[[#This Row],[Pipe Size]]&""" "&FRCVSizer[[#This Row],[Port Size]]&" port" -> 1" Full port | R28: No | T28: VGG10.204U | U28: 2 | V28: 0.75" Single Valve Body, NPT | W28: 0.75 | X28: 20 | Y28: 75 | Z28: =SQRT((8.2^2)/2) -> 5.798275606 | AA28: Yes | AB28: 2 | AC28: No | AD28: =SQRT((SSOVSizer[[#This Row],[P2]]^2)+((2*$D$9*$D$10*SSOVSizer[[#This Row],[Combo train Calc Q (SCFH)]]^2)/(1360^2*SSOVSizer[[#This Row],[Cv]]^2))) ->  | AE28: =(SSOVSizer[[#This Row],[P2]]-14.7)*$B$16+14.7 ->  | AF28: =VKGSelection[P2 for SSOV] -> 14.7 | AG28: =IF(SSOVSizer[[#This Row],[P2]]>$D$5,"err P2>P1",1360*SSOVSizer[[#This Row],[Cv]]*SQRT(($D$5+SSOVSizer[[#This Row],[P2]])/($D$9*$D$10))*SQRT(($D$5-SSOVSizer[[#This Row],[P2]])/2)) ->  | AH28: =1360*SSOVSizer[[#This Row],[Cv]]*SQRT((SSOVSizer[[#This Row],[P1 if Trad]]+SSOVSizer[[#This Row],[P2]])/($D$9*$D$10))*SQRT((SSOVSizer[[#This Row],[P1 if Trad]]-SSOVSizer[[#This Row],[P2]])/2) ->  | AI28: =IF(Interface!$F$17="Comb",SSOVSizer[[#This Row],[Combo train Calc Q (SCFH)]]-$D$15,IF(Interface!$F$17="Trad",SSOVSizer[[#This Row],[Trad train Calc Q (SCFH)]]-$D$15,"Train type not selected")) -> Train type not selected | AK28: =IF(AND(SSOVSelection[1 or 2]=SSOVSizer[[#This Row],[2 valves or 1]],SSOVSelection[Bio Gas]=SSOVSizer[[#This Row],[Bio Gas?]],SSOVSelection[NEMA 4]=SSOVSizer[[#This Row],[NEMA 4?]],SSOVSizer[[#This Row],[Calc Q - Desired Q]]<0, SSOVSizer[[#This Row],[Max valve sizes]]="Max"),"Max",IF(AND(SSOVSelection[1 or 2]=SSOVSizer[[#This Row],[2 valves or 1]],SSOVSelection[Bio Gas]=SSOVSizer[[#This Row],[Bio Gas?]],SSOVSelection[NEMA 4]=SSOVSizer[[#This Row],[NEMA 4?]]),SSOVSizer[[#This Row],[Calc Q - Desired Q]],"")) ->  | AL28: =SQRT(($D$5^2)-((2*$D$9*$D$10*$D$15^2)/(1360^2*SSOVSizer[[#This Row],[Cv]]^2))) ->  | BB28: GT and Number of actuator logic table
A29: Additional Train Reporting values | H29: VKG20.032U | I29: 1.25 | J29: Medium | K29: 6 | L29: 41.16 | M29: =IF($B$7<>0,SQRT(($D$6^2)+(2*$D$9*$D$10*$D$15^2)/(1360^2*FRCVSizer[[#This Row],[Cv]]^2)),"NO VKG") -> NO VKG | N29: =FRCVSizer[[#This Row],[Theo P2 (PSIA)]]-14.7 ->  | O29: =IF(Interface!$G$23=FRCVSizer[[#This Row],[Bio Gas?]],FRCVSizer[[#This Row],[Theo P2 (PSIG)]]-$B$8,"") ->  | P29: 125 | Q29: =FRCVSizer[[#This Row],[Pipe Size]]&""" "&FRCVSizer[[#This Row],[Port Size]]&" port" -> 1.25" Medium port | R29: No | T29: VGG10.254U | U29: 1 | V29: 1" Single Valve Body, NPT | W29: 1 | X29: 20 | Y29: 75 | Z29: 12.73 | AA29: Yes | AB29: 1 | AC29: No | AD29: =SQRT((SSOVSizer[[#This Row],[P2]]^2)+((2*$D$9*$D$10*SSOVSizer[[#This Row],[Combo train Calc Q (SCFH)]]^2)/(1360^2*SSOVSizer[[#This Row],[Cv]]^2))) ->  | AE29: =(SSOVSizer[[#This Row],[P2]]-14.7)*$B$16+14.7 ->  | AF29: =VKGSelection[P2 for SSOV] -> 14.7 | AG29: =IF(SSOVSizer[[#This Row],[P2]]>$D$5,"err P2>P1",1360*SSOVSizer[[#This Row],[Cv]]*SQRT(($D$5+SSOVSizer[[#This Row],[P2]])/($D$9*$D$10))*SQRT(($D$5-SSOVSizer[[#This Row],[P2]])/2)) ->  | AH29: =1360*SSOVSizer[[#This Row],[Cv]]*SQRT((SSOVSizer[[#This Row],[P1 if Trad]]+SSOVSizer[[#This Row],[P2]])/($D$9*$D$10))*SQRT((SSOVSizer[[#This Row],[P1 if Trad]]-SSOVSizer[[#This Row],[P2]])/2) ->  | AI29: =IF(Interface!$F$17="Comb",SSOVSizer[[#This Row],[Combo train Calc Q (SCFH)]]-$D$15,IF(Interface!$F$17="Trad",SSOVSizer[[#This Row],[Trad train Calc Q (SCFH)]]-$D$15,"Train type not selected")) -> Train type not selected | AK29: =IF(AND(SSOVSelection[1 or 2]=SSOVSizer[[#This Row],[2 valves or 1]],SSOVSelection[Bio Gas]=SSOVSizer[[#This Row],[Bio Gas?]],SSOVSelection[NEMA 4]=SSOVSizer[[#This Row],[NEMA 4?]],SSOVSizer[[#This Row],[Calc Q - Desired Q]]<0, SSOVSizer[[#This Row],[Max valve sizes]]="Max"),"Max",IF(AND(SSOVSelection[1 or 2]=SSOVSizer[[#This Row],[2 valves or 1]],SSOVSelection[Bio Gas]=SSOVSizer[[#This Row],[Bio Gas?]],SSOVSelection[NEMA 4]=SSOVSizer[[#This Row],[NEMA 4?]]),SSOVSizer[[#This Row],[Calc Q - Desired Q]],"")) ->  | AL29: =SQRT(($D$5^2)-((2*$D$9*$D$10*$D$15^2)/(1360^2*SSOVSizer[[#This Row],[Cv]]^2))) ->  | BB29: GT Type | BC29: # of SSOV's | BD29: 2nd Act Type | BE29: 1st Act Type | BF29: High Press | BG29: 2nd Act POC | BH29: 2nd Act Aux
A30: Description | B30: Value | C30: Unit | D30: Conv value | E30: Unit3 | H30: VKG30.050U | I30: 2 | J30: Reduced | K30: 7 | L30: 62.05 | M30: =IF($B$7<>0,SQRT(($D$6^2)+(2*$D$9*$D$10*$D$15^2)/(1360^2*FRCVSizer[[#This Row],[Cv]]^2)),"NO VKG") -> NO VKG | N30: =FRCVSizer[[#This Row],[Theo P2 (PSIA)]]-14.7 ->  | O30: =IF(Interface!$G$23=FRCVSizer[[#This Row],[Bio Gas?]],FRCVSizer[[#This Row],[Theo P2 (PSIG)]]-$B$8,"") ->  | P30: 200 | Q30: =FRCVSizer[[#This Row],[Pipe Size]]&""" "&FRCVSizer[[#This Row],[Port Size]]&" port" -> 2" Reduced port | R30: No | T30: VGG10.254U | U30: 1 | V30: 1" Single Valve Body, NPT | W30: 1 | X30: 20 | Y30: 75 | Z30: 16.98 | AA30: No | AB30: 1 | AC30: No | AD30: =SQRT((SSOVSizer[[#This Row],[P2]]^2)+((2*$D$9*$D$10*SSOVSizer[[#This Row],[Combo train Calc Q (SCFH)]]^2)/(1360^2*SSOVSizer[[#This Row],[Cv]]^2))) ->  | AE30: =(SSOVSizer[[#This Row],[P2]]-14.7)*$B$16+14.7 ->  | AF30: =VKGSelection[P2 for SSOV] -> 14.7 | AG30: =IF(SSOVSizer[[#This Row],[P2]]>$D$5,"err P2>P1",1360*SSOVSizer[[#This Row],[Cv]]*SQRT(($D$5+SSOVSizer[[#This Row],[P2]])/($D$9*$D$10))*SQRT(($D$5-SSOVSizer[[#This Row],[P2]])/2)) ->  | AH30: =1360*SSOVSizer[[#This Row],[Cv]]*SQRT((SSOVSizer[[#This Row],[P1 if Trad]]+SSOVSizer[[#This Row],[P2]])/($D$9*$D$10))*SQRT((SSOVSizer[[#This Row],[P1 if Trad]]-SSOVSizer[[#This Row],[P2]])/2) ->  | AI30: =IF(Interface!$F$17="Comb",SSOVSizer[[#This Row],[Combo train Calc Q (SCFH)]]-$D$15,IF(Interface!$F$17="Trad",SSOVSizer[[#This Row],[Trad train Calc Q (SCFH)]]-$D$15,"Train type not selected")) -> Train type not selected | AK30: =IF(AND(SSOVSelection[1 or 2]=SSOVSizer[[#This Row],[2 valves or 1]],SSOVSelection[Bio Gas]=SSOVSizer[[#This Row],[Bio Gas?]],SSOVSelection[NEMA 4]=SSOVSizer[[#This Row],[NEMA 4?]],SSOVSizer[[#This Row],[Calc Q - Desired Q]]<0, SSOVSizer[[#This Row],[Max valve sizes]]="Max"),"Max",IF(AND(SSOVSelection[1 or 2]=SSOVSizer[[#This Row],[2 valves or 1]],SSOVSelection[Bio Gas]=SSOVSizer[[#This Row],[Bio Gas?]],SSOVSelection[NEMA 4]=SSOVSizer[[#This Row],[NEMA 4?]]),SSOVSizer[[#This Row],[Calc Q - Desired Q]],"")) ->  | AL30: =SQRT(($D$5^2)-((2*$D$9*$D$10*$D$15^2)/(1360^2*SSOVSizer[[#This Row],[Cv]]^2))) ->  | BB30: Trad | BC30: 1 | BD30: 15 | BE30: NA | BF30: Yes | BG30: =IF(AND(Actgttypelogic[[#This Row],[2nd Act Type]]=25,Actgttypelogic[[#This Row],[High Press]]="yes"),"Yes","") ->  | BH30: =IF(AND(Actgttypelogic[[#This Row],[2nd Act Type]]=25,Actgttypelogic[[#This Row],[High Press]]="yes"),"No","") -> 
A31: Desired Press at burner manifold (Pb) | B31: =D6 -> 14.7 | C31: PSIA | D31: =ROUND((Table52[[#This Row],[Value]]-14.7)*27.72,1) -> 0 | E31: inWC | H31: VKG10.032U | I31: 1.25 | J31: Full | K31: 8 | L31: 74.81 | M31: =IF($B$7<>0,SQRT(($D$6^2)+(2*$D$9*$D$10*$D$15^2)/(1360^2*FRCVSizer[[#This Row],[Cv]]^2)),"NO VKG") -> NO VKG | N31: =FRCVSizer[[#This Row],[Theo P2 (PSIA)]]-14.7 ->  | O31: =IF(Interface!$G$23=FRCVSizer[[#This Row],[Bio Gas?]],FRCVSizer[[#This Row],[Theo P2 (PSIG)]]-$B$8,"") ->  | P31: 125 | Q31: =FRCVSizer[[#This Row],[Pipe Size]]&""" "&FRCVSizer[[#This Row],[Port Size]]&" port" -> 1.25" Full port | R31: No | T31: VGG10.404U | U31: 1 | V31: 1.5" Single Valve Body, NPT | W31: 1.5 | X31: 20 | Y31: 75 | Z31: 30.49 | AA31: Yes | AB31: 1 | AC31: No | AD31: =SQRT((SSOVSizer[[#This Row],[P2]]^2)+((2*$D$9*$D$10*SSOVSizer[[#This Row],[Combo train Calc Q (SCFH)]]^2)/(1360^2*SSOVSizer[[#This Row],[Cv]]^2))) ->  | AE31: =(SSOVSizer[[#This Row],[P2]]-14.7)*$B$16+14.7 ->  | AF31: =VKGSelection[P2 for SSOV] -> 14.7 | AG31: =IF(SSOVSizer[[#This Row],[P2]]>$D$5,"err P2>P1",1360*SSOVSizer[[#This Row],[Cv]]*SQRT(($D$5+SSOVSizer[[#This Row],[P2]])/($D$9*$D$10))*SQRT(($D$5-SSOVSizer[[#This Row],[P2]])/2)) ->  | AH31: =1360*SSOVSizer[[#This Row],[Cv]]*SQRT((SSOVSizer[[#This Row],[P1 if Trad]]+SSOVSizer[[#This Row],[P2]])/($D$9*$D$10))*SQRT((SSOVSizer[[#This Row],[P1 if Trad]]-SSOVSizer[[#This Row],[P2]])/2) ->  | AI31: =IF(Interface!$F$17="Comb",SSOVSizer[[#This Row],[Combo train Calc Q (SCFH)]]-$D$15,IF(Interface!$F$17="Trad",SSOVSizer[[#This Row],[Trad train Calc Q (SCFH)]]-$D$15,"Train type not selected")) -> Train type not selected | AK31: =IF(AND(SSOVSelection[1 or 2]=SSOVSizer[[#This Row],[2 valves or 1]],SSOVSelection[Bio Gas]=SSOVSizer[[#This Row],[Bio Gas?]],SSOVSelection[NEMA 4]=SSOVSizer[[#This Row],[NEMA 4?]],SSOVSizer[[#This Row],[Calc Q - Desired Q]]<0, SSOVSizer[[#This Row],[Max valve sizes]]="Max"),"Max",IF(AND(SSOVSelection[1 or 2]=SSOVSizer[[#This Row],[2 valves or 1]],SSOVSelection[Bio Gas]=SSOVSizer[[#This Row],[Bio Gas?]],SSOVSelection[NEMA 4]=SSOVSizer[[#This Row],[NEMA 4?]]),SSOVSizer[[#This Row],[Calc Q - Desired Q]],"")) ->  | AL31: =SQRT(($D$5^2)-((2*$D$9*$D$10*$D$15^2)/(1360^2*SSOVSizer[[#This Row],[Cv]]^2))) ->  | BB31: Trad | BC31: 2 | BD31: 15 | BE31: 15 | BF31: Yes | BG31: =IF(AND(Actgttypelogic[[#This Row],[2nd Act Type]]=25,Actgttypelogic[[#This Row],[High Press]]="yes"),"Yes","") ->  | BH31: =IF(AND(Actgttypelogic[[#This Row],[2nd Act Type]]=25,Actgttypelogic[[#This Row],[High Press]]="yes"),"No","") -> 
A32: Selected VKG Cv Value | B32: =INDEX(FRCVSizer[#Data],MATCH(VKGcustSelect[Part '#],FRCVSizer[Part '#],0),MATCH(FRCVSizer[[#Headers],[Cv]],FRCVSizer[#Headers],0)) ->  | H32: VKG30.065U | I32: 2.5 | J32: Reduced | K32: 9 | L32: 76.09 | M32: =IF($B$7<>0,SQRT(($D$6^2)+(2*$D$9*$D$10*$D$15^2)/(1360^2*FRCVSizer[[#This Row],[Cv]]^2)),"NO VKG") -> NO VKG | N32: =FRCVSizer[[#This Row],[Theo P2 (PSIA)]]-14.7 ->  | O32: =IF(Interface!$G$23=FRCVSizer[[#This Row],[Bio Gas?]],FRCVSizer[[#This Row],[Theo P2 (PSIG)]]-$B$8,"") ->  | P32: 250 | Q32: =FRCVSizer[[#This Row],[Pipe Size]]&""" "&FRCVSizer[[#This Row],[Port Size]]&" port" -> 2.5" Reduced port | R32: No | T32: VGG10.404U | U32: 1 | V32: 1.5" Single Valve Body, NPT | W32: 1.5 | X32: 20 | Y32: 75 | Z32: 39.22 | AA32: No | AB32: 1 | AC32: No | AD32: =SQRT((SSOVSizer[[#This Row],[P2]]^2)+((2*$D$9*$D$10*SSOVSizer[[#This Row],[Combo train Calc Q (SCFH)]]^2)/(1360^2*SSOVSizer[[#This Row],[Cv]]^2))) ->  | AE32: =(SSOVSizer[[#This Row],[P2]]-14.7)*$B$16+14.7 ->  | AF32: =VKGSelection[P2 for SSOV] -> 14.7 | AG32: =IF(SSOVSizer[[#This Row],[P2]]>$D$5,"err P2>P1",1360*SSOVSizer[[#This Row],[Cv]]*SQRT(($D$5+SSOVSizer[[#This Row],[P2]])/($D$9*$D$10))*SQRT(($D$5-SSOVSizer[[#This Row],[P2]])/2)) ->  | AH32: =1360*SSOVSizer[[#This Row],[Cv]]*SQRT((SSOVSizer[[#This Row],[P1 if Trad]]+SSOVSizer[[#This Row],[P2]])/($D$9*$D$10))*SQRT((SSOVSizer[[#This Row],[P1 if Trad]]-SSOVSizer[[#This Row],[P2]])/2) ->  | AI32: =IF(Interface!$F$17="Comb",SSOVSizer[[#This Row],[Combo train Calc Q (SCFH)]]-$D$15,IF(Interface!$F$17="Trad",SSOVSizer[[#This Row],[Trad train Calc Q (SCFH)]]-$D$15,"Train type not selected")) -> Train type not selected | AK32: =IF(AND(SSOVSelection[1 or 2]=SSOVSizer[[#This Row],[2 valves or 1]],SSOVSelection[Bio Gas]=SSOVSizer[[#This Row],[Bio Gas?]],SSOVSelection[NEMA 4]=SSOVSizer[[#This Row],[NEMA 4?]],SSOVSizer[[#This Row],[Calc Q - Desired Q]]<0, SSOVSizer[[#This Row],[Max valve sizes]]="Max"),"Max",IF(AND(SSOVSelection[1 or 2]=SSOVSizer[[#This Row],[2 valves or 1]],SSOVSelection[Bio Gas]=SSOVSizer[[#This Row],[Bio Gas?]],SSOVSelection[NEMA 4]=SSOVSizer[[#This Row],[NEMA 4?]]),SSOVSizer[[#This Row],[Calc Q - Desired Q]],"")) ->  | AL32: =SQRT(($D$5^2)-((2*$D$9*$D$10*$D$15^2)/(1360^2*SSOVSizer[[#This Row],[Cv]]^2))) ->  | BB32: Comb | BC32: 1 | BD32: 25 | BE32: NA | BF32: Yes | BG32: =IF(AND(Actgttypelogic[[#This Row],[2nd Act Type]]=25,Actgttypelogic[[#This Row],[High Press]]="yes"),"Yes","") -> Yes | BH32: =IF(AND(Actgttypelogic[[#This Row],[2nd Act Type]]=25,Actgttypelogic[[#This Row],[High Press]]="yes"),"No","") -> No
A33: Pressure between SSOV and VKG (P1) | B33: =IFERROR(SQRT((B31^2)+(2*$D$9*$D$10*$D$15^2)/(1360^2*B32^2)),B31) -> 14.7 | C33: PSIA | D33: =ROUND((Table52[[#This Row],[Value]]-14.7)*27.72,1) -> 0 | E33: inWC | H33: VKG20.040U | I33: 1.5 | J33: Medium | K33: 10 | L33: 81.35 | M33: =IF($B$7<>0,SQRT(($D$6^2)+(2*$D$9*$D$10*$D$15^2)/(1360^2*FRCVSizer[[#This Row],[Cv]]^2)),"NO VKG") -> NO VKG | N33: =FRCVSizer[[#This Row],[Theo P2 (PSIA)]]-14.7 ->  | O33: =IF(Interface!$G$23=FRCVSizer[[#This Row],[Bio Gas?]],FRCVSizer[[#This Row],[Theo P2 (PSIG)]]-$B$8,"") ->  | P33: 150 | Q33: =FRCVSizer[[#This Row],[Pipe Size]]&""" "&FRCVSizer[[#This Row],[Port Size]]&" port" -> 1.5" Medium port | R33: No | T33: VGG10.504U | U33: 1 | V33: 2" Single Valve Body, NPT | W33: 2 | X33: 20 | Y33: 75 | Z33: 62.92 | AA33: No | AB33: 1 | AC33: No | AD33: =SQRT((SSOVSizer[[#This Row],[P2]]^2)+((2*$D$9*$D$10*SSOVSizer[[#This Row],[Combo train Calc Q (SCFH)]]^2)/(1360^2*SSOVSizer[[#This Row],[Cv]]^2))) ->  | AE33: =(SSOVSizer[[#This Row],[P2]]-14.7)*$B$16+14.7 ->  | AF33: =VKGSelection[P2 for SSOV] -> 14.7 | AG33: =IF(SSOVSizer[[#This Row],[P2]]>$D$5,"err P2>P1",1360*SSOVSizer[[#This Row],[Cv]]*SQRT(($D$5+SSOVSizer[[#This Row],[P2]])/($D$9*$D$10))*SQRT(($D$5-SSOVSizer[[#This Row],[P2]])/2)) ->  | AH33: =1360*SSOVSizer[[#This Row],[Cv]]*SQRT((SSOVSizer[[#This Row],[P1 if Trad]]+SSOVSizer[[#This Row],[P2]])/($D$9*$D$10))*SQRT((SSOVSizer[[#This Row],[P1 if Trad]]-SSOVSizer[[#This Row],[P2]])/2) ->  | AI33: =IF(Interface!$F$17="Comb",SSOVSizer[[#This Row],[Combo train Calc Q (SCFH)]]-$D$15,IF(Interface!$F$17="Trad",SSOVSizer[[#This Row],[Trad train Calc Q (SCFH)]]-$D$15,"Train type not selected")) -> Train type not selected | AK33: =IF(AND(SSOVSelection[1 or 2]=SSOVSizer[[#This Row],[2 valves or 1]],SSOVSelection[Bio Gas]=SSOVSizer[[#This Row],[Bio Gas?]],SSOVSelection[NEMA 4]=SSOVSizer[[#This Row],[NEMA 4?]],SSOVSizer[[#This Row],[Calc Q - Desired Q]]<0, SSOVSizer[[#This Row],[Max valve sizes]]="Max"),"Max",IF(AND(SSOVSelection[1 or 2]=SSOVSizer[[#This Row],[2 valves or 1]],SSOVSelection[Bio Gas]=SSOVSizer[[#This Row],[Bio Gas?]],SSOVSelection[NEMA 4]=SSOVSizer[[#This Row],[NEMA 4?]]),SSOVSizer[[#This Row],[Calc Q - Desired Q]],"")) ->  | AL33: =SQRT(($D$5^2)-((2*$D$9*$D$10*$D$15^2)/(1360^2*SSOVSizer[[#This Row],[Cv]]^2))) ->  | BB33: Comb | BC33: 2 | BD33: 25 | BE33: 15 | BF33: Yes | BG33: =IF(AND(Actgttypelogic[[#This Row],[2nd Act Type]]=25,Actgttypelogic[[#This Row],[High Press]]="yes"),"Yes","") -> Yes | BH33: =IF(AND(Actgttypelogic[[#This Row],[2nd Act Type]]=25,Actgttypelogic[[#This Row],[High Press]]="yes"),"No","") -> No
A34: Selected SSOV Cv Value | B34: =SSOVSelection[Cv] ->  | H34: VKG20.050U | I34: 2 | J34: Medium | K34: 11 | L34: 97.12 | M34: =IF($B$7<>0,SQRT(($D$6^2)+(2*$D$9*$D$10*$D$15^2)/(1360^2*FRCVSizer[[#This Row],[Cv]]^2)),"NO VKG") -> NO VKG | N34: =FRCVSizer[[#This Row],[Theo P2 (PSIA)]]-14.7 ->  | O34: =IF(Interface!$G$23=FRCVSizer[[#This Row],[Bio Gas?]],FRCVSizer[[#This Row],[Theo P2 (PSIG)]]-$B$8,"") ->  | P34: 200 | Q34: =FRCVSizer[[#This Row],[Pipe Size]]&""" "&FRCVSizer[[#This Row],[Port Size]]&" port" -> 2" Medium port | R34: No | T34: VGG10.504U | U34: 1 | V34: 2" Single Valve Body, NPT | W34: 2 | X34: 20 | Y34: 75 | Z34: 62.92 | AA34: Yes | AB34: 1 | AC34: No | AD34: =SQRT((SSOVSizer[[#This Row],[P2]]^2)+((2*$D$9*$D$10*SSOVSizer[[#This Row],[Combo train Calc Q (SCFH)]]^2)/(1360^2*SSOVSizer[[#This Row],[Cv]]^2))) ->  | AE34: =(SSOVSizer[[#This Row],[P2]]-14.7)*$B$16+14.7 ->  | AF34: =VKGSelection[P2 for SSOV] -> 14.7 | AG34: =IF(SSOVSizer[[#This Row],[P2]]>$D$5,"err P2>P1",1360*SSOVSizer[[#This Row],[Cv]]*SQRT(($D$5+SSOVSizer[[#This Row],[P2]])/($D$9*$D$10))*SQRT(($D$5-SSOVSizer[[#This Row],[P2]])/2)) ->  | AH34: =1360*SSOVSizer[[#This Row],[Cv]]*SQRT((SSOVSizer[[#This Row],[P1 if Trad]]+SSOVSizer[[#This Row],[P2]])/($D$9*$D$10))*SQRT((SSOVSizer[[#This Row],[P1 if Trad]]-SSOVSizer[[#This Row],[P2]])/2) ->  | AI34: =IF(Interface!$F$17="Comb",SSOVSizer[[#This Row],[Combo train Calc Q (SCFH)]]-$D$15,IF(Interface!$F$17="Trad",SSOVSizer[[#This Row],[Trad train Calc Q (SCFH)]]-$D$15,"Train type not selected")) -> Train type not selected | AK34: =IF(AND(SSOVSelection[1 or 2]=SSOVSizer[[#This Row],[2 valves or 1]],SSOVSelection[Bio Gas]=SSOVSizer[[#This Row],[Bio Gas?]],SSOVSelection[NEMA 4]=SSOVSizer[[#This Row],[NEMA 4?]],SSOVSizer[[#This Row],[Calc Q - Desired Q]]<0, SSOVSizer[[#This Row],[Max valve sizes]]="Max"),"Max",IF(AND(SSOVSelection[1 or 2]=SSOVSizer[[#This Row],[2 valves or 1]],SSOVSelection[Bio Gas]=SSOVSizer[[#This Row],[Bio Gas?]],SSOVSelection[NEMA 4]=SSOVSizer[[#This Row],[NEMA 4?]]),SSOVSizer[[#This Row],[Calc Q - Desired Q]],"")) ->  | AL34: =SQRT(($D$5^2)-((2*$D$9*$D$10*$D$15^2)/(1360^2*SSOVSizer[[#This Row],[Cv]]^2))) ->  | BB34: Trad | BC34: 1 | BD34: 15 | BE34: NA | BF34: No | BG34: =IF(AND(Actgttypelogic[[#This Row],[2nd Act Type]]=25,Actgttypelogic[[#This Row],[High Press]]="yes"),"Yes","") ->  | BH34: =IF(AND(Actgttypelogic[[#This Row],[2nd Act Type]]=25,Actgttypelogic[[#This Row],[High Press]]="yes"),"No","") -> 
A35: Pressure upstream of SSOV | B35: =SQRT((B33^2)+(2*$D$9*$D$10*$D$15^2)/(1360^2*B34^2)) ->  | C35: PSIA | D35: =IFERROR(ROUND((Table52[[#This Row],[Value]]-14.7)*27.72,1),0) -> 0 | E35: inWC | H35: VKG10.040U | I35: 1.5 | J35: Full | K35: 12 | L35: 100.08 | M35: =IF($B$7<>0,SQRT(($D$6^2)+(2*$D$9*$D$10*$D$15^2)/(1360^2*FRCVSizer[[#This Row],[Cv]]^2)),"NO VKG") -> NO VKG | N35: =FRCVSizer[[#This Row],[Theo P2 (PSIA)]]-14.7 ->  | O35: =IF(Interface!$G$23=FRCVSizer[[#This Row],[Bio Gas?]],FRCVSizer[[#This Row],[Theo P2 (PSIG)]]-$B$8,"") ->  | P35: 150 | Q35: =FRCVSizer[[#This Row],[Pipe Size]]&""" "&FRCVSizer[[#This Row],[Port Size]]&" port" -> 1.5" Full port | R35: No | T35: VGG10.654U | U35: 1 | V35: 2.5" Single Valve Body, NPT | W35: 2.5 | X35: 10 | Y35: 25 | Z35: 91.69 | AA35: No | AB35: 1 | AC35: No | AD35: =SQRT((SSOVSizer[[#This Row],[P2]]^2)+((2*$D$9*$D$10*SSOVSizer[[#This Row],[Combo train Calc Q (SCFH)]]^2)/(1360^2*SSOVSizer[[#This Row],[Cv]]^2))) ->  | AE35: =(SSOVSizer[[#This Row],[P2]]-14.7)*$B$16+14.7 ->  | AF35: =VKGSelection[P2 for SSOV] -> 14.7 | AG35: =IF(SSOVSizer[[#This Row],[P2]]>$D$5,"err P2>P1",1360*SSOVSizer[[#This Row],[Cv]]*SQRT(($D$5+SSOVSizer[[#This Row],[P2]])/($D$9*$D$10))*SQRT(($D$5-SSOVSizer[[#This Row],[P2]])/2)) ->  | AH35: =1360*SSOVSizer[[#This Row],[Cv]]*SQRT((SSOVSizer[[#This Row],[P1 if Trad]]+SSOVSizer[[#This Row],[P2]])/($D$9*$D$10))*SQRT((SSOVSizer[[#This Row],[P1 if Trad]]-SSOVSizer[[#This Row],[P2]])/2) ->  | AI35: =IF(Interface!$F$17="Comb",SSOVSizer[[#This Row],[Combo train Calc Q (SCFH)]]-$D$15,IF(Interface!$F$17="Trad",SSOVSizer[[#This Row],[Trad train Calc Q (SCFH)]]-$D$15,"Train type not selected")) -> Train type not selected | AK35: =IF(AND(SSOVSelection[1 or 2]=SSOVSizer[[#This Row],[2 valves or 1]],SSOVSelection[Bio Gas]=SSOVSizer[[#This Row],[Bio Gas?]],SSOVSelection[NEMA 4]=SSOVSizer[[#This Row],[NEMA 4?]],SSOVSizer[[#This Row],[Calc Q - Desired Q]]<0, SSOVSizer[[#This Row],[Max valve sizes]]="Max"),"Max",IF(AND(SSOVSelection[1 or 2]=SSOVSizer[[#This Row],[2 valves or 1]],SSOVSelection[Bio Gas]=SSOVSizer[[#This Row],[Bio Gas?]],SSOVSelection[NEMA 4]=SSOVSizer[[#This Row],[NEMA 4?]]),SSOVSizer[[#This Row],[Calc Q - Desired Q]],"")) ->  | AL35: =SQRT(($D$5^2)-((2*$D$9*$D$10*$D$15^2)/(1360^2*SSOVSizer[[#This Row],[Cv]]^2))) ->  | BB35: Trad | BC35: 2 | BD35: 15 | BE35: 15 | BF35: No | BG35: =IF(AND(Actgttypelogic[[#This Row],[2nd Act Type]]=25,Actgttypelogic[[#This Row],[High Press]]="yes"),"Yes","") ->  | BH35: =IF(AND(Actgttypelogic[[#This Row],[2nd Act Type]]=25,Actgttypelogic[[#This Row],[High Press]]="yes"),"No","") -> 
A36: Rec' regulator setting (Press US of SSOV +%10) | C36: PSIA | D36: =ROUND(D35*1.1,1) -> 0 | E36: inWC | H36: VKG30.080U | I36: 3 | J36: Reduced | K36: 13 | L36: 147.28 | M36: =IF($B$7<>0,SQRT(($D$6^2)+(2*$D$9*$D$10*$D$15^2)/(1360^2*FRCVSizer[[#This Row],[Cv]]^2)),"NO VKG") -> NO VKG | N36: =FRCVSizer[[#This Row],[Theo P2 (PSIA)]]-14.7 ->  | O36: =IF(Interface!$G$23=FRCVSizer[[#This Row],[Bio Gas?]],FRCVSizer[[#This Row],[Theo P2 (PSIG)]]-$B$8,"") ->  | P36: 300 | Q36: =FRCVSizer[[#This Row],[Pipe Size]]&""" "&FRCVSizer[[#This Row],[Port Size]]&" port" -> 3" Reduced port | R36: No | T36: VGG10.654U | U36: 1 | V36: 2.5" Single Valve Body, NPT | W36: 2.5 | X36: 10 | Y36: 25 | Z36: 91.69 | AA36: Yes | AB36: 1 | AC36: No | AD36: =SQRT((SSOVSizer[[#This Row],[P2]]^2)+((2*$D$9*$D$10*SSOVSizer[[#This Row],[Combo train Calc Q (SCFH)]]^2)/(1360^2*SSOVSizer[[#This Row],[Cv]]^2))) ->  | AE36: =(SSOVSizer[[#This Row],[P2]]-14.7)*$B$16+14.7 ->  | AF36: =VKGSelection[P2 for SSOV] -> 14.7 | AG36: =IF(SSOVSizer[[#This Row],[P2]]>$D$5,"err P2>P1",1360*SSOVSizer[[#This Row],[Cv]]*SQRT(($D$5+SSOVSizer[[#This Row],[P2]])/($D$9*$D$10))*SQRT(($D$5-SSOVSizer[[#This Row],[P2]])/2)) ->  | AH36: =1360*SSOVSizer[[#This Row],[Cv]]*SQRT((SSOVSizer[[#This Row],[P1 if Trad]]+SSOVSizer[[#This Row],[P2]])/($D$9*$D$10))*SQRT((SSOVSizer[[#This Row],[P1 if Trad]]-SSOVSizer[[#This Row],[P2]])/2) ->  | AI36: =IF(Interface!$F$17="Comb",SSOVSizer[[#This Row],[Combo train Calc Q (SCFH)]]-$D$15,IF(Interface!$F$17="Trad",SSOVSizer[[#This Row],[Trad train Calc Q (SCFH)]]-$D$15,"Train type not selected")) -> Train type not selected | AK36: =IF(AND(SSOVSelection[1 or 2]=SSOVSizer[[#This Row],[2 valves or 1]],SSOVSelection[Bio Gas]=SSOVSizer[[#This Row],[Bio Gas?]],SSOVSelection[NEMA 4]=SSOVSizer[[#This Row],[NEMA 4?]],SSOVSizer[[#This Row],[Calc Q - Desired Q]]<0, SSOVSizer[[#This Row],[Max valve sizes]]="Max"),"Max",IF(AND(SSOVSelection[1 or 2]=SSOVSizer[[#This Row],[2 valves or 1]],SSOVSelection[Bio Gas]=SSOVSizer[[#This Row],[Bio Gas?]],SSOVSelection[NEMA 4]=SSOVSizer[[#This Row],[NEMA 4?]]),SSOVSizer[[#This Row],[Calc Q - Desired Q]],"")) ->  | AL36: =SQRT(($D$5^2)-((2*$D$9*$D$10*$D$15^2)/(1360^2*SSOVSizer[[#This Row],[Cv]]^2))) ->  | BB36: Comb | BC36: 1 | BD36: 25 | BE36: NA | BF36: No | BG36: =IF(AND(Actgttypelogic[[#This Row],[2nd Act Type]]=25,Actgttypelogic[[#This Row],[High Press]]="yes"),"Yes","") ->  | BH36: =IF(AND(Actgttypelogic[[#This Row],[2nd Act Type]]=25,Actgttypelogic[[#This Row],[High Press]]="yes"),"No","") -> 
H37: VKG20.065U | I37: 2.5 | J37: Medium | K37: 14 | L37: 170.12 | M37: =IF($B$7<>0,SQRT(($D$6^2)+(2*$D$9*$D$10*$D$15^2)/(1360^2*FRCVSizer[[#This Row],[Cv]]^2)),"NO VKG") -> NO VKG | N37: =FRCVSizer[[#This Row],[Theo P2 (PSIA)]]-14.7 ->  | O37: =IF(Interface!$G$23=FRCVSizer[[#This Row],[Bio Gas?]],FRCVSizer[[#This Row],[Theo P2 (PSIG)]]-$B$8,"") ->  | P37: 250 | Q37: =FRCVSizer[[#This Row],[Pipe Size]]&""" "&FRCVSizer[[#This Row],[Port Size]]&" port" -> 2.5" Medium port | R37: No | T37: VGG10.804U | U37: 1 | V37: 3" Single Valve Body, NPT | W37: 3 | X37: 10 | Y37: 25 | Z37: 113.78 | AA37: No | AB37: 1 | AC37: No | AD37: =SQRT((SSOVSizer[[#This Row],[P2]]^2)+((2*$D$9*$D$10*SSOVSizer[[#This Row],[Combo train Calc Q (SCFH)]]^2)/(1360^2*SSOVSizer[[#This Row],[Cv]]^2))) ->  | AE37: =(SSOVSizer[[#This Row],[P2]]-14.7)*$B$16+14.7 ->  | AF37: =VKGSelection[P2 for SSOV] -> 14.7 | AG37: =IF(SSOVSizer[[#This Row],[P2]]>$D$5,"err P2>P1",1360*SSOVSizer[[#This Row],[Cv]]*SQRT(($D$5+SSOVSizer[[#This Row],[P2]])/($D$9*$D$10))*SQRT(($D$5-SSOVSizer[[#This Row],[P2]])/2)) ->  | AH37: =1360*SSOVSizer[[#This Row],[Cv]]*SQRT((SSOVSizer[[#This Row],[P1 if Trad]]+SSOVSizer[[#This Row],[P2]])/($D$9*$D$10))*SQRT((SSOVSizer[[#This Row],[P1 if Trad]]-SSOVSizer[[#This Row],[P2]])/2) ->  | AI37: =IF(Interface!$F$17="Comb",SSOVSizer[[#This Row],[Combo train Calc Q (SCFH)]]-$D$15,IF(Interface!$F$17="Trad",SSOVSizer[[#This Row],[Trad train Calc Q (SCFH)]]-$D$15,"Train type not selected")) -> Train type not selected | AK37: =IF(AND(SSOVSelection[1 or 2]=SSOVSizer[[#This Row],[2 valves or 1]],SSOVSelection[Bio Gas]=SSOVSizer[[#This Row],[Bio Gas?]],SSOVSelection[NEMA 4]=SSOVSizer[[#This Row],[NEMA 4?]],SSOVSizer[[#This Row],[Calc Q - Desired Q]]<0, SSOVSizer[[#This Row],[Max valve sizes]]="Max"),"Max",IF(AND(SSOVSelection[1 or 2]=SSOVSizer[[#This Row],[2 valves or 1]],SSOVSelection[Bio Gas]=SSOVSizer[[#This Row],[Bio Gas?]],SSOVSelection[NEMA 4]=SSOVSizer[[#This Row],[NEMA 4?]]),SSOVSizer[[#This Row],[Calc Q - Desired Q]],"")) ->  | AL37: =SQRT(($D$5^2)-((2*$D$9*$D$10*$D$15^2)/(1360^2*SSOVSizer[[#This Row],[Cv]]^2))) ->  | AS37: Trad or comb | AT37: VKG | BB37: Comb | BC37: 2 | BD37: 25 | BE37: 15 | BF37: No | BG37: =IF(AND(Actgttypelogic[[#This Row],[2nd Act Type]]=25,Actgttypelogic[[#This Row],[High Press]]="yes"),"Yes","") ->  | BH37: =IF(AND(Actgttypelogic[[#This Row],[2nd Act Type]]=25,Actgttypelogic[[#This Row],[High Press]]="yes"),"No","") -> 
H38: VKG10.050U | I38: 2 | J38: Full | K38: 15 | L38: 180.25 | M38: =IF($B$7<>0,SQRT(($D$6^2)+(2*$D$9*$D$10*$D$15^2)/(1360^2*FRCVSizer[[#This Row],[Cv]]^2)),"NO VKG") -> NO VKG | N38: =FRCVSizer[[#This Row],[Theo P2 (PSIA)]]-14.7 ->  | O38: =IF(Interface!$G$23=FRCVSizer[[#This Row],[Bio Gas?]],FRCVSizer[[#This Row],[Theo P2 (PSIG)]]-$B$8,"") ->  | P38: 200 | Q38: =FRCVSizer[[#This Row],[Pipe Size]]&""" "&FRCVSizer[[#This Row],[Port Size]]&" port" -> 2" Full port | R38: No | T38: VGG10.804U | U38: 1 | V38: 3" Single Valve Body, NPT | W38: 3 | X38: 10 | Y38: 25 | Z38: 113.78 | AA38: Yes | AB38: 1 | AC38: No | AD38: =SQRT((SSOVSizer[[#This Row],[P2]]^2)+((2*$D$9*$D$10*SSOVSizer[[#This Row],[Combo train Calc Q (SCFH)]]^2)/(1360^2*SSOVSizer[[#This Row],[Cv]]^2))) ->  | AE38: =(SSOVSizer[[#This Row],[P2]]-14.7)*$B$16+14.7 ->  | AF38: =VKGSelection[P2 for SSOV] -> 14.7 | AG38: =IF(SSOVSizer[[#This Row],[P2]]>$D$5,"err P2>P1",1360*SSOVSizer[[#This Row],[Cv]]*SQRT(($D$5+SSOVSizer[[#This Row],[P2]])/($D$9*$D$10))*SQRT(($D$5-SSOVSizer[[#This Row],[P2]])/2)) ->  | AH38: =1360*SSOVSizer[[#This Row],[Cv]]*SQRT((SSOVSizer[[#This Row],[P1 if Trad]]+SSOVSizer[[#This Row],[P2]])/($D$9*$D$10))*SQRT((SSOVSizer[[#This Row],[P1 if Trad]]-SSOVSizer[[#This Row],[P2]])/2) ->  | AI38: =IF(Interface!$F$17="Comb",SSOVSizer[[#This Row],[Combo train Calc Q (SCFH)]]-$D$15,IF(Interface!$F$17="Trad",SSOVSizer[[#This Row],[Trad train Calc Q (SCFH)]]-$D$15,"Train type not selected")) -> Train type not selected | AK38: =IF(AND(SSOVSelection[1 or 2]=SSOVSizer[[#This Row],[2 valves or 1]],SSOVSelection[Bio Gas]=SSOVSizer[[#This Row],[Bio Gas?]],SSOVSelection[NEMA 4]=SSOVSizer[[#This Row],[NEMA 4?]],SSOVSizer[[#This Row],[Calc Q - Desired Q]]<0, SSOVSizer[[#This Row],[Max valve sizes]]="Max"),"Max",IF(AND(SSOVSelection[1 or 2]=SSOVSizer[[#This Row],[2 valves or 1]],SSOVSelection[Bio Gas]=SSOVSizer[[#This Row],[Bio Gas?]],SSOVSelection[NEMA 4]=SSOVSizer[[#This Row],[NEMA 4?]]),SSOVSizer[[#This Row],[Calc Q - Desired Q]],"")) ->  | AL38: =SQRT(($D$5^2)-((2*$D$9*$D$10*$D$15^2)/(1360^2*SSOVSizer[[#This Row],[Cv]]^2))) ->  | AS38: Trad | AT38: Yes | AU38: VKG Size
A39: Pressure differential check | H39: VKG30.100U | I39: 4 | J39: Reduced | K39: 16 | L39: 204.19 | M39: =IF($B$7<>0,SQRT(($D$6^2)+(2*$D$9*$D$10*$D$15^2)/(1360^2*FRCVSizer[[#This Row],[Cv]]^2)),"NO VKG") -> NO VKG | N39: =FRCVSizer[[#This Row],[Theo P2 (PSIA)]]-14.7 ->  | O39: =IF(Interface!$G$23=FRCVSizer[[#This Row],[Bio Gas?]],FRCVSizer[[#This Row],[Theo P2 (PSIG)]]-$B$8,"") ->  | P39: 400 | Q39: =FRCVSizer[[#This Row],[Pipe Size]]&""" "&FRCVSizer[[#This Row],[Port Size]]&" port" -> 4" Reduced port | R39: No | T39: VGG10.804U | U39: 1 | V39: 3" Single Valve Body, NPT | W39: 3 | X39: 10 | Y39: 25 | Z39: 113.78 | AA39: No | AB39: 1 | AC39: No | AD39: =SQRT((SSOVSizer[[#This Row],[P2]]^2)+((2*$D$9*$D$10*SSOVSizer[[#This Row],[Combo train Calc Q (SCFH)]]^2)/(1360^2*SSOVSizer[[#This Row],[Cv]]^2))) ->  | AE39: =(SSOVSizer[[#This Row],[P2]]-14.7)*$B$16+14.7 ->  | AF39: =VKGSelection[P2 for SSOV] -> 14.7 | AG39: =IF(SSOVSizer[[#This Row],[P2]]>$D$5,"err P2>P1",1360*SSOVSizer[[#This Row],[Cv]]*SQRT(($D$5+SSOVSizer[[#This Row],[P2]])/($D$9*$D$10))*SQRT(($D$5-SSOVSizer[[#This Row],[P2]])/2)) ->  | AH39: =1360*SSOVSizer[[#This Row],[Cv]]*SQRT((SSOVSizer[[#This Row],[P1 if Trad]]+SSOVSizer[[#This Row],[P2]])/($D$9*$D$10))*SQRT((SSOVSizer[[#This Row],[P1 if Trad]]-SSOVSizer[[#This Row],[P2]])/2) ->  | AI39: =IF(Interface!$F$17="Comb",SSOVSizer[[#This Row],[Combo train Calc Q (SCFH)]]-$D$15,IF(Interface!$F$17="Trad",SSOVSizer[[#This Row],[Trad train Calc Q (SCFH)]]-$D$15,"Train type not selected")) -> Train type not selected | AJ39: max | AK39: =IF(AND(SSOVSelection[1 or 2]=SSOVSizer[[#This Row],[2 valves or 1]],SSOVSelection[Bio Gas]=SSOVSizer[[#This Row],[Bio Gas?]],SSOVSelection[NEMA 4]=SSOVSizer[[#This Row],[NEMA 4?]],SSOVSizer[[#This Row],[Calc Q - Desired Q]]<0, SSOVSizer[[#This Row],[Max valve sizes]]="Max"),"Max",IF(AND(SSOVSelection[1 or 2]=SSOVSizer[[#This Row],[2 valves or 1]],SSOVSelection[Bio Gas]=SSOVSizer[[#This Row],[Bio Gas?]],SSOVSelection[NEMA 4]=SSOVSizer[[#This Row],[NEMA 4?]]),SSOVSizer[[#This Row],[Calc Q - Desired Q]],"")) ->  | AL39: =SQRT(($D$5^2)-((2*$D$9*$D$10*$D$15^2)/(1360^2*SSOVSizer[[#This Row],[Cv]]^2))) ->  | AS39: Trad | AT39: No | AU39: SSOV Size | BB39: Downstream Actuator Selection
H40: VKG10.065U | I40: 2.5 | J40: Full | K40: 17 | L40: 254.54 | M40: =IF($B$7<>0,SQRT(($D$6^2)+(2*$D$9*$D$10*$D$15^2)/(1360^2*FRCVSizer[[#This Row],[Cv]]^2)),"NO VKG") -> NO VKG | N40: =FRCVSizer[[#This Row],[Theo P2 (PSIA)]]-14.7 ->  | O40: =IF(Interface!$G$23=FRCVSizer[[#This Row],[Bio Gas?]],FRCVSizer[[#This Row],[Theo P2 (PSIG)]]-$B$8,"") ->  | P40: 250 | Q40: =FRCVSizer[[#This Row],[Pipe Size]]&""" "&FRCVSizer[[#This Row],[Port Size]]&" port" -> 2.5" Full port | R40: No | T40: VGG10.804U | U40: 1 | V40: 3" Single Valve Body, NPT | W40: 3 | X40: 10 | Y40: 25 | Z40: 113.78 | AA40: Yes | AB40: 1 | AC40: No | AD40: =SQRT((SSOVSizer[[#This Row],[P2]]^2)+((2*$D$9*$D$10*SSOVSizer[[#This Row],[Combo train Calc Q (SCFH)]]^2)/(1360^2*SSOVSizer[[#This Row],[Cv]]^2))) ->  | AE40: =(SSOVSizer[[#This Row],[P2]]-14.7)*$B$16+14.7 ->  | AF40: =VKGSelection[P2 for SSOV] -> 14.7 | AG40: =IF(SSOVSizer[[#This Row],[P2]]>$D$5,"err P2>P1",1360*SSOVSizer[[#This Row],[Cv]]*SQRT(($D$5+SSOVSizer[[#This Row],[P2]])/($D$9*$D$10))*SQRT(($D$5-SSOVSizer[[#This Row],[P2]])/2)) ->  | AH40: =1360*SSOVSizer[[#This Row],[Cv]]*SQRT((SSOVSizer[[#This Row],[P1 if Trad]]+SSOVSizer[[#This Row],[P2]])/($D$9*$D$10))*SQRT((SSOVSizer[[#This Row],[P1 if Trad]]-SSOVSizer[[#This Row],[P2]])/2) ->  | AI40: =IF(Interface!$F$17="Comb",SSOVSizer[[#This Row],[Combo train Calc Q (SCFH)]]-$D$15,IF(Interface!$F$17="Trad",SSOVSizer[[#This Row],[Trad train Calc Q (SCFH)]]-$D$15,"Train type not selected")) -> Train type not selected | AJ40: max | AK40: =IF(AND(SSOVSelection[1 or 2]=SSOVSizer[[#This Row],[2 valves or 1]],SSOVSelection[Bio Gas]=SSOVSizer[[#This Row],[Bio Gas?]],SSOVSelection[NEMA 4]=SSOVSizer[[#This Row],[NEMA 4?]],SSOVSizer[[#This Row],[Calc Q - Desired Q]]<0, SSOVSizer[[#This Row],[Max valve sizes]]="Max"),"Max",IF(AND(SSOVSelection[1 or 2]=SSOVSizer[[#This Row],[2 valves or 1]],SSOVSelection[Bio Gas]=SSOVSizer[[#This Row],[Bio Gas?]],SSOVSelection[NEMA 4]=SSOVSizer[[#This Row],[NEMA 4?]]),SSOVSizer[[#This Row],[Calc Q - Desired Q]],"")) ->  | AL40: =SQRT(($D$5^2)-((2*$D$9*$D$10*$D$15^2)/(1360^2*SSOVSizer[[#This Row],[Cv]]^2))) ->  | AS40: Comb | AT40: Yes | AU40: Max of Min SP and VKG Size | BB40: Part # | BC40: 2nd Act type | BD40: GT Type | BE40: # Acts | BF40: Voltage | BG40: Does HP force POC? | BH40: 2nd Act POC | BI40: HP No Aux? | BJ40: Aux | BK40: High outlet Press
A41: Bottom Range (PSIG) | B41: Top Range (PSIG) | C41: Turn down | D41: DP (Ps-Pb) (PSIG) | E41: is selected TD in range? | H41: VKG20.080U | I41: 3 | J41: Medium | K41: 18 | L41: 275.17 | M41: =IF($B$7<>0,SQRT(($D$6^2)+(2*$D$9*$D$10*$D$15^2)/(1360^2*FRCVSizer[[#This Row],[Cv]]^2)),"NO VKG") -> NO VKG | N41: =FRCVSizer[[#This Row],[Theo P2 (PSIA)]]-14.7 ->  | O41: =IF(Interface!$G$23=FRCVSizer[[#This Row],[Bio Gas?]],FRCVSizer[[#This Row],[Theo P2 (PSIG)]]-$B$8,"") ->  | P41: 300 | Q41: =FRCVSizer[[#This Row],[Pipe Size]]&""" "&FRCVSizer[[#This Row],[Port Size]]&" port" -> 3" Medium port | R41: No | T41: VRD40.040U | U41: 1 | V41: 1.5" Double Valve Body, NPT - Gas + Biogas | W41: 1.5 | X41: 20 | Y41: 75 | Z41: 33.4 | AA41: No | AB41: 2 | AC41: Yes | AD41: =SQRT((SSOVSizer[[#This Row],[P2]]^2)+((2*$D$9*$D$10*SSOVSizer[[#This Row],[Combo train Calc Q (SCFH)]]^2)/(1360^2*SSOVSizer[[#This Row],[Cv]]^2))) ->  | AE41: =(SSOVSizer[[#This Row],[P2]]-14.7)*$B$16+14.7 ->  | AF41: =VKGSelection[P2 for SSOV] -> 14.7 | AG41: =IF(SSOVSizer[[#This Row],[P2]]>$D$5,"err P2>P1",1360*SSOVSizer[[#This Row],[Cv]]*SQRT(($D$5+SSOVSizer[[#This Row],[P2]])/($D$9*$D$10))*SQRT(($D$5-SSOVSizer[[#This Row],[P2]])/2)) ->  | AH41: =1360*SSOVSizer[[#This Row],[Cv]]*SQRT((SSOVSizer[[#This Row],[P1 if Trad]]+SSOVSizer[[#This Row],[P2]])/($D$9*$D$10))*SQRT((SSOVSizer[[#This Row],[P1 if Trad]]-SSOVSizer[[#This Row],[P2]])/2) ->  | AI41: =IF(Interface!$F$17="Comb",SSOVSizer[[#This Row],[Combo train Calc Q (SCFH)]]-$D$15,IF(Interface!$F$17="Trad",SSOVSizer[[#This Row],[Trad train Calc Q (SCFH)]]-$D$15,"Train type not selected")) -> Train type not selected | AK41: =IF(AND(SSOVSelection[1 or 2]=SSOVSizer[[#This Row],[2 valves or 1]],SSOVSelection[Bio Gas]=SSOVSizer[[#This Row],[Bio Gas?]],SSOVSelection[NEMA 4]=SSOVSizer[[#This Row],[NEMA 4?]],SSOVSizer[[#This Row],[Calc Q - Desired Q]]<0, SSOVSizer[[#This Row],[Max valve sizes]]="Max"),"Max",IF(AND(SSOVSelection[1 or 2]=SSOVSizer[[#This Row],[2 valves or 1]],SSOVSelection[Bio Gas]=SSOVSizer[[#This Row],[Bio Gas?]],SSOVSelection[NEMA 4]=SSOVSizer[[#This Row],[NEMA 4?]]),SSOVSizer[[#This Row],[Calc Q - Desired Q]],"")) ->  | AL41: =SQRT(($D$5^2)-((2*$D$9*$D$10*$D$15^2)/(1360^2*SSOVSizer[[#This Row],[Cv]]^2))) ->  | AM41: AGA40.4050U | AS41: Comb | AT41: No | AU41: Min SP | BB41: =INDEX(ActSizer[#Data],MATCH(Act2Select[2nd Act type]&Act2Select[Voltage]&Act2Select[2nd Act POC]&Act2Select[Aux]&Act2Select[High outlet Press],ActSizer[Act Type]&ActSizer[Voltage]&ActSizer[POC]&ActSizer[Aux]&ActSizer[High Outlet Press],0),MATCH(ActSizer[[#Headers],[Part '#]],ActSizer[#Headers],0)) ->  | BC41: =INDEX(Actgttypelogic[#Data],MATCH(Act2Select[GT Type]&Act2Select['# Acts],Actgttypelogic[GT Type]&Actgttypelogic['# of SSOV''s],0),MATCH("2nd ACT Type",Actgttypelogic[#Headers],0)) ->  | BD41: =Interface!F17 -> 0 | BE41: =Interface!F18 -> 0 | BF41: =Interface!F52 -> 0 | BG41: =INDEX(Actgttypelogic[#Data],MATCH(Act2Select[GT Type]&Act2Select['# Acts]&Act2Select[High outlet Press],Actgttypelogic[GT Type]&Actgttypelogic['# of SSOV''s]&Actgttypelogic[High Press],0),MATCH(Actgttypelogic[[#Headers],[2nd Act POC]],Actgttypelogic[#Headers],0)) ->  | BH41: =IF(OR( LEFT(Interface!F50,3)="POC", LEFT(Interface!F51,3)="POC", Act2Select[Aux]="Yes"),"Yes","No") ->  | BI41: =INDEX(Actgttypelogic[#Data],MATCH(Act2Select[GT Type]&Act2Select['# Acts]&Act2Select[High outlet Press],Actgttypelogic[GT Type]&Actgttypelogic['# of SSOV''s]&Actgttypelogic[High Press],0),MATCH(Actgttypelogic[[#Headers],[2nd Act Aux]],Actgttypelogic[#Headers],0)) ->  | BJ41: =IF(Act2Select[HP No Aux?]<>"",Act2Select[HP No Aux?],IF(OR( RIGHT(Interface!F50,1)="h", RIGHT(Interface!F51,1)="h"),"Yes","No")) ->  | BK41: =IF(AND(B6>=3.5,Act2Select[2nd Act type]=25),"Yes","No") -> 
A42: 7 | B42: 10 | C42: 10:1 or less | D42: =$B$3-$B$6 -> 0 | E42: =IF(TDCheck[[#This Row],[DP (Ps-Pb) (PSIG)]]<=TDCheck[[#This Row],[Top Range (PSIG)]],"Yes","No") -> Yes | H42: VKG20.100U | I42: 4 | J42: Medium | K42: 19 | L42: 430.73 | M42: =IF($B$7<>0,SQRT(($D$6^2)+(2*$D$9*$D$10*$D$15^2)/(1360^2*FRCVSizer[[#This Row],[Cv]]^2)),"NO VKG") -> NO VKG | N42: =FRCVSizer[[#This Row],[Theo P2 (PSIA)]]-14.7 ->  | O42: =IF(Interface!$G$23=FRCVSizer[[#This Row],[Bio Gas?]],FRCVSizer[[#This Row],[Theo P2 (PSIG)]]-$B$8,"") ->  | P42: 400 | Q42: =FRCVSizer[[#This Row],[Pipe Size]]&""" "&FRCVSizer[[#This Row],[Port Size]]&" port" -> 4" Medium port | R42: No | T42: VRD40.040U | U42: 1 | V42: 1.5" Double Valve Body, NPT - Gas + Biogas | W42: 1.5 | X42: 20 | Y42: 75 | Z42: 33.4 | AA42: Yes | AB42: 2 | AC42: Yes | AD42: =SQRT((SSOVSizer[[#This Row],[P2]]^2)+((2*$D$9*$D$10*SSOVSizer[[#This Row],[Combo train Calc Q (SCFH)]]^2)/(1360^2*SSOVSizer[[#This Row],[Cv]]^2))) ->  | AE42: =(SSOVSizer[[#This Row],[P2]]-14.7)*$B$16+14.7 ->  | AF42: =VKGSelection[P2 for SSOV] -> 14.7 | AG42: =IF(SSOVSizer[[#This Row],[P2]]>$D$5,"err P2>P1",1360*SSOVSizer[[#This Row],[Cv]]*SQRT(($D$5+SSOVSizer[[#This Row],[P2]])/($D$9*$D$10))*SQRT(($D$5-SSOVSizer[[#This Row],[P2]])/2)) ->  | AH42: =1360*SSOVSizer[[#This Row],[Cv]]*SQRT((SSOVSizer[[#This Row],[P1 if Trad]]+SSOVSizer[[#This Row],[P2]])/($D$9*$D$10))*SQRT((SSOVSizer[[#This Row],[P1 if Trad]]-SSOVSizer[[#This Row],[P2]])/2) ->  | AI42: =IF(Interface!$F$17="Comb",SSOVSizer[[#This Row],[Combo train Calc Q (SCFH)]]-$D$15,IF(Interface!$F$17="Trad",SSOVSizer[[#This Row],[Trad train Calc Q (SCFH)]]-$D$15,"Train type not selected")) -> Train type not selected | AK42: =IF(AND(SSOVSelection[1 or 2]=SSOVSizer[[#This Row],[2 valves or 1]],SSOVSelection[Bio Gas]=SSOVSizer[[#This Row],[Bio Gas?]],SSOVSelection[NEMA 4]=SSOVSizer[[#This Row],[NEMA 4?]],SSOVSizer[[#This Row],[Calc Q - Desired Q]]<0, SSOVSizer[[#This Row],[Max valve sizes]]="Max"),"Max",IF(AND(SSOVSelection[1 or 2]=SSOVSizer[[#This Row],[2 valves or 1]],SSOVSelection[Bio Gas]=SSOVSizer[[#This Row],[Bio Gas?]],SSOVSelection[NEMA 4]=SSOVSizer[[#This Row],[NEMA 4?]]),SSOVSizer[[#This Row],[Calc Q - Desired Q]],"")) ->  | AL42: =SQRT(($D$5^2)-((2*$D$9*$D$10*$D$15^2)/(1360^2*SSOVSizer[[#This Row],[Cv]]^2))) ->  | AM42: AGA40.4050U
A43: 5 | B43: 7 | C43: 15:1 or less | D43: =$B$3-$B$6 -> 0 | E43: =IF(TDCheck[[#This Row],[DP (Ps-Pb) (PSIG)]]<=TDCheck[[#This Row],[Top Range (PSIG)]],"Yes","No") -> Yes | H43: VKG10.080U | I43: 3 | J43: Full | K43: 20 | L43: 438.13 | M43: =IF($B$7<>0,SQRT(($D$6^2)+(2*$D$9*$D$10*$D$15^2)/(1360^2*FRCVSizer[[#This Row],[Cv]]^2)),"NO VKG") -> NO VKG | N43: =FRCVSizer[[#This Row],[Theo P2 (PSIA)]]-14.7 ->  | O43: =IF(Interface!$G$23=FRCVSizer[[#This Row],[Bio Gas?]],FRCVSizer[[#This Row],[Theo P2 (PSIG)]]-$B$8,"") ->  | P43: 300 | Q43: =FRCVSizer[[#This Row],[Pipe Size]]&""" "&FRCVSizer[[#This Row],[Port Size]]&" port" -> 3" Full port | R43: No | T43: VRD40.050U | U43: 1 | V43: 2" Double Valve Body, NPT - Gas + Biogas | W43: 2 | X43: 20 | Y43: 75 | Z43: 42.68 | AA43: No | AB43: 2 | AC43: Yes | AD43: =SQRT((SSOVSizer[[#This Row],[P2]]^2)+((2*$D$9*$D$10*SSOVSizer[[#This Row],[Combo train Calc Q (SCFH)]]^2)/(1360^2*SSOVSizer[[#This Row],[Cv]]^2))) ->  | AE43: =(SSOVSizer[[#This Row],[P2]]-14.7)*$B$16+14.7 ->  | AF43: =VKGSelection[P2 for SSOV] -> 14.7 | AG43: =IF(SSOVSizer[[#This Row],[P2]]>$D$5,"err P2>P1",1360*SSOVSizer[[#This Row],[Cv]]*SQRT(($D$5+SSOVSizer[[#This Row],[P2]])/($D$9*$D$10))*SQRT(($D$5-SSOVSizer[[#This Row],[P2]])/2)) ->  | AH43: =1360*SSOVSizer[[#This Row],[Cv]]*SQRT((SSOVSizer[[#This Row],[P1 if Trad]]+SSOVSizer[[#This Row],[P2]])/($D$9*$D$10))*SQRT((SSOVSizer[[#This Row],[P1 if Trad]]-SSOVSizer[[#This Row],[P2]])/2) ->  | AI43: =IF(Interface!$F$17="Comb",SSOVSizer[[#This Row],[Combo train Calc Q (SCFH)]]-$D$15,IF(Interface!$F$17="Trad",SSOVSizer[[#This Row],[Trad train Calc Q (SCFH)]]-$D$15,"Train type not selected")) -> Train type not selected | AK43: =IF(AND(SSOVSelection[1 or 2]=SSOVSizer[[#This Row],[2 valves or 1]],SSOVSelection[Bio Gas]=SSOVSizer[[#This Row],[Bio Gas?]],SSOVSelection[NEMA 4]=SSOVSizer[[#This Row],[NEMA 4?]],SSOVSizer[[#This Row],[Calc Q - Desired Q]]<0, SSOVSizer[[#This Row],[Max valve sizes]]="Max"),"Max",IF(AND(SSOVSelection[1 or 2]=SSOVSizer[[#This Row],[2 valves or 1]],SSOVSelection[Bio Gas]=SSOVSizer[[#This Row],[Bio Gas?]],SSOVSelection[NEMA 4]=SSOVSizer[[#This Row],[NEMA 4?]]),SSOVSizer[[#This Row],[Calc Q - Desired Q]],"")) ->  | AL43: =SQRT(($D$5^2)-((2*$D$9*$D$10*$D$15^2)/(1360^2*SSOVSizer[[#This Row],[Cv]]^2))) ->  | AM43: AGA40.4050U | BB43: Upstream Actuator Selection
A44: 1 | B44: 5 | C44: 30:1 or less | D44: =$B$3-$B$6 -> 0 | E44: =IF(TDCheck[[#This Row],[DP (Ps-Pb) (PSIG)]]<=TDCheck[[#This Row],[Top Range (PSIG)]],"Yes","No") -> Yes | H44: VKG10.100U | I44: 4 | J44: Full | K44: 21 | L44: 828.21 | M44: =IF($B$7<>0,SQRT(($D$6^2)+(2*$D$9*$D$10*$D$15^2)/(1360^2*FRCVSizer[[#This Row],[Cv]]^2)),"NO VKG") -> NO VKG | N44: =FRCVSizer[[#This Row],[Theo P2 (PSIA)]]-14.7 ->  | O44: =IF(Interface!$G$23=FRCVSizer[[#This Row],[Bio Gas?]],FRCVSizer[[#This Row],[Theo P2 (PSIG)]]-$B$8,"") ->  | P44: 400 | Q44: =FRCVSizer[[#This Row],[Pipe Size]]&""" "&FRCVSizer[[#This Row],[Port Size]]&" port" -> 4" Full port | R44: No | T44: VRD40.050U | U44: 1 | V44: 2" Double Valve Body, NPT - Gas + Biogas | W44: 2 | X44: 20 | Y44: 75 | Z44: 42.68 | AA44: Yes | AB44: 2 | AC44: Yes | AD44: =SQRT((SSOVSizer[[#This Row],[P2]]^2)+((2*$D$9*$D$10*SSOVSizer[[#This Row],[Combo train Calc Q (SCFH)]]^2)/(1360^2*SSOVSizer[[#This Row],[Cv]]^2))) ->  | AE44: =(SSOVSizer[[#This Row],[P2]]-14.7)*$B$16+14.7 ->  | AF44: =VKGSelection[P2 for SSOV] -> 14.7 | AG44: =IF(SSOVSizer[[#This Row],[P2]]>$D$5,"err P2>P1",1360*SSOVSizer[[#This Row],[Cv]]*SQRT(($D$5+SSOVSizer[[#This Row],[P2]])/($D$9*$D$10))*SQRT(($D$5-SSOVSizer[[#This Row],[P2]])/2)) ->  | AH44: =1360*SSOVSizer[[#This Row],[Cv]]*SQRT((SSOVSizer[[#This Row],[P1 if Trad]]+SSOVSizer[[#This Row],[P2]])/($D$9*$D$10))*SQRT((SSOVSizer[[#This Row],[P1 if Trad]]-SSOVSizer[[#This Row],[P2]])/2) ->  | AI44: =IF(Interface!$F$17="Comb",SSOVSizer[[#This Row],[Combo train Calc Q (SCFH)]]-$D$15,IF(Interface!$F$17="Trad",SSOVSizer[[#This Row],[Trad train Calc Q (SCFH)]]-$D$15,"Train type not selected")) -> Train type not selected | AK44: =IF(AND(SSOVSelection[1 or 2]=SSOVSizer[[#This Row],[2 valves or 1]],SSOVSelection[Bio Gas]=SSOVSizer[[#This Row],[Bio Gas?]],SSOVSelection[NEMA 4]=SSOVSizer[[#This Row],[NEMA 4?]],SSOVSizer[[#This Row],[Calc Q - Desired Q]]<0, SSOVSizer[[#This Row],[Max valve sizes]]="Max"),"Max",IF(AND(SSOVSelection[1 or 2]=SSOVSizer[[#This Row],[2 valves or 1]],SSOVSelection[Bio Gas]=SSOVSizer[[#This Row],[Bio Gas?]],SSOVSelection[NEMA 4]=SSOVSizer[[#This Row],[NEMA 4?]]),SSOVSizer[[#This Row],[Calc Q - Desired Q]],"")) ->  | AL44: =SQRT(($D$5^2)-((2*$D$9*$D$10*$D$15^2)/(1360^2*SSOVSizer[[#This Row],[Cv]]^2))) ->  | AM44: AGA40.4050U | BB44: Part # | BC44: 1st Act type | BD44: GT Type | BE44: # Acts | BF44: Voltage | BG44: 1st Act POC | BH44: Aux | BI44: High outlet Press
A45: 0 | B45: 1 | C45: Greater than 30:1 | D45: =$B$3-$B$6 -> 0 | E45: =IF(TDCheck[[#This Row],[DP (Ps-Pb) (PSIG)]]<=TDCheck[[#This Row],[Top Range (PSIG)]],"Yes","No") -> Yes | T45: VRD40.065UF | U45: 1 | V45: 2.5" Double Valve Body, Flanged - Gas + Biogas | W45: 2.5 | X45: 10 | Y45: 75 | Z45: 72.62 | AA45: No | AB45: 2 | AC45: Yes | AD45: =SQRT((SSOVSizer[[#This Row],[P2]]^2)+((2*$D$9*$D$10*SSOVSizer[[#This Row],[Combo train Calc Q (SCFH)]]^2)/(1360^2*SSOVSizer[[#This Row],[Cv]]^2))) ->  | AE45: =(SSOVSizer[[#This Row],[P2]]-14.7)*$B$16+14.7 ->  | AF45: =VKGSelection[P2 for SSOV] -> 14.7 | AG45: =IF(SSOVSizer[[#This Row],[P2]]>$D$5,"err P2>P1",1360*SSOVSizer[[#This Row],[Cv]]*SQRT(($D$5+SSOVSizer[[#This Row],[P2]])/($D$9*$D$10))*SQRT(($D$5-SSOVSizer[[#This Row],[P2]])/2)) ->  | AH45: =1360*SSOVSizer[[#This Row],[Cv]]*SQRT((SSOVSizer[[#This Row],[P1 if Trad]]+SSOVSizer[[#This Row],[P2]])/($D$9*$D$10))*SQRT((SSOVSizer[[#This Row],[P1 if Trad]]-SSOVSizer[[#This Row],[P2]])/2) ->  | AI45: =IF(Interface!$F$17="Comb",SSOVSizer[[#This Row],[Combo train Calc Q (SCFH)]]-$D$15,IF(Interface!$F$17="Trad",SSOVSizer[[#This Row],[Trad train Calc Q (SCFH)]]-$D$15,"Train type not selected")) -> Train type not selected | AK45: =IF(AND(SSOVSelection[1 or 2]=SSOVSizer[[#This Row],[2 valves or 1]],SSOVSelection[Bio Gas]=SSOVSizer[[#This Row],[Bio Gas?]],SSOVSelection[NEMA 4]=SSOVSizer[[#This Row],[NEMA 4?]],SSOVSizer[[#This Row],[Calc Q - Desired Q]]<0, SSOVSizer[[#This Row],[Max valve sizes]]="Max"),"Max",IF(AND(SSOVSelection[1 or 2]=SSOVSizer[[#This Row],[2 valves or 1]],SSOVSelection[Bio Gas]=SSOVSizer[[#This Row],[Bio Gas?]],SSOVSelection[NEMA 4]=SSOVSizer[[#This Row],[NEMA 4?]]),SSOVSizer[[#This Row],[Calc Q - Desired Q]],"")) ->  | AL45: =SQRT(($D$5^2)-((2*$D$9*$D$10*$D$15^2)/(1360^2*SSOVSizer[[#This Row],[Cv]]^2))) ->  | AM45: AGA40.6580U | BB45: =IFERROR(INDEX(ActSizer[#Data],MATCH(Act1Select[1st Act type]&Act1Select[Voltage]&Act1Select[1st Act POC]&Act1Select[Aux]&Act1Select[High outlet Press],ActSizer[Act Type]&ActSizer[Voltage]&ActSizer[POC]&ActSizer[Aux]&ActSizer[High Outlet Press],0),MATCH(ActSizer[[#Headers],[Part '#]],ActSizer[#Headers],0)),"") ->  | BC45: =INDEX(Actgttypelogic[#Data],MATCH(Act1Select[GT Type]&Act1Select['# Acts],Actgttypelogic[GT Type]&Actgttypelogic['# of SSOV''s],0),MATCH("1st ACT Type",Actgttypelogic[#Headers],0)) ->  | BD45: =Interface!F17 -> 0 | BE45: =Interface!F18 -> 0 | BF45: =Interface!F52 -> 0 | BG45: =IF(OR( LEFT(Interface!F49,3)="POC", Act1Select[Aux]="Yes"),"Yes","No") -> No | BH45: =IF( RIGHT(Interface!F49,1)="h", "Yes","No") -> No | BI45: =IF(AND(B6>=1.5,Act1Select[1st Act type]=25),"Yes","No") -> 
H46: Optimized VKG Selection: | T46: VRD40.065UF | U46: 1 | V46: 2.5" Double Valve Body, Flanged - Gas + Biogas | W46: 2.5 | X46: 10 | Y46: 75 | Z46: 72.62 | AA46: Yes | AB46: 2 | AC46: Yes | AD46: =SQRT((SSOVSizer[[#This Row],[P2]]^2)+((2*$D$9*$D$10*SSOVSizer[[#This Row],[Combo train Calc Q (SCFH)]]^2)/(1360^2*SSOVSizer[[#This Row],[Cv]]^2))) ->  | AE46: =(SSOVSizer[[#This Row],[P2]]-14.7)*$B$16+14.7 ->  | AF46: =VKGSelection[P2 for SSOV] -> 14.7 | AG46: =IF(SSOVSizer[[#This Row],[P2]]>$D$5,"err P2>P1",1360*SSOVSizer[[#This Row],[Cv]]*SQRT(($D$5+SSOVSizer[[#This Row],[P2]])/($D$9*$D$10))*SQRT(($D$5-SSOVSizer[[#This Row],[P2]])/2)) ->  | AH46: =1360*SSOVSizer[[#This Row],[Cv]]*SQRT((SSOVSizer[[#This Row],[P1 if Trad]]+SSOVSizer[[#This Row],[P2]])/($D$9*$D$10))*SQRT((SSOVSizer[[#This Row],[P1 if Trad]]-SSOVSizer[[#This Row],[P2]])/2) ->  | AI46: =IF(Interface!$F$17="Comb",SSOVSizer[[#This Row],[Combo train Calc Q (SCFH)]]-$D$15,IF(Interface!$F$17="Trad",SSOVSizer[[#This Row],[Trad train Calc Q (SCFH)]]-$D$15,"Train type not selected")) -> Train type not selected | AK46: =IF(AND(SSOVSelection[1 or 2]=SSOVSizer[[#This Row],[2 valves or 1]],SSOVSelection[Bio Gas]=SSOVSizer[[#This Row],[Bio Gas?]],SSOVSelection[NEMA 4]=SSOVSizer[[#This Row],[NEMA 4?]],SSOVSizer[[#This Row],[Calc Q - Desired Q]]<0, SSOVSizer[[#This Row],[Max valve sizes]]="Max"),"Max",IF(AND(SSOVSelection[1 or 2]=SSOVSizer[[#This Row],[2 valves or 1]],SSOVSelection[Bio Gas]=SSOVSizer[[#This Row],[Bio Gas?]],SSOVSelection[NEMA 4]=SSOVSizer[[#This Row],[NEMA 4?]]),SSOVSizer[[#This Row],[Calc Q - Desired Q]],"")) ->  | AL46: =SQRT(($D$5^2)-((2*$D$9*$D$10*$D$15^2)/(1360^2*SSOVSizer[[#This Row],[Cv]]^2))) ->  | AM46: AGA40.6580U
H47: Part # | I47: P2 Optimize | J47: Cv Rank | K47: P2 for SSOV | L47: Bio Gas? | T47: VRD40.080UF | U47: 1 | V47: 3" Double Valve Body, Flanged - Gas + Biogas | W47: 3 | X47: 10 | Y47: 75 | Z47: 105.06 | AA47: No | AB47: 2 | AC47: Yes | AD47: =SQRT((SSOVSizer[[#This Row],[P2]]^2)+((2*$D$9*$D$10*SSOVSizer[[#This Row],[Combo train Calc Q (SCFH)]]^2)/(1360^2*SSOVSizer[[#This Row],[Cv]]^2))) ->  | AE47: =(SSOVSizer[[#This Row],[P2]]-14.7)*$B$16+14.7 ->  | AF47: =VKGSelection[P2 for SSOV] -> 14.7 | AG47: =IF(SSOVSizer[[#This Row],[P2]]>$D$5,"err P2>P1",1360*SSOVSizer[[#This Row],[Cv]]*SQRT(($D$5+SSOVSizer[[#This Row],[P2]])/($D$9*$D$10))*SQRT(($D$5-SSOVSizer[[#This Row],[P2]])/2)) ->  | AH47: =1360*SSOVSizer[[#This Row],[Cv]]*SQRT((SSOVSizer[[#This Row],[P1 if Trad]]+SSOVSizer[[#This Row],[P2]])/($D$9*$D$10))*SQRT((SSOVSizer[[#This Row],[P1 if Trad]]-SSOVSizer[[#This Row],[P2]])/2) ->  | AI47: =IF(Interface!$F$17="Comb",SSOVSizer[[#This Row],[Combo train Calc Q (SCFH)]]-$D$15,IF(Interface!$F$17="Trad",SSOVSizer[[#This Row],[Trad train Calc Q (SCFH)]]-$D$15,"Train type not selected")) -> Train type not selected | AK47: =IF(AND(SSOVSelection[1 or 2]=SSOVSizer[[#This Row],[2 valves or 1]],SSOVSelection[Bio Gas]=SSOVSizer[[#This Row],[Bio Gas?]],SSOVSelection[NEMA 4]=SSOVSizer[[#This Row],[NEMA 4?]],SSOVSizer[[#This Row],[Calc Q - Desired Q]]<0, SSOVSizer[[#This Row],[Max valve sizes]]="Max"),"Max",IF(AND(SSOVSelection[1 or 2]=SSOVSizer[[#This Row],[2 valves or 1]],SSOVSelection[Bio Gas]=SSOVSizer[[#This Row],[Bio Gas?]],SSOVSelection[NEMA 4]=SSOVSizer[[#This Row],[NEMA 4?]]),SSOVSizer[[#This Row],[Calc Q - Desired Q]],"")) ->  | AL47: =SQRT(($D$5^2)-((2*$D$9*$D$10*$D$15^2)/(1360^2*SSOVSizer[[#This Row],[Cv]]^2))) ->  | AM47: AGA40.6580U
A48: Data for Diagrams | H48: =INDEX(FRCVSizer[#Data],MATCH(I48,FRCVSizer[Theo P2 - Desired P2 (PSIG)],0),MATCH(FRCVSizer[[#Headers],[Part '#]],FRCVSizer[#Headers],0)) ->  | I48: =MIN(IF(FRCVSizer[Theo P2 - Desired P2 (PSIG)]>0,FRCVSizer[Theo P2 - Desired P2 (PSIG)])) ->  | J48: =INDEX(FRCVSizer[#Data],MATCH(I48,FRCVSizer[Theo P2 - Desired P2 (PSIG)],0),MATCH(FRCVSizer[[#Headers],[Cv Rank]],FRCVSizer[#Headers],0)) ->  | K48: =IF(Interface!F20="Yes",INDEX(FRCVSizer[#Data],MATCH(I48,FRCVSizer[Theo P2 - Desired P2 (PSIG)],0),MATCH(FRCVSizer[[#Headers],[Theo P2 (PSIA)]],FRCVSizer[#Headers],0)),D6) -> 14.7 | L48: =INDEX(FRCVSizer[#Data],MATCH(VKGSelection[Part '#],FRCVSizer[Part '#],0),MATCH(FRCVSizer[[#Headers],[Bio Gas?]],FRCVSizer[#Headers],0)) ->  | T48: VRD40.080UF | U48: 1 | V48: 3" Double Valve Body, Flanged - Gas + Biogas | W48: 3 | X48: 10 | Y48: 75 | Z48: 105.06 | AA48: Yes | AB48: 2 | AC48: Yes | AD48: =SQRT((SSOVSizer[[#This Row],[P2]]^2)+((2*$D$9*$D$10*SSOVSizer[[#This Row],[Combo train Calc Q (SCFH)]]^2)/(1360^2*SSOVSizer[[#This Row],[Cv]]^2))) ->  | AE48: =(SSOVSizer[[#This Row],[P2]]-14.7)*$B$16+14.7 ->  | AF48: =VKGSelection[P2 for SSOV] -> 14.7 | AG48: =IF(SSOVSizer[[#This Row],[P2]]>$D$5,"err P2>P1",1360*SSOVSizer[[#This Row],[Cv]]*SQRT(($D$5+SSOVSizer[[#This Row],[P2]])/($D$9*$D$10))*SQRT(($D$5-SSOVSizer[[#This Row],[P2]])/2)) ->  | AH48: =1360*SSOVSizer[[#This Row],[Cv]]*SQRT((SSOVSizer[[#This Row],[P1 if Trad]]+SSOVSizer[[#This Row],[P2]])/($D$9*$D$10))*SQRT((SSOVSizer[[#This Row],[P1 if Trad]]-SSOVSizer[[#This Row],[P2]])/2) ->  | AI48: =IF(Interface!$F$17="Comb",SSOVSizer[[#This Row],[Combo train Calc Q (SCFH)]]-$D$15,IF(Interface!$F$17="Trad",SSOVSizer[[#This Row],[Trad train Calc Q (SCFH)]]-$D$15,"Train type not selected")) -> Train type not selected | AK48: =IF(AND(SSOVSelection[1 or 2]=SSOVSizer[[#This Row],[2 valves or 1]],SSOVSelection[Bio Gas]=SSOVSizer[[#This Row],[Bio Gas?]],SSOVSelection[NEMA 4]=SSOVSizer[[#This Row],[NEMA 4?]],SSOVSizer[[#This Row],[Calc Q - Desired Q]]<0, SSOVSizer[[#This Row],[Max valve sizes]]="Max"),"Max",IF(AND(SSOVSelection[1 or 2]=SSOVSizer[[#This Row],[2 valves or 1]],SSOVSelection[Bio Gas]=SSOVSizer[[#This Row],[Bio Gas?]],SSOVSelection[NEMA 4]=SSOVSizer[[#This Row],[NEMA 4?]]),SSOVSizer[[#This Row],[Calc Q - Desired Q]],"")) ->  | AL48: =SQRT(($D$5^2)-((2*$D$9*$D$10*$D$15^2)/(1360^2*SSOVSizer[[#This Row],[Cv]]^2))) ->  | AM48: AGA40.6580U
A49: Item | B49: Trad or Comb | C49: PSI or inWC | D49: Value | T49: VRD40.100UF | U49: 1 | V49: 4" Double Valve Body, Flanged - Gas + Biogas | W49: 4 | X49: 10 | Y49: 30 | Z49: 175.59 | AA49: No | AB49: 2 | AC49: Yes | AD49: =SQRT((SSOVSizer[[#This Row],[P2]]^2)+((2*$D$9*$D$10*SSOVSizer[[#This Row],[Combo train Calc Q (SCFH)]]^2)/(1360^2*SSOVSizer[[#This Row],[Cv]]^2))) ->  | AE49: =(SSOVSizer[[#This Row],[P2]]-14.7)*$B$16+14.7 ->  | AF49: =VKGSelection[P2 for SSOV] -> 14.7 | AG49: =IF(SSOVSizer[[#This Row],[P2]]>$D$5,"err P2>P1",1360*SSOVSizer[[#This Row],[Cv]]*SQRT(($D$5+SSOVSizer[[#This Row],[P2]])/($D$9*$D$10))*SQRT(($D$5-SSOVSizer[[#This Row],[P2]])/2)) ->  | AH49: =1360*SSOVSizer[[#This Row],[Cv]]*SQRT((SSOVSizer[[#This Row],[P1 if Trad]]+SSOVSizer[[#This Row],[P2]])/($D$9*$D$10))*SQRT((SSOVSizer[[#This Row],[P1 if Trad]]-SSOVSizer[[#This Row],[P2]])/2) ->  | AI49: =IF(Interface!$F$17="Comb",SSOVSizer[[#This Row],[Combo train Calc Q (SCFH)]]-$D$15,IF(Interface!$F$17="Trad",SSOVSizer[[#This Row],[Trad train Calc Q (SCFH)]]-$D$15,"Train type not selected")) -> Train type not selected | AK49: =IF(AND(SSOVSelection[1 or 2]=SSOVSizer[[#This Row],[2 valves or 1]],SSOVSelection[Bio Gas]=SSOVSizer[[#This Row],[Bio Gas?]],SSOVSelection[NEMA 4]=SSOVSizer[[#This Row],[NEMA 4?]],SSOVSizer[[#This Row],[Calc Q - Desired Q]]<0, SSOVSizer[[#This Row],[Max valve sizes]]="Max"),"Max",IF(AND(SSOVSelection[1 or 2]=SSOVSizer[[#This Row],[2 valves or 1]],SSOVSelection[Bio Gas]=SSOVSizer[[#This Row],[Bio Gas?]],SSOVSelection[NEMA 4]=SSOVSizer[[#This Row],[NEMA 4?]]),SSOVSizer[[#This Row],[Calc Q - Desired Q]],"")) ->  | AL49: =SQRT(($D$5^2)-((2*$D$9*$D$10*$D$15^2)/(1360^2*SSOVSizer[[#This Row],[Cv]]^2))) ->  | AM49: AGA40.0100U
A50: P1 | C50: PSIG | D50: =ROUND('Data, Calcs, Selections'!$D$33/27.7,2)&" "&DataSumMatrix[[#This Row],[PSI or inWC]] -> 0 PSIG | H50: VKG Options | T50: VRD40.100UF | U50: 1 | V50: 4" Double Valve Body, Flanged - Gas + Biogas | W50: 4 | X50: 10 | Y50: 30 | Z50: 175.59 | AA50: Yes | AB50: 2 | AC50: Yes | AD50: =SQRT((SSOVSizer[[#This Row],[P2]]^2)+((2*$D$9*$D$10*SSOVSizer[[#This Row],[Combo train Calc Q (SCFH)]]^2)/(1360^2*SSOVSizer[[#This Row],[Cv]]^2))) ->  | AE50: =(SSOVSizer[[#This Row],[P2]]-14.7)*$B$16+14.7 ->  | AF50: =VKGSelection[P2 for SSOV] -> 14.7 | AG50: =IF(SSOVSizer[[#This Row],[P2]]>$D$5,"err P2>P1",1360*SSOVSizer[[#This Row],[Cv]]*SQRT(($D$5+SSOVSizer[[#This Row],[P2]])/($D$9*$D$10))*SQRT(($D$5-SSOVSizer[[#This Row],[P2]])/2)) ->  | AH50: =1360*SSOVSizer[[#This Row],[Cv]]*SQRT((SSOVSizer[[#This Row],[P1 if Trad]]+SSOVSizer[[#This Row],[P2]])/($D$9*$D$10))*SQRT((SSOVSizer[[#This Row],[P1 if Trad]]-SSOVSizer[[#This Row],[P2]])/2) ->  | AI50: =IF(Interface!$F$17="Comb",SSOVSizer[[#This Row],[Combo train Calc Q (SCFH)]]-$D$15,IF(Interface!$F$17="Trad",SSOVSizer[[#This Row],[Trad train Calc Q (SCFH)]]-$D$15,"Train type not selected")) -> Train type not selected | AK50: =IF(AND(SSOVSelection[1 or 2]=SSOVSizer[[#This Row],[2 valves or 1]],SSOVSelection[Bio Gas]=SSOVSizer[[#This Row],[Bio Gas?]],SSOVSelection[NEMA 4]=SSOVSizer[[#This Row],[NEMA 4?]],SSOVSizer[[#This Row],[Calc Q - Desired Q]]<0, SSOVSizer[[#This Row],[Max valve sizes]]="Max"),"Max",IF(AND(SSOVSelection[1 or 2]=SSOVSizer[[#This Row],[2 valves or 1]],SSOVSelection[Bio Gas]=SSOVSizer[[#This Row],[Bio Gas?]],SSOVSelection[NEMA 4]=SSOVSizer[[#This Row],[NEMA 4?]]),SSOVSizer[[#This Row],[Calc Q - Desired Q]],"")) ->  | AL50: =SQRT(($D$5^2)-((2*$D$9*$D$10*$D$15^2)/(1360^2*SSOVSizer[[#This Row],[Cv]]^2))) ->  | AM50: AGA40.0100U
A51: P1 | C51: inWC | D51: =ROUND('Data, Calcs, Selections'!$D$33,1)&" "&DataSumMatrix[[#This Row],[PSI or inWC]] -> 0 inWC | H51: Part # | I51: Cv Rank | J51: Optimized part | K51: Selection List | T51: VRD40.150UF | U51: 1 | V51: 6" Double Valve Body, Flanged - Gas + Biogas | W51: 6 | X51: 10 | Y51: 30 | Z51: 324.73 | AA51: No | AB51: 2 | AC51: Yes | AD51: =SQRT((SSOVSizer[[#This Row],[P2]]^2)+((2*$D$9*$D$10*SSOVSizer[[#This Row],[Combo train Calc Q (SCFH)]]^2)/(1360^2*SSOVSizer[[#This Row],[Cv]]^2))) ->  | AE51: =(SSOVSizer[[#This Row],[P2]]-14.7)*$B$16+14.7 ->  | AF51: =VKGSelection[P2 for SSOV] -> 14.7 | AG51: =IF(SSOVSizer[[#This Row],[P2]]>$D$5,"err P2>P1",1360*SSOVSizer[[#This Row],[Cv]]*SQRT(($D$5+SSOVSizer[[#This Row],[P2]])/($D$9*$D$10))*SQRT(($D$5-SSOVSizer[[#This Row],[P2]])/2)) ->  | AH51: =1360*SSOVSizer[[#This Row],[Cv]]*SQRT((SSOVSizer[[#This Row],[P1 if Trad]]+SSOVSizer[[#This Row],[P2]])/($D$9*$D$10))*SQRT((SSOVSizer[[#This Row],[P1 if Trad]]-SSOVSizer[[#This Row],[P2]])/2) ->  | AI51: =IF(Interface!$F$17="Comb",SSOVSizer[[#This Row],[Combo train Calc Q (SCFH)]]-$D$15,IF(Interface!$F$17="Trad",SSOVSizer[[#This Row],[Trad train Calc Q (SCFH)]]-$D$15,"Train type not selected")) -> Train type not selected | AK51: =IF(AND(SSOVSelection[1 or 2]=SSOVSizer[[#This Row],[2 valves or 1]],SSOVSelection[Bio Gas]=SSOVSizer[[#This Row],[Bio Gas?]],SSOVSelection[NEMA 4]=SSOVSizer[[#This Row],[NEMA 4?]],SSOVSizer[[#This Row],[Calc Q - Desired Q]]<0, SSOVSizer[[#This Row],[Max valve sizes]]="Max"),"Max",IF(AND(SSOVSelection[1 or 2]=SSOVSizer[[#This Row],[2 valves or 1]],SSOVSelection[Bio Gas]=SSOVSizer[[#This Row],[Bio Gas?]],SSOVSelection[NEMA 4]=SSOVSizer[[#This Row],[NEMA 4?]]),SSOVSizer[[#This Row],[Calc Q - Desired Q]],"")) ->  | AL51: =SQRT(($D$5^2)-((2*$D$9*$D$10*$D$15^2)/(1360^2*SSOVSizer[[#This Row],[Cv]]^2))) ->  | AM51: AGA40.0150U
A52: Pb | C52: PSIG | D52: =ROUND('Data, Calcs, Selections'!$D$31/27.7,2)&" "&DataSumMatrix[[#This Row],[PSI or inWC]] -> 0 PSIG | H52: =INDEX(FRCVSizer[#Data],MATCH(VKGOptions[[#This Row],[Cv Rank]]&VKGSelection[Bio Gas?],FRCVSizer[Cv Rank]&FRCVSizer[Bio Gas?],0),MATCH(FRCVSizer[[#Headers],[Part '#]],FRCVSizer[#Headers],0)) ->  | I52: =I53-1 ->  | K52: =IFERROR("2 sizes down - "&VKGOptions[[#This Row],[Part '#]]&" - "&INDEX(FRCVSizer[#Data],MATCH(VKGOptions[[#This Row],[Part '#]],FRCVSizer[Part '#],0),MATCH("Description",FRCVSizer[#Headers],0)),"") ->  | T52: VRD40.150UF | U52: 1 | V52: 6" Double Valve Body, Flanged - Gas + Biogas | W52: 6 | X52: 10 | Y52: 30 | Z52: 324.73 | AA52: Yes | AB52: 2 | AC52: Yes | AD52: =SQRT((SSOVSizer[[#This Row],[P2]]^2)+((2*$D$9*$D$10*SSOVSizer[[#This Row],[Combo train Calc Q (SCFH)]]^2)/(1360^2*SSOVSizer[[#This Row],[Cv]]^2))) ->  | AE52: =(SSOVSizer[[#This Row],[P2]]-14.7)*$B$16+14.7 ->  | AF52: =VKGSelection[P2 for SSOV] -> 14.7 | AG52: =IF(SSOVSizer[[#This Row],[P2]]>$D$5,"err P2>P1",1360*SSOVSizer[[#This Row],[Cv]]*SQRT(($D$5+SSOVSizer[[#This Row],[P2]])/($D$9*$D$10))*SQRT(($D$5-SSOVSizer[[#This Row],[P2]])/2)) ->  | AH52: =1360*SSOVSizer[[#This Row],[Cv]]*SQRT((SSOVSizer[[#This Row],[P1 if Trad]]+SSOVSizer[[#This Row],[P2]])/($D$9*$D$10))*SQRT((SSOVSizer[[#This Row],[P1 if Trad]]-SSOVSizer[[#This Row],[P2]])/2) ->  | AI52: =IF(Interface!$F$17="Comb",SSOVSizer[[#This Row],[Combo train Calc Q (SCFH)]]-$D$15,IF(Interface!$F$17="Trad",SSOVSizer[[#This Row],[Trad train Calc Q (SCFH)]]-$D$15,"Train type not selected")) -> Train type not selected | AK52: =IF(AND(SSOVSelection[1 or 2]=SSOVSizer[[#This Row],[2 valves or 1]],SSOVSelection[Bio Gas]=SSOVSizer[[#This Row],[Bio Gas?]],SSOVSelection[NEMA 4]=SSOVSizer[[#This Row],[NEMA 4?]],SSOVSizer[[#This Row],[Calc Q - Desired Q]]<0, SSOVSizer[[#This Row],[Max valve sizes]]="Max"),"Max",IF(AND(SSOVSelection[1 or 2]=SSOVSizer[[#This Row],[2 valves or 1]],SSOVSelection[Bio Gas]=SSOVSizer[[#This Row],[Bio Gas?]],SSOVSelection[NEMA 4]=SSOVSizer[[#This Row],[NEMA 4?]]),SSOVSizer[[#This Row],[Calc Q - Desired Q]],"")) ->  | AL52: =SQRT(($D$5^2)-((2*$D$9*$D$10*$D$15^2)/(1360^2*SSOVSizer[[#This Row],[Cv]]^2))) ->  | AM52: AGA40.0150U
A53: Pb | C53: inWC | D53: =ROUND('Data, Calcs, Selections'!$D$31,1)&" "&DataSumMatrix[[#This Row],[PSI or inWC]] -> 0 inWC | H53: =INDEX(FRCVSizer[#Data],MATCH(VKGOptions[[#This Row],[Cv Rank]]&VKGSelection[Bio Gas?],FRCVSizer[Cv Rank]&FRCVSizer[Bio Gas?],0),MATCH(FRCVSizer[[#Headers],[Part '#]],FRCVSizer[#Headers],0)) ->  | I53: =I54-1 ->  | K53: =IFERROR("1 size down - "&VKGOptions[[#This Row],[Part '#]]&" - "&INDEX(FRCVSizer[#Data],MATCH(VKGOptions[[#This Row],[Part '#]],FRCVSizer[Part '#],0),MATCH("Description",FRCVSizer[#Headers],0)),"") ->  | T53: VRD40.150UF | U53: 1 | V53: 6" Double Valve Body, Flanged - Gas + Biogas | W53: 6 | X53: 10 | Y53: 30 | Z53: 324.73 | AA53: No | AB53: 2 | AC53: Yes | AD53: =SQRT((SSOVSizer[[#This Row],[P2]]^2)+((2*$D$9*$D$10*SSOVSizer[[#This Row],[Combo train Calc Q (SCFH)]]^2)/(1360^2*SSOVSizer[[#This Row],[Cv]]^2))) ->  | AE53: =(SSOVSizer[[#This Row],[P2]]-14.7)*$B$16+14.7 ->  | AF53: =VKGSelection[P2 for SSOV] -> 14.7 | AG53: =IF(SSOVSizer[[#This Row],[P2]]>$D$5,"err P2>P1",1360*SSOVSizer[[#This Row],[Cv]]*SQRT(($D$5+SSOVSizer[[#This Row],[P2]])/($D$9*$D$10))*SQRT(($D$5-SSOVSizer[[#This Row],[P2]])/2)) ->  | AH53: =1360*SSOVSizer[[#This Row],[Cv]]*SQRT((SSOVSizer[[#This Row],[P1 if Trad]]+SSOVSizer[[#This Row],[P2]])/($D$9*$D$10))*SQRT((SSOVSizer[[#This Row],[P1 if Trad]]-SSOVSizer[[#This Row],[P2]])/2) ->  | AI53: =IF(Interface!$F$17="Comb",SSOVSizer[[#This Row],[Combo train Calc Q (SCFH)]]-$D$15,IF(Interface!$F$17="Trad",SSOVSizer[[#This Row],[Trad train Calc Q (SCFH)]]-$D$15,"Train type not selected")) -> Train type not selected | AJ53: max | AK53: =IF(AND(SSOVSelection[1 or 2]=SSOVSizer[[#This Row],[2 valves or 1]],SSOVSelection[Bio Gas]=SSOVSizer[[#This Row],[Bio Gas?]],SSOVSelection[NEMA 4]=SSOVSizer[[#This Row],[NEMA 4?]],SSOVSizer[[#This Row],[Calc Q - Desired Q]]<0, SSOVSizer[[#This Row],[Max valve sizes]]="Max"),"Max",IF(AND(SSOVSelection[1 or 2]=SSOVSizer[[#This Row],[2 valves or 1]],SSOVSelection[Bio Gas]=SSOVSizer[[#This Row],[Bio Gas?]],SSOVSelection[NEMA 4]=SSOVSizer[[#This Row],[NEMA 4?]]),SSOVSizer[[#This Row],[Calc Q - Desired Q]],"")) ->  | AL53: =SQRT(($D$5^2)-((2*$D$9*$D$10*$D$15^2)/(1360^2*SSOVSizer[[#This Row],[Cv]]^2))) ->  | AM53: AGA40.0150U
A54: Ps | B54: Trad | C54: PSIG | D54: =ROUND('Data, Calcs, Selections'!$D$35/27.7,2)&" "&DataSumMatrix[[#This Row],[PSI or inWC]] -> 0 PSIG | H54: =INDEX(FRCVSizer[#Data],MATCH(VKGOptions[[#This Row],[Cv Rank]]&VKGSelection[Bio Gas?],FRCVSizer[Cv Rank]&FRCVSizer[Bio Gas?],0),MATCH(FRCVSizer[[#Headers],[Part '#]],FRCVSizer[#Headers],0)) ->  | I54: =VKGSelection[Cv Rank] ->  | J54: optimized | K54: =IFERROR(VKGOptions[[#This Row],[Part '#]],"") ->  | T54: VRD40.150UF | U54: 1 | V54: 6" Double Valve Body, Flanged - Gas + Biogas | W54: 6 | X54: 10 | Y54: 30 | Z54: 324.73 | AA54: Yes | AB54: 2 | AC54: Yes | AD54: =SQRT((SSOVSizer[[#This Row],[P2]]^2)+((2*$D$9*$D$10*SSOVSizer[[#This Row],[Combo train Calc Q (SCFH)]]^2)/(1360^2*SSOVSizer[[#This Row],[Cv]]^2))) ->  | AE54: =(SSOVSizer[[#This Row],[P2]]-14.7)*$B$16+14.7 ->  | AF54: =VKGSelection[P2 for SSOV] -> 14.7 | AG54: =IF(SSOVSizer[[#This Row],[P2]]>$D$5,"err P2>P1",1360*SSOVSizer[[#This Row],[Cv]]*SQRT(($D$5+SSOVSizer[[#This Row],[P2]])/($D$9*$D$10))*SQRT(($D$5-SSOVSizer[[#This Row],[P2]])/2)) ->  | AH54: =1360*SSOVSizer[[#This Row],[Cv]]*SQRT((SSOVSizer[[#This Row],[P1 if Trad]]+SSOVSizer[[#This Row],[P2]])/($D$9*$D$10))*SQRT((SSOVSizer[[#This Row],[P1 if Trad]]-SSOVSizer[[#This Row],[P2]])/2) ->  | AI54: =IF(Interface!$F$17="Comb",SSOVSizer[[#This Row],[Combo train Calc Q (SCFH)]]-$D$15,IF(Interface!$F$17="Trad",SSOVSizer[[#This Row],[Trad train Calc Q (SCFH)]]-$D$15,"Train type not selected")) -> Train type not selected | AJ54: max | AK54: =IF(AND(SSOVSelection[1 or 2]=SSOVSizer[[#This Row],[2 valves or 1]],SSOVSelection[Bio Gas]=SSOVSizer[[#This Row],[Bio Gas?]],SSOVSelection[NEMA 4]=SSOVSizer[[#This Row],[NEMA 4?]],SSOVSizer[[#This Row],[Calc Q - Desired Q]]<0, SSOVSizer[[#This Row],[Max valve sizes]]="Max"),"Max",IF(AND(SSOVSelection[1 or 2]=SSOVSizer[[#This Row],[2 valves or 1]],SSOVSelection[Bio Gas]=SSOVSizer[[#This Row],[Bio Gas?]],SSOVSelection[NEMA 4]=SSOVSizer[[#This Row],[NEMA 4?]]),SSOVSizer[[#This Row],[Calc Q - Desired Q]],"")) ->  | AL54: =SQRT(($D$5^2)-((2*$D$9*$D$10*$D$15^2)/(1360^2*SSOVSizer[[#This Row],[Cv]]^2))) ->  | AM54: AGA40.0150U
A55: Ps | B55: Trad | C55: inWC | D55: =ROUND('Data, Calcs, Selections'!$D$35,1)&" "&DataSumMatrix[[#This Row],[PSI or inWC]] -> 0 inWC | H55: =INDEX(FRCVSizer[#Data],MATCH(VKGOptions[[#This Row],[Cv Rank]]&VKGSelection[Bio Gas?],FRCVSizer[Cv Rank]&FRCVSizer[Bio Gas?],0),MATCH(FRCVSizer[[#Headers],[Part '#]],FRCVSizer[#Headers],0)) ->  | I55: =I54+1 ->  | K55: =IFERROR("1 size up - "&VKGOptions[[#This Row],[Part '#]]&" - "&INDEX(FRCVSizer[#Data],MATCH(VKGOptions[[#This Row],[Part '#]],FRCVSizer[Part '#],0),MATCH("Description",FRCVSizer[#Headers],0)),"") -> 
A56: Ps | B56: Comb | C56: PSIG | D56: =ROUND(Interface!$G$28,2)&" "&DataSumMatrix[[#This Row],[PSI or inWC]] -> 0 PSIG | H56: =INDEX(FRCVSizer[#Data],MATCH(VKGOptions[[#This Row],[Cv Rank]]&VKGSelection[Bio Gas?],FRCVSizer[Cv Rank]&FRCVSizer[Bio Gas?],0),MATCH(FRCVSizer[[#Headers],[Part '#]],FRCVSizer[#Headers],0)) ->  | I56: =I55+1 ->  | K56: =IFERROR("2 sizes up - "&VKGOptions[[#This Row],[Part '#]]&" - "&INDEX(FRCVSizer[#Data],MATCH(VKGOptions[[#This Row],[Part '#]],FRCVSizer[Part '#],0),MATCH("Description",FRCVSizer[#Headers],0)),"") ->  | T56: SSOV Selection:
A57: Ps | B57: Comb | C57: inWC | D57: =ROUND(Interface!$G$28*27.72,1)&" "&DataSumMatrix[[#This Row],[PSI or inWC]] -> 0 inWC | T57: Part # | U57: QTY | V57: NEMA 4 | W57: 1 or 2 | X57: Bio Gas | Y57: Flow Optimize | Z57: Pipe size | AA57: Vel std pipe | AB57: Max inlet Press (PSIG) | AC57: Input Press too high | AD57: 1.2.2-1's | AE57: Cv
A58: R | B58: Trad | C58: PSIG | D58: =ROUND('Data, Calcs, Selections'!$D$36/27.7,2)&" "&DataSumMatrix[[#This Row],[PSI or inWC]] -> 0 PSIG | H58: VKG Selected by Customer | T58: =IFERROR(INDEX(SSOVSizer[#Data],MATCH(SSOVSelection[Flow Optimize],SSOVSizer[Criteria Met: Calc Q - Desired Q],0),MATCH(SSOVSizer[[#Headers],[Part '#]],SSOVSizer[#Headers],0)),"") ->  | U58: =INDEX(SSOVSizer[#Data],MATCH(Y58,SSOVSizer[Criteria Met: Calc Q - Desired Q],0),MATCH(SSOVSizer[[#Headers],[QTY]],SSOVSizer[#Headers],0)) ->  | V58: =Interface!F46 -> 0 | W58: =Interface!F18 -> 0 | X58: =Interface!F24 -> No | Y58: =IF(MIN(IF(SSOVSizer[Criteria Met: Calc Q - Desired Q]>0,SSOVSizer[Criteria Met: Calc Q - Desired Q]))=0,"max",MIN(IF(SSOVSizer[Criteria Met: Calc Q - Desired Q]>0,SSOVSizer[Criteria Met: Calc Q - Desired Q]))) -> max | Z58: =INDEX(SSOVSizer[#Data],MATCH(SSOVSelection[Part '#],SSOVSizer[Part '#],0),MATCH(SSOVSizer[[#Headers],[Pipe Size]],SSOVSizer[#Headers],0)) ->  | AA58: =INDEX(SPSizer[#Data],MATCH(SSOVSelection[Pipe size],SPSizer[Pipe Size],0),MATCH(SPSizer[[#Headers],[Velocity (ft/s)]],SPSizer[#Headers],0)) ->  | AB58: =INDEX(SSOVSizer[#Data],MATCH(SSOVSelection[Part '#],SSOVSizer[Part '#],0),MATCH(SSOVSizer[[#Headers],[Max inlet Press (PSIG)]],SSOVSizer[#Headers],0)) ->  | AC58: =IFERROR(IF(OR( AND(D15<>0,Interface!F17="Comb",$B$5>SSOVSelection[Max inlet Press (PSIG)]), AND(D15<>0,Interface!F17="Trad",(D36/27.7)>SSOVSelection[Max inlet Press (PSIG)])), "Too High!","OK"),"") ->  | AD58: =IFERROR(IF(SSOVSelection[QTY]=2,"2-1's",IF(SSOVSelection[QTY]=1,SSOVSelection[1 or 2],"")),"") ->  | AE58: =IFERROR(INDEX(SSOVSizer[#Data],MATCH(SSOVSelection[Flow Optimize],SSOVSizer[Criteria Met: Calc Q - Desired Q],0),MATCH(SSOVSizer[[#Headers],[Cv]],SSOVSizer[#Headers],0)),"") -> 
A59: R | B59: Trad | C59: inWC | D59: =ROUND('Data, Calcs, Selections'!$D$36,1)&" "&DataSumMatrix[[#This Row],[PSI or inWC]] -> 0 inWC | H59: Part #
A60: R | B60: Comb | C60: PSIG | D60: =ROUND('Data, Calcs, Selections'!$D$35/27.7,2)&" "&DataSumMatrix[[#This Row],[PSI or inWC]] -> 0 PSIG | H60: =IF(Interface!H72="",VKGSelection[Part '#],INDEX(VKGOptions[#Data],MATCH(Interface!H72,VKGOptions[Selection List],0),MATCH(VKGOptions[[#Headers],[Part '#]],VKGOptions[#Headers],0))) ->  | T60: Vent Plate Selection
A61: R | B61: Comb | C61: inWC | D61: =ROUND('Data, Calcs, Selections'!$D$35,1)&" "&DataSumMatrix[[#This Row],[PSI or inWC]] -> 0 inWC | T61: Part # | U61: Yes or No
H62: VA PN Builder | T62: =IF(VentPSelect[Yes or No]="yes",INDEX(SSOVSizer[#Data],MATCH(SSOVSelection[Part '#],SSOVSizer[Part '#],0),MATCH(SSOVSizer[[#Headers],[Vent Plate PN]],SSOVSizer[#Headers],0)),"") ->  | U62: =Interface!F19 -> 0
H63: Part # | I63: VA | J63: Actuator Code | K63: Voltage Code | L63: Pipe Thread Code | M63: Port Size Code | N63: Bio Gas Code | O63: Pipe Size Code | P63: NEMA4 Code
H64: =VASelection[VA]&VASelection[Actuator Code]&VASelection[Voltage Code]&"-"&VASelection[Pipe Thread Code]&VASelection[Port Size Code]&VASelection[Bio Gas Code]&"-"&VASelection[Pipe Size Code]&VASelection[NEMA4 Code] ->  | I64: VA | J64: =INDEX(GasActList[#Data],MATCH(Interface!G22,GasActList[Part '#],0),MATCH(GasActList[[#Headers],[VA actuator code]],GasActList[#Headers],0)) ->  | K64: =IF(Interface!F52="220 VAC","(220)","") ->  | L64: N | M64: =LEFT(INDEX(FRCVSizer[#Data],MATCH(VKGcustSelect[Part '#],FRCVSizer[Part '#],0),MATCH(FRCVSizer[[#Headers],[Port Size]],FRCVSizer[#Headers],0)),1) ->  | N64: =IF(LEFT(VKGcustSelect[Part '#],2)="VR","B","") ->  | O64: =INDEX(FRCVSizer[#Data],MATCH(VKGcustSelect[Part '#],FRCVSizer[Part '#],0),MATCH(FRCVSizer[[#Headers],[Pipe size code for VA]],FRCVSizer[#Headers],0)) ->  | P64: =INDEX(GasActList[#Data],MATCH(Interface!G22,GasActList[Part '#],0),MATCH(GasActList[[#Headers],[VA NEMA Code]],GasActList[#Headers],0)) -> 
H66: VA or VKG for BOM
H67: Part #
H68: =IF(AND(Interface!F20="Yes",Interface!F21="Yes"),VASelection[Part '#],IF(AND(Interface!F20="Yes",Interface!F21="No"),VKGcustSelect[Part '#],"")) -> 

Sheet Selection Lists (hidden)
AD1: Manifold pressure input | AG1: Defualts
A2: Fuel List | E2: Gas pressure ranges | I2: Number POC | K2: Pressure switch selections | O2: Actuator selections | U2: Comb1Low | V2: Comb2Low | W2: Comb1High | X2: Comb2High | Y2: Trad1Low | Z2: Trad2Low | AA2: Trad1High | AB2: Trad2High | AD2: Inlet Pressure (inWC) | AE2: Inlet Pressure (PSIG) | AG2: Default answers
A3: Fuel | B3: SG | C3: HV (BTU/SCF) | E3: Unit | F3: Supply Max | G3: Max Manifold | I3: POC's | K3: Press Switch full | L3: Press Switch Auto only | M3: Press Switch not avail | O3: Part # | P3: Description | Q3: Selection | R3: VA actuator code | S3: VA NEMA Code | U3: None | V3: None | W3: POC switch only | X3: POC switch only | Y3: None | Z3: None | AA3: None | AB3: None | AD3: =IF(Interface!F17="Trad",1000000000,Interface!G28*27.72) -> 0 | AE3: =IF(Interface!F17="Trad",1000000000,Interface!G28) -> 0
A4: Natural Gas | B4: 0.64 | C4: 1000 | E4: PSIG | F4: 20 | G4: 20 | I4: =Interface!F18 -> 0 | K4: Yes - Manual Reset | L4: Yes - Auto Reset | O4: SQM33.550A9 | P4: (stepper, for use with LMV3…) | Q4: =GasActList[[#This Row],[Part '#]]&" "&GasActList[[#This Row],[Description]] -> SQM33.550A9 (stepper, for use with LMV3…) | R4: 33 | S4: ="" ->  | U4: POC switch only | V4: POC switch only | Y4: POC switch only | Z4: POC switch only | AA4: POC switch only | AB4: POC switch only
A5: Propane | B5: 1.52 | C5: 2500 | E5: inWC | F5: =F4*27.72 -> 554.4 | G5: =G4*27.72 -> 554.4 | I5: =IF(I4=0,"",I4-1) ->  | K5: Yes - Auto Reset | L5: Not Required | O5: SQM33.550A9-N4 | P5: (stepper, w/ NEMA 4 Gasket, for use with LMV3…) | Q5: =GasActList[[#This Row],[Part '#]]&" "&GasActList[[#This Row],[Description]] -> SQM33.550A9-N4 (stepper, w/ NEMA 4 Gasket, for use with LMV3…) | R5: 33 | S5: -N4 | U5: POC switch and auxiliary switch | V5: POC switch and auxiliary switch | Y5: POC switch and auxiliary switch | Z5: POC switch and auxiliary switch | AA5: POC switch and auxiliary switch | AB5: POC switch and auxiliary switch | AD5: Min Manifold Press | AE5: Max Manifold Press
A6: Digester | B6: 0.86 | C6: 550 | I6: =IF(I5=0,"",I5-1) ->  | K6: Not Required | O6: SQM45.295B9 | P6: (stepper, for use with LMV5…) | Q6: =GasActList[[#This Row],[Part '#]]&" "&GasActList[[#This Row],[Description]] -> SQM45.295B9 (stepper, for use with LMV5…) | R6: 45.2 | S6: ="" ->  | AD6: 0 | AE6: =IF(Interface!F30="inWC",Maxmanpress[Inlet Pressure (inWC)],Maxmanpress[Inlet Pressure (PSIG)]) -> 0
A7: Butane | B7: 2 | C7: 3200 | O7: SQM45.295B9-N4 | P7: (stepper, w/ NEMA 4 Gasket, for use with LMV5…) | Q7: =GasActList[[#This Row],[Part '#]]&" "&GasActList[[#This Row],[Description]] -> SQM45.295B9-N4 (stepper, w/ NEMA 4 Gasket, for use with LMV5…) | R7: 45.2 | S7: -N4
A8: Custom | B8: =Interface!F25 -> 0 | C8: =Interface!F26 -> 0 | O8: SQM40.115R11 | P8: (12.5 sec, 135 Ohm/4-20 mA, high/low fire feedback) | Q8: =GasActList[[#This Row],[Part '#]]&" "&GasActList[[#This Row],[Description]] -> SQM40.115R11 (12.5 sec, 135 Ohm/4-20 mA, high/low fire feedback) | R8: 40.11 | S8: ="" -> 
O9: SQM40.155R11 | P9: (12.5 sec, 4-20 mA, independent aux switch) | Q9: =GasActList[[#This Row],[Part '#]]&" "&GasActList[[#This Row],[Description]] -> SQM40.155R11 (12.5 sec, 4-20 mA, independent aux switch) | R9: 40.15 | S9: ="" -> 
O10: SQM40.185R11 | P10: (12.5 sec, 3-position, 3 independent aux switches) | Q10: =GasActList[[#This Row],[Part '#]]&" "&GasActList[[#This Row],[Description]] -> SQM40.185R11 (12.5 sec, 3-position, 3 independent aux switches) | R10: 40.18 | S10: ="" ->  | AG10: Natural Gas
A11: 1 Valve Fuel List | B11: 2 Valve Fuel List | O11: SQM40.215R11 | P11: (25 sec, 135 Ohm/4-20 mA, high/low fire feedback) | Q11: =GasActList[[#This Row],[Part '#]]&" "&GasActList[[#This Row],[Description]] -> SQM40.215R11 (25 sec, 135 Ohm/4-20 mA, high/low fire feedback) | R11: 40.21 | S11: ="" -> 
A12: Natural Gas | B12: Natural Gas | O12: SQM40.255R11 | P12: (25 sec, 4-20 mA, independent aux switch) | Q12: =GasActList[[#This Row],[Part '#]]&" "&GasActList[[#This Row],[Description]] -> SQM40.255R11 (25 sec, 4-20 mA, independent aux switch) | R12: 40.25 | S12: ="" -> 
A13: Propane | B13: Propane | O13: SQM40.265R11 | P13: (25 sec, 3-position, high/low fire feedback) | Q13: =GasActList[[#This Row],[Part '#]]&" "&GasActList[[#This Row],[Description]] -> SQM40.265R11 (25 sec, 3-position, high/low fire feedback) | R13: 40.26 | S13: ="" -> 
A14: Butane | B14: Digester | O14: SQM40.275R10 | P14: (25 sec, high/low basic version) | Q14: =GasActList[[#This Row],[Part '#]]&" "&GasActList[[#This Row],[Description]] -> SQM40.275R10 (25 sec, high/low basic version) | R14: 40.27 | S14: ="" -> 
A15: Custom | B15: Butane | O15: SQM40.285R11 | P15: (25 sec, 3-position, 3 independent aux switches) | Q15: =GasActList[[#This Row],[Part '#]]&" "&GasActList[[#This Row],[Description]] -> SQM40.285R11 (25 sec, 3-position, 3 independent aux switches) | R15: 40.28 | S15: ="" -> 
B16: Custom
AG21: 15
AG22: 2
AG23: 0
AG28: 82
AG33: No
AG39: 120 VAC
AG40: No
AG42: Yes
AG43: Upstream (U.S. Standard)
AG47: No

Sheet SCC Parts (hidden)
A1: SCC Part Number | B1: Column34 | C1: Description | D1: Column33 | E1: Column32 | F1: Column31 | G1: Column30 | H1: Column29 | I1: Column28 | J1: Column27 | K1: Column26 | L1: Column25 | M1: Column24 | N1: Column23 | O1: Column22 | P1: Column21 | Q1: Column20 | R1: Column19 | S1: Column18 | T1: Column17 | U1: Column16 | V1: Column15 | W1: Column14 | X1: Column13 | Y1: Column12 | Z1: Column11 | AA1: Column10 | AB1: Column9 | AC1: Column8 | AD1: Column7 | AE1: Column6 | AF1: Column5 | AG1: Column4 | AH1: Column3 | AI1: Column2 | AJ1: Column1
A2: 803113101 | C2: Manual reset, low 1-7 PSI
A3: 803113102 | C3: Manual reset, low 6-15 PSI
A4: 803113301 | C4: Auto reset, low 1-7 PSI
A5: 803113302 | C5: Auto reset, low 6-15 PSI
A6: 803113401 | C6: Auto reset, high 1-7 PSI
A7: 803113402 | C7: Auto reset, high 6-15 PSI
A8: 808000404 | C8: NEMA 3R weather kit for QPL/QPH…M00/A00 pressure switches
A9: AGA22 | C9: SET POINT SPRING FOR SKP25... (6...48" w.c.) yellow
A10: AGA23 | C10: SET POINT SPRING KIT FOR SKP25... (40...100" w.c.) red
A11: AGA25.3 | C11: Damping orifice for SKP25...
A12: AGA25.2 | C12: Damping orifice for SKP25...
A13: AGA40.0100U | C13: 2" NPT vent connection plate
A14: AGA40.0150U | C14: 2-1/2" NPT vent connection plate
A15: AGA40.4050U | C15: 1" NPT vent connection plate
A16: AGA40.6580U | C16: 1-1/4" NPT vent connection plate
A17: AGA63-MRHT | C17: SKP Heater with Thermostat
A18: AGA66 | C18: NEMA 4 Kit for SKPx5… actuator
A19: AGF10.25U | C19: 1" NPT flange for VGD2/VKP valves
A20: AGF10.32U | C20: 1-1/4" NPT flange for VGD2/VKP valves
A21: AGF10.40U | C21: 1-1/2" NPT flange for VGD2/VKP valves
A22: AGF10.50U | C22: 2" NPT flange for VGD2/VKP valves
A23: QPH31.050A00 | C23: Automatic reset high pressure switch 2 to 20" wc
A24: QPH31.050M00 | C24: Manual reset high pressure switch 2 to 20" wc
A25: QPH31.090A00 | C25: Automatic reset high pressure switch 5 to 35" wc
A26: QPH31.150M00 | C26: Manual reset high pressure switch 10 to 55" wc
A27: QPH31.280A00 | C27: Automatic reset high pressure switch 28 to 112" wc
A28: QPL31.050A00 | C28: Automatic reset low pressure switch 1 to 20" wc
A29: QPL31.050M00 | C29: Manual reset low pressure switch 1 to 20" wc
A30: QPL31.075A00 | C30: Automatic reset low pressure switch 5 to 30" wc
A31: QPL31.140M00 | C31: Manual reset low pressure switch 7 to 55" wc
A32: QPL31.280A00 | C32: Automatic reset low pressure switch 28 to 112" wc
A33: SKP15.011U1 | C33: SOV actuator with POC switch, UL, FM, CSA, 110V
A34: SKP15.012U1 | C34: SOV actuator with POC and aux switches, UL, FM, CSA, 110V
A35: SKP15.012U2 | C35: SOV actuator with POC switch and aux switch, UL, FM, CSA, 220V
A36: SKP15.013U1 | C36: SOV actuator with no switches, UL, FM, CSA, 110V
A37: SKP15.013U2 | C37: SOV actuator with no switches, UL, FM, CSA, 220V
A38: SKP25.011U1 | C38: SOV and regulation actuator with POC switch. UL, FM, CSA, 110V
A39: SKP25.012U1 | C39: SOV and regulation actuator with POC & aux switches. UL, FM, CSA, 110V
A40: SKP25.012U2 | C40: SOV and regulation actuator with POC and aux switches. UL, FM, CSA, 220V
A41: SKP25.013U1 | C41: SOV and regulation actuator with no switches. UL, FM, CSA, 110V
A42: SKP25.411U1 | C42: SOV and High pressure regulator (Up to 20 psi), with POC switch. UL, FM, CSA, 110V
A43: VA33-NF-050 | C43: SQM33.550A9 to 1/2" VKG10
A44: VA33-NF-050-N4 | C44: SQM33.550A9 to 1/2" VKG10, NEMA 4
A45: VA33-NF-075 | C45: SQM33.550A9 to 3/4" VKG10
A46: VA33-NF-075-N4 | C46: SQM33.550A9 to 3/4" VKG10, NEMA 4
A47: VA33-NF-100 | C47: SQM33.550A9 to 1" VKG10
A48: VA33-NF-100-N4 | C48: SQM33.550A9 to 1" VKG10, NEMA 4
A49: VA33-NF-125 | C49: SQM33.550A9 to 1-1/4" VKG10
A50: VA33-NF-125-N4 | C50: SQM33.550A9 to 1-1/4" VKG10, NEMA 4
A51: VA33-NF-150 | C51: SQM33.550A9 to 1-1/2" VKG10
A52: VA33-NF-150-270 | C52: SQM33.550A9 to 1-1/2" VKG10
A53: VA33-NF-150-N4 | C53: SQM33.550A9 to 1-1/2" VKG10, NEMA 4
A54: VA33-NF-200 | C54: SQM33.550A9 to 2" VKG10
A55: VA33-NF-200-270 | C55: SQM33.550A9 to 2" VKG10
A56: VA33-NF-200-N4 | C56: SQM33.550A9 to 2" VKG10, NEMA 4
A57: VA33-NF-250 | C57: SQM33.550A9 to 2-1/2" VKG10
A58: VA33-NF-250-270 | C58: SQM33.550A9 to 2-1/2" VKG10
A59: VA33-NF-250-N4 | C59: SQM33.550A9 to 2-1/2" VKG10, NEMA 4
A60: VA33-NF-300 | C60: SQM33.550A9 to 3" VKG10
A61: VA33-NF-300-270 | C61: SQM33.550A9 to 3" VKG10
A62: VA33-NF-300-N4 | C62: SQM33.550A9 to 3" VKG10, NEMA 4
A63: VA33-NF-400 | C63: SQM33.550A9 to 4" VKG10
A64: VA33-NF-400-N4 | C64: SQM33.550A9 to 4" VKG10, NEMA 4
A65: VA33-NFB-050 | C65: SQM33.550A9 to 1/2" VRG10
A66: VA33-NFB-075 | C66: SQM33.550A9 to 3/4" VRG10
A67: VA33-NFB-100 | C67: SQM33.550A9 to 1" VRG10
A68: VA33-NFB-125 | C68: SQM33.550A9 to 1-1/4" VRG10
A69: VA33-NFB-150 | C69: SQM33.550A9 to 1-1/2" VRG10
A70: VA33-NFB-200 | C70: SQM33.550A9 to 2" VRG10
A71: VA33-NFB-250 | C71: SQM33.550A9 to 2-1/2" VRG10
A72: VA33-NFB-300 | C72: SQM33.550A9 to 3" VRG10
A73: VA33-NFB-400 | C73: SQM33.550A9 to 4" VRG10
A74: VA33-NM-100 | C74: SQM33.550A9 to 1" VKG20
A75: VA33-NM-100-N4 | C75: SQM33.550A9 to 1" VKG20, NEMA 4
A76: VA33-NM-125 | C76: SQM33.550A9 to 1-1/4" VKG20
A77: VA33-NM-125-N4 | C77: SQM33.550A9 to 1-1/4" VKG20, NEMA 4
A78: VA33-NM-150 | C78: SQM33.550A9 to 1-1/2" VKG20
A79: VA33-NM-150-N4 | C79: SQM33.550A9 to 1-1/2" VKG20, NEMA 4
A80: VA33-NM-200 | C80: SQM33.550A9 to 2" VKG20
A81: VA33-NM-200-N4 | C81: SQM33.550A9 to 2" VKG20, NEMA 4
A82: VA33-NM-250 | C82: SQM33.550A9 to 2-1/2" VKG20
A83: VA33-NM-250-N4 | C83: SQM33.550A9 to 2-1/2" VKG20, NEMA 4
A84: VA33-NM-300 | C84: SQM33.550A9 to 3" VKG20
A85: VA33-NM-300-N4 | C85: SQM33.550A9 to 3" VKG20, NEMA 4
A86: VA33-NM-400 | C86: SQM33.550A9 to 4" VKG20
A87: VA33-NM-400-N4 | C87: SQM33.550A9 to 4" VKG20, NEMA 4
A88: VA33-NMB-100 | C88: SQM33.550A9 to 1" VRG20
A89: VA33-NMB-125 | C89: SQM33.550A9 to 1-1/4" VRG20
A90: VA33-NMB-150 | C90: SQM33.550A9 to 1-1/2" VRG20
A91: VA33-NMB-200 | C91: SQM33.550A9 to 2" VRG20
A92: VA33-NMB-250 | C92: SQM33.550A9 to 2-1/2" VRG20
A93: VA33-NMB-300 | C93: SQM33.550A9 to 3" VRG20
A94: VA33-NMB-400 | C94: SQM33.550A9 to 4" VRG20
A95: VA33-NR-150 | C95: SQM33.550A9 to 1-1/2" VKG30
A96: VA33-NR-150-N4 | C96: SQM33.550A9 to 1-1/2" VKG30, NEMA 4
A97: VA33-NR-200 | C97: SQM33.550A9 to 2" VKG30
A98: VA33-NR-200-N4 | C98: SQM33.550A9 to 2" VKG30, NEMA 4
A99: VA33-NR-250 | C99: SQM33.550A9 to 2-1/2" VKG30
A100: VA33-NR-250-N4 | C100: SQM33.550A9 to 2-1/2" VKG30, NEMA 4
A101: VA33-NR-300 | C101: SQM33.550A9 to 3" VKG30
A102: VA33-NR-300-N4 | C102: SQM33.550A9 to 3" VKG30, NEMA 4
A103: VA33-NR-400 | C103: SQM33.550A9 to 4" VKG30
A104: VA33-NR-400-N4 | C104: SQM33.550A9 to 4" VKG30, NEMA 4
A105: VA33-NRB-150 | C105: SQM33.550A9 to 1-1/2" VRG30
A106: VA33-NRB-200 | C106: SQM33.550A9 to 2" VRG30
A107: VA33-NRB-250 | C107: SQM33.550A9 to 2-1/2" VRG30
A108: VA33-NRB-300 | C108: SQM33.550A9 to 3" VRG30
A109: VA33-NRB-400 | C109: SQM33.550A9 to 4" VRG30
A110: VA33-RF-050 | C110: SQM33.550A9 to 1/2" Rp VKG10
A111: VA33-RF-075 | C111: SQM33.550A9 to 3/4" Rp VKG10
A112: VA33-RF-100 | C112: SQM33.550A9 to 1" Rp VKG10
A113: VA33-RF-125 | C113: SQM33.550A9 to 1-1/4" Rp VKG10
A114: VA33-RF-150 | C114: SQM33.550A9 to 1-1/2" Rp VKG10
A115: VA33-RF-200 | C115: SQM33.550A9 to 2" Rp VKG10
A116: VA33-RF-250 | C116: SQM33.550A9 to 2-1/2" Rp VKG10
A117: VA33-RF-300 | C117: SQM33.550A9 to 3" Rp VKG10
A118: VA33-RM-100 | C118: SQM33.550A9 to 1" Rp VKG20
A119: VA33-RM-125 | C119: SQM33.550A9 to 1-1/4" Rp VKG20
A120: VA33-RM-150 | C120: SQM33.550A9 to 1-1/2" Rp VKG20
A121: VA33-RM-200 | C121: SQM33.550A9 to 2" Rp VKG20
A122: VA33-RM-250 | C122: SQM33.550A9 to 2-1/2" Rp VKG20
A123: VA33-RM-300 | C123: SQM33.550A9 to 3" Rp VKG20
A124: VA33-RR-150 | C124: SQM33.550A9 to 1-1/2" Rp VKG30
A125: VA33-RR-200 | C125: SQM33.550A9 to 2" Rp VKG30
A126: VA33-RR-250 | C126: SQM33.550A9 to 2-1/2" Rp VKG30
A127: VA33-RR-300 | C127: SQM33.550A9 to 3" Rp VKG30
A128: VA40.11-NF-050 | C128: SQM40.115R11 to 1/2" VKG10
A129: VA40.11-NF-075 | C129: SQM40.115R11 to 3/4" VKG10
A130: VA40.11-NF-100 | C130: SQM40.115R11 to 1" VKG10
A131: VA40.11-NF-125 | C131: SQM40.115R11 to 1-1/4" VKG10
A132: VA40.11-NF-150 | C132: SQM40.115R11 to 1-1/2" VKG10
A133: VA40.11-NF-200 | C133: SQM40.115R11 to 2" VKG10
A134: VA40.11-NF-250 | C134: SQM40.115R11 to 2-1/2" VKG10
A135: VA40.11-NF-300 | C135: SQM40.115R11 to 3" VKG10
A136: VA40.11-NF-400 | C136: SQM40.115R11 to 4" VKG10
A137: VA40.11-NM-100 | C137: SQM40.115R11 to 1" VKG20
A138: VA40.11-NM-125 | C138: SQM40.115R11 to 1-1/4" VKG20
A139: VA40.11-NM-150 | C139: SQM40.115R11 to 1-1/2" VKG20
A140: VA40.11-NM-200 | C140: SQM40.115R11 to 2" VKG20
A141: VA40.11-NM-250 | C141: SQM40.115R11 to 2-1/2" VKG20
A142: VA40.11-NM-300 | C142: SQM40.115R11 to 3" VKG20
A143: VA40.11-NM-400 | C143: SQM40.115R11 to 4" VKG20
A144: VA40.11-NR-150 | C144: SQM40.115R11 to 1-1/2" VKG30
A145: VA40.11-NR-200 | C145: SQM40.115R11 to 2" VKG30
A146: VA40.11-NR-250 | C146: SQM40.115R11 to 2-1/2" VKG30
A147: VA40.11-NR-300 | C147: SQM40.115R11 to 3" VKG30
A148: VA40.11-NR-400 | C148: SQM40.115R11 to 4" VKG30
A149: VA40.11-RF-050 | C149: SQM40.115R11 to 1/2" Rp VKG10
A150: VA40.11-RF-075 | C150: SQM40.115R11 to 3/4" Rp VKG10
A151: VA40.11-RF-100 | C151: SQM40.115R11 to 1" Rp VKG10
A152: VA40.11-RF-125 | C152: SQM40.115R11 to 1-1/4" Rp VKG10
A153: VA40.11-RF-150 | C153: SQM40.115R11 to 1-1/2" Rp VKG10
A154: VA40.11-RF-200 | C154: SQM40.115R11 to 2" Rp VKG10
A155: VA40.11-RF-250 | C155: SQM40.115R11 to 2-1/2" Rp VKG10
A156: VA40.11-RF-300 | C156: SQM40.115R11 to 3" Rp VKG10
A157: VA40.11-RM-100 | C157: SQM40.115R11 to 1" Rp VKG20
A158: VA40.11-RM-125 | C158: SQM40.115R11 to 1-1/4" Rp VKG20
A159: VA40.11-RM-150 | C159: SQM40.115R11 to 1-1/2" Rp VKG20
A160: VA40.11-RM-200 | C160: SQM40.115R11 to 2" Rp VKG20
A161: VA40.11-RM-250 | C161: SQM40.115R11 to 2-1/2" Rp VKG20
A162: VA40.11-RM-300 | C162: SQM40.115R11 to 3" Rp VKG20
A163: VA40.11-RR-150 | C163: SQM40.115R11 to 1-1/2" Rp VKG30
A164: VA40.11-RR-200 | C164: SQM40.115R11 to 2" Rp VKG30
A165: VA40.11-RR-250 | C165: SQM40.115R11 to 2-1/2" Rp VKG30
A166: VA40.11-RR-300 | C166: SQM40.115R11 to 3" Rp VKG30
A167: VA40.14(220)-NF-050 | C167: SQM40.145A21 to 1/2" VKG10
A168: VA40.14(220)-NF-075 | C168: SQM40.145A21 to 3/4" VKG10
A169: VA40.14(220)-NF-100 | C169: SQM40.145A21 to 1" VKG10
A170: VA40.14(220)-NF-125 | C170: SQM40.145A21 to 1-1/4" VKG10
A171: VA40.14(220)-NF-150 | C171: SQM40.145A21 to 1-1/2" VKG10
A172: VA40.14(220)-NF-200 | C172: SQM40.145A21 to 2" VKG10
A173: VA40.14(220)-NF-250 | C173: SQM40.145A21 to 2-1/2" VKG10
A174: VA40.14(220)-NF-300 | C174: SQM40.145A21 to 3" VKG10
A175: VA40.14(220)-NF-400 | C175: SQM40.145A21 to 4" VKG10
A176: VA40.14(220)-NM-100 | C176: SQM40.145A21 to 1" VKG20
A177: VA40.14(220)-NM-125 | C177: SQM40.145A21 to 1-1/4" VKG20
A178: VA40.14(220)-NM-150 | C178: SQM40.145A21 to 1-1/2" VKG20
A179: VA40.14(220)-NM-200 | C179: SQM40.145A21 to 2" VKG20
A180: VA40.14(220)-NM-250 | C180: SQM40.145A21 to 2-1/2" VKG20
A181: VA40.14(220)-NM-300 | C181: SQM40.145A21 to 3" VKG20
A182: VA40.14(220)-NM-400 | C182: SQM40.145A21 to 4" VKG20
A183: VA40.14(220)-NR-150 | C183: SQM40.145A21 to 1-1/2" VKG30
A184: VA40.14(220)-NR-200 | C184: SQM40.145A21 to 2" VKG30
A185: VA40.14(220)-NR-250 | C185: SQM40.145A21 to 2-1/2" VKG30
A186: VA40.14(220)-NR-300 | C186: SQM40.145A21 to 3" VKG30
A187: VA40.14(220)-NR-400 | C187: SQM40.145A21 to 4" VKG30
A188: VA40.14(220)-RF-050 | C188: SQM40.145A21 to 1/2" Rp VKG10
A189: VA40.14(220)-RF-075 | C189: SQM40.145A21 to 3/4" Rp VKG10
A190: VA40.14(220)-RF-100 | C190: SQM40.145A21 to 1" Rp VKG10
A191: VA40.14(220)-RF-125 | C191: SQM40.145A21 to 1-1/4" Rp VKG10
A192: VA40.14(220)-RF-150 | C192: SQM40.145A21 to 1-1/2" Rp VKG10
A193: VA40.14(220)-RF-200 | C193: SQM40.145A21 to 2" Rp VKG10
A194: VA40.14(220)-RF-250 | C194: SQM40.145A21 to 2-1/2" Rp VKG10
A195: VA40.14(220)-RF-300 | C195: SQM40.145A21 to 3" Rp VKG10
A196: VA40.14(220)-RM-100 | C196: SQM40.145A21 to 1" Rp VKG20
A197: VA40.14(220)-RM-125 | C197: SQM40.145A21 to 1-1/4" Rp VKG20
A198: VA40.14(220)-RM-150 | C198: SQM40.145A21 to 1-1/2" Rp VKG20
A199: VA40.14(220)-RM-200 | C199: SQM40.145A21 to 2" Rp VKG20
A200: VA40.14(220)-RM-250 | C200: SQM40.145A21 to 2-1/2" Rp VKG20
... 1865 more rows

Sheet FPL Copy Paste Sheet (hidden)
A1: How to update the GVQP with new pricing
A2: Equation: | B2: INDEX(MasterPrices[#Data],MATCH(SCCParts[@[SCC Part Number]:[SCC Part Number]],MasterPrices[[SCC Part Number]:[SCC Part Number]],0),MATCH(SCCParts[[#Headers],[Product Line]],MasterPrices[#Headers],0))
A3: Paste Master Price List Table below as values only with the headings. Name the table MasterPrices.
A4: Paste the equation above in B2 of the SCCParts table. Pull it all the way down and then all the way across - select fill without formating
A5: Do a copy paste VALUES ONLY on all of the data in the SCCParts table except the part numbers column.
A6: Delete the MasterPrices table below

Sheet Quote
C1: 1250 Lunt Ave.
C2: Elk Grove Village, IL 60007
C3: Ph: 224‐366‐8445
C4: Fax: 224‐366‐8454
C5: Email: customerservice@scccombustion.com | E5: ="r"&MID(CustDesg[SCC Gas Valve Sizing Program],10,3)&" "&CustDesg[Price List] -> r1.5 PL-S
A7: To: | D7: Date:
A8: Attn:
A10: Parts list includes SCC components only! Piping and assembly of gas train not included. If a fully assembled gas train is desired please call your SCC sales manager.
C12: IFERROR(INDEX(SCCParts[#Data],MATCH([@[Part Number]],SCCParts[SCC Part Number],0),MATCH("Description",SCCParts[#Headers],0)),"") | D12: IFERROR(INDEX(SCCParts[#Data],MATCH([@[Part Number]],SCCParts[SCC Part Number],0),MATCH(CustDesg[Price List],SCCParts[#Headers],0)),"Not in PL") | E12: IFERROR([@[Price Each]]*[@Qty],"")
A13: Part Number | B13: Qty | C13: Description | D13: Price Each | E13: Extended Price
A34: Total | E34: =SUBTOTAL(109,QuoteTable[Extended Price]) -> 0
A36: Accepted by: | C36: Date:
A37: Lead time is subject to change and will be confirmed after receipt of order. All orders are subject to credit approval and SCC Inc. payment terms as outlined in sections 2.a and 2.b. of SCC Inc. Standard Terms & Conditions. Please refer to SCC Standard Terms & Conditions sections 5, 6, & 7 for warranty & return guidelines. Please refer to SCC Standard Terms & Conditions for full detail of applicable terms.
A38: Note: The below image is a simplified representation of an assembled fuel train using the configured parts. This image shows critical flow characteristics and dimensions. This image is not to scale. Additional accessories are not shown (actuators, pressure switches…etc.).
D39: Description | E39: Value
D40: Q Gas Flow at High Fire | E40: 4000 SCFH
D41: Ps Gas Supply Pressure | E41: 3 PSIG
D42: Min Required Supply Press (inWC) | E42: 2.06 PSIG
D43: Pb Pressure at Burner Manifold | E43: 17 inWC
D44: V1 Gas Velocity after SSOV | E44: 107 (ft/s)
D45: Recommended min sensing pipe size | E45: 1.25"
D46: D1 Min dist from SKP25 to sensing tap | E46: 5x Pipe Dia
D48: D2 Min dist from sensing tap to next obstruction | E48: 2x Pipe Dia

Sheet Notes
A3: Standard Gas Properties
A4: Std Gas | B4: Specific Gravity | C4: Heating Value
A5: Butane | B5: 2 | C5: 3200
A6: Digester | B6: 0.86 | C6: 550
A7: Natural | B7: 0.64 | C7: 1000
A8: Propane | B8: 1.52 | C8: 2500
A14: Pictures needed
A15: Train Type | B15: type of valve | C15: VKG | D15: Count
A16: trad | B16: 1 | C16: No | D16: 1
A17: trad | B17: 2 | C17: No | D17: 5
A18: trad | B18: 2-1's | C18: No | D18: 9
A19: trad | B19: 1 | C19: Yes | D19: 2
A20: trad | B20: 2 | C20: Yes | D20: 6
A21: trad | B21: 2-1's | C21: Yes | D21: 10
A22: Comb | B22: 1 | C22: No | D22: 3
A23: Comb | B23: 2 | C23: No | D23: 7
A24: Comb | B24: 2-1's | C24: No | D24: 11
A25: Comb | B25: 1 | C25: Yes | D25: 4
A26: Comb | B26: 2 | C26: Yes | D26: 8
A27: Comb | B27: 2-1's | C27: Yes | D27: 12

Sheet BOM (hidden)
A2: Category | B2: Part Number | C2: Qty
A3: FRV / VA | B3: =VKGVAFinalSelect[Part '#] ->  | C3: =Interface!E10 -> 1
A4: SSOV | B4: =SSOVSelection[Part '#] ->  | C4: =IFERROR(SSOVSelection[QTY]*Interface!E10,0) -> 0
A5: Vent Plate | B5: =VentPSelect[Part '#] ->  | C5: =Interface!E10 -> 1
A6: Inlet Flange | B6: =InFlange[Part '#] ->  | C6: =Interface!E10 -> 1
A7: Outlet flange | B7: =OutFlange[Part '#] ->  | C7: =Interface!E10 -> 1
A8: Actuator 2 | B8: =IFERROR(Act2Select[Part '#],"") ->  | C8: =Interface!E10 -> 1
A9: Actuator 1 | B9: =Act1Select[Part '#] ->  | C9: =Interface!E10 -> 1
A10: SKP25 Spring | B10: =SKPSpringSelect[Part '#] ->  | C10: =Interface!E10 -> 1
A11: SKP Nema 4's | B11: ='Data, Calcs, Selections'!BR3 ->  | C11: ='Data, Calcs, Selections'!BS3*Interface!E10 -> 0
A12: SKP Damping Orifice | B12: ='Data, Calcs, Selections'!BR4 ->  | C12: =Interface!E10*'Data, Calcs, Selections'!BS4 -> 0
A13: SKP Heaters | B13: ='Data, Calcs, Selections'!BR5 ->  | C13: =Interface!E10*'Data, Calcs, Selections'!BS5 -> 0
A14: LG Press Switch | B14: =LGPSSelection[Part '#] -> Not Required | C14: =Interface!E10 -> 1
A15: HG Press Switch | B15: =HGPSSelection[Part '#] ->  | C15: =Interface!E10 -> 1
A16: VP Press Swtich | B16: =VPPSSelection[Part '#] ->  | C16: =Interface!E10 -> 1
A17: NEMA 3R for PS's | B17: =PSN3RSelect[Part '#] ->  | C17: =PSN3RSelect[Qty]*Interface!E10 -> 0

Sheet Image Array (hidden)
A1: None | C1: NoneQ
A2: Trad1No | C2: Trad1NoQ
A3: Trad2No | C3: Trad2NoQ
A4: Trad2-1'sNo | C4: Trad2-1'sNoQ
A5: Trad1Yes | C5: Trad1YesQ
A6: Trad2Yes | C6: Trad2YesQ
A7: Trad2-1'sYes | C7: Trad2-1'sYesQ
A8: Comb1No | C8: Comb1NoQ
A9: Comb2No | C9: Comb2NoQ
A10: Comb2-1'sNo | C10: Comb2-1'sNoQ
A11: Comb1Yes | C11: Comb1YesQ
A12: Comb2Yes | C12: Comb2YesQ
A13: Comb2-1'sYes | C13: Comb2-1'sYesQ
